Service Area,Service Division,Expense Type,Expense Code,Detailed Expense Type,Payment Date,Transaction Number,Amount Exc Vat,Supplier Name
Assistant Chief Executive,Partnerships & Community Engagement Div.,Transfer Payments,525030,Other,02-Jun-2014,2751736-VOUCHER13AB,"1,800.00",COWSHILL VILLAGE HALL.
Children and Adult Services,Childrens Services,Premises,120009,Energy Costs,02-Jun-2014,2751931-C1251,796.79,PETERLEE TOWN COUNCIL.
Children and Adult Services,Childrens Services,Third Party Payments,425040,Rendered by Voluntary Organisations,02-Jun-2014,2751987-21730,"3,232.86",TEAM FOSTERING.
Children and Adult Services,Commissioning inc Supporting People,Supplies and Services,384700,Miscellaneous Expenses,02-Jun-2014,2751995-001,"10,000.00",THE WOOD PILE COMMUNITY INTEREST CO.
Children and Adult Services,Education,Supplies and Services,338094,Services,02-Jun-2014,2751993-2528,668.25,THE DURHAM CENTRE LTD.
Children and Adult Services,Education,Third Party Payments,440999,Other Third Party Payments,02-Jun-2014,2751657-INV01929,"1,056.22",ACUMEN COMMUNITY ENTERPRISE DEVELOPMENT TRUST LTD.
Children and Adult Services,Education,Third Party Payments,440999,Other Third Party Payments,02-Jun-2014,2751916-260217,"11,514.24",NOVA PAYROLL MANAGEMENT SERVICES LTD T/A PIN POINT RECRUITMENT.
Children and Adult Services,Education,Third Party Payments,440999,Other Third Party Payments,02-Jun-2014,2751966-DCCASB007,"1,347.20",SMARTT.
Children and Adult Services,Education,Transport,230008,Contract Hire,02-Jun-2014,2751658-30/5/14,770.00,ADAM BARNES T/A PAUL`S TAXIS.
Children and Adult Services,Education,Transport,230008,Contract Hire,02-Jun-2014,2751658-MAY2014,770.00,ADAM BARNES T/A PAUL`S TAXIS.
Children and Adult Services,Education,Transport,230007,Contract Hire,02-Jun-2014,2751827-2014/04,829.40,JM HUMBLE COACH HIRE.
Children and Adult Services,Education,Transport,230008,Contract Hire,02-Jun-2014,2751833-27,"1,120.00",K & B TAXIS.
Children and Adult Services,Education,Transport,230008,Contract Hire,02-Jun-2014,2751860-1023,"1,120.00",LD TAXIS.
Children and Adult Services,Education,Transport,230008,Contract Hire,02-Jun-2014,2751861-077,"1,232.00",LEE`S TAXIS.
Children and Adult Services,Education,Transport,230008,Contract Hire,02-Jun-2014,2751861-078,871.00,LEE`S TAXIS.
Children and Adult Services,Education,Transport,230008,Contract Hire,02-Jun-2014,2751861-079,"1,419.00",LEE`S TAXIS.
Children and Adult Services,Education,Transport,230006,Contract Hire,02-Jun-2014,2751863-2941,"1,380.00",LINCAB TAXIS.
Children and Adult Services,Education,Transport,230006,Contract Hire,02-Jun-2014,2751863-2977,"2,144.00",LINCAB TAXIS.
Children and Adult Services,Education,Transport,230008,Contract Hire,02-Jun-2014,2751890-AA274,"1,680.00",MR T GUNN.
Children and Adult Services,Education,Transport,230008,Contract Hire,02-Jun-2014,2751925-5641,"1,320.00",OVERLANDER LTD.
Children and Adult Services,Education,Transport,230008,Contract Hire,02-Jun-2014,2751928-DCC10,"1,280.00",PAUL`S TAXIS..
Children and Adult Services,Education,Transport,230008,Contract Hire,02-Jun-2014,2751930-425,800.00,PETERLEE EXECUTIVE CARS.
Children and Adult Services,Education,Transport,230008,Contract Hire,02-Jun-2014,2751930-430,512.00,PETERLEE EXECUTIVE CARS.
Children and Adult Services,Education,Transport,230006,Contract Hire,02-Jun-2014,2751930-431,"1,184.00",PETERLEE EXECUTIVE CARS.
Children and Adult Services,Education,Transport,230008,Contract Hire,02-Jun-2014,2751934-130506,"1,080.00",PRATTS TAXIS.
Children and Adult Services,Education,Transport,230008,Contract Hire,02-Jun-2014,2751934-130508,"2,455.36",PRATTS TAXIS.
Children and Adult Services,Education,Transport,230008,Contract Hire,02-Jun-2014,2751934-13057,896.00,PRATTS TAXIS.
Children and Adult Services,Education,Transport,230007,Contract Hire,02-Jun-2014,2751935-270,"1,024.00",PREMIER PRIVATE HIRE.
Children and Adult Services,Education,Transport,230007,Contract Hire,02-Jun-2014,2751977-236,"1,596.80",STEPHEN MAUDE LTD T/A MAUDES COACHES.
Children and Adult Services,Education,Transport,230007,Contract Hire,02-Jun-2014,2751977-237,"1,756.80",STEPHEN MAUDE LTD T/A MAUDES COACHES.
Children and Adult Services,Education,Transport,230007,Contract Hire,02-Jun-2014,2751977-239,928.00,STEPHEN MAUDE LTD T/A MAUDES COACHES.
Children and Adult Services,Public Health,Supplies and Services,384155,Miscellaneous Expenses,02-Jun-2014,2751904-1000040020,"62,172.73",NHS BUSINESS SERVICES AUTHORITY.
Children and Adult Services,Public Health,Third Party Payments,460803,Contract Payments,02-Jun-2014,2751695-FFK86/0414/NRT,"1,029.61",BEWICK PHARMACY.
Corporate Resources,Corporate Finance,Supplies and Services,342051,Computers and Communications,02-Jun-2014,2752001-20015798,"3,303.64",UNIT4 BUSINESS SOFTWARE LTD FORMERLY AGRESSO.
Corporate Resources,Human Resources,Employees,040149,Recruitment Instruction and Training,02-Jun-2014,2751936-129167,540.00,PREMIER TRAFFIC MANAGEMENT LTD.
Corporate Resources,I.C.T. Services,Stock,926900,Stock in hand-Inventory system,02-Jun-2014,2751751-7402120315,"1,645.00",DELL COMPUTER CORPORATION LTD.
Corporate Resources,I.C.T. Services,Supplies and Services,332029,Printing Stationery and Gen Off Exps,02-Jun-2014,2751802-69541,690.00,HILLPRINT MEDIA LTD.
Corporate Resources,I.C.T. Services,Supplies and Services,332029,Printing Stationery and Gen Off Exps,02-Jun-2014,2751969-7453,579.00,SPOT ON DISPLAYS LTD.
Corporate Resources,I.C.T. Services,Vehicles Equipment Furniture and Fittings,912701,Computer equipment,02-Jun-2014,2751680-61536,"75,007.62",AZZURRI COMMUNICATIONS LTD.
Dedicated Schools Grant,Dedicated Schools Grant,Supplies and Services,338091,Services,02-Jun-2014,2751790-GSACIC/01/00124,660.00,GLOBAL SPORT ACADEMY CIC.
Dedicated Schools Grant,Dedicated Schools Grant,Transport,230011,Contract Hire,02-Jun-2014,2751743-119,792.50,D MCDONNELL.
Dedicated Schools Grant,Dedicated Schools Grant,Transport,230010,Contract Hire,02-Jun-2014,2751860-1022,"1,556.00",LD TAXIS.
Dedicated Schools Grant,Dedicated Schools Grant,Transport,230010,Contract Hire,02-Jun-2014,2751863-2976,"1,729.00",LINCAB TAXIS.
Neighbourhood Services,Culture & Sport,Construction Work,908109,Capital - Resurfacing,02-Jun-2014,2751862-LS060,"53,757.62",LIMONTA SMITH JV LTD.
Neighbourhood Services,Culture & Sport,Premises,120021,Energy Costs,02-Jun-2014,2751719-17516377,536.05,CALOR GAS LTD.
Neighbourhood Services,Culture & Sport,Supplies and Services,312013,Newspapers Books and Periodicals,02-Jun-2014,2751677-4300327,538.28,ASKEWS & HOLTS LIBRARY SERVICES LTD.
Neighbourhood Services,Culture & Sport,Supplies and Services,324001,Provisions,02-Jun-2014,2751729-9101614229,620.76,COCA COLA ENTERPRISES LTD.
Neighbourhood Services,Culture & Sport,Supplies and Services,338047,Services,02-Jun-2014,2751758,960.02,DURHAM CHORAL SOCIETY.
Neighbourhood Services,Culture & Sport,Supplies and Services,384073,Miscellaneous Expenses,02-Jun-2014,2751948-7140002404,560.00,RIVERSIDE EVENTS LLP.
Neighbourhood Services,Culture & Sport,Supplies and Services,304221,Equipment and Materials,02-Jun-2014,2751964-265970,716.40,SIS CHEMICALS.
Neighbourhood Services,Culture & Sport,Supplies and Services,304221,Equipment and Materials,02-Jun-2014,2751964-266024,521.60,SIS CHEMICALS.
Neighbourhood Services,Direct Services,Stock,926004,Stock,02-Jun-2014,2751720-281968,602.47,CARRS BILLINGTON AGRICULTURE.
Neighbourhood Services,Direct Services,Stock,926004,Stock,02-Jun-2014,2751782-216224354,"1,199.00",FUCHS LUBRICANTS (UK) PLC.
Neighbourhood Services,Direct Services,Supplies and Services,304221,Equipment and Materials,02-Jun-2014,2751689-DUR/137203,557.70,BEMCO LTD.
Neighbourhood Services,Direct Services,Supplies and Services,304221,Equipment and Materials,02-Jun-2014,2751706-1650/0350688,670.01,BSS GROUP PLC.
Neighbourhood Services,Direct Services,Supplies and Services,304221,Equipment and Materials,02-Jun-2014,2751707-1650/0354552,"1,164.54",BSS GROUP PLC.
Neighbourhood Services,Direct Services,Supplies and Services,304221,Equipment and Materials,02-Jun-2014,2751707-1650/0354553,565.71,BSS GROUP PLC.
Neighbourhood Services,Direct Services,Supplies and Services,304221,Equipment and Materials,02-Jun-2014,2751723-995001588128,759.84,CERAMIC TILE DISTRIBUTORS (CTD).
Neighbourhood Services,Direct Services,Supplies and Services,304259,Equipment and Materials,02-Jun-2014,2751767-4050851,744.00,EAST RIDING HORTICULTURE LTD.
Neighbourhood Services,Direct Services,Supplies and Services,304221,Equipment and Materials,02-Jun-2014,2751832-BI1133419,510.18,JT DOVE LTD.
Neighbourhood Services,Direct Services,Supplies and Services,304221,Equipment and Materials,02-Jun-2014,2751832-CN119331/D,790.16,JT DOVE LTD.
Neighbourhood Services,Direct Services,Supplies and Services,304221,Equipment and Materials,02-Jun-2014,2751832-CN119439/D,"1,068.33",JT DOVE LTD.
Neighbourhood Services,Direct Services,Supplies and Services,304221,Equipment and Materials,02-Jun-2014,2751832-CNI19129/D,"3,466.63",JT DOVE LTD.
Neighbourhood Services,Direct Services,Supplies and Services,304221,Equipment and Materials,02-Jun-2014,2751832-CNI19276/D,"2,773.31",JT DOVE LTD.
Neighbourhood Services,Direct Services,Supplies and Services,304221,Equipment and Materials,02-Jun-2014,2751832-NO148996,663.60,JT DOVE LTD.
Neighbourhood Services,Direct Services,Supplies and Services,304259,Equipment and Materials,02-Jun-2014,2751913-1186191,706.00,NORTHERN TOOLS & ACCESSORIES.
Neighbourhood Services,Direct Services,Supplies and Services,384159,Miscellaneous Expenses,02-Jun-2014,2751937-3792,"4,639.12",QW SECURITY LTD.
Neighbourhood Services,Direct Services,Supplies and Services,338078,Services,02-Jun-2014,2751937-3868,"2,476.38",QW SECURITY LTD.
Neighbourhood Services,Direct Services,Supplies and Services,338078,Services,02-Jun-2014,2751937-3937,"2,792.58",QW SECURITY LTD.
Neighbourhood Services,Direct Services,Supplies and Services,338078,Services,02-Jun-2014,2751937-4138,"2,845.77",QW SECURITY LTD.
Neighbourhood Services,Direct Services,Supplies and Services,304221,Equipment and Materials,02-Jun-2014,2751981-1188125,"4,756.75",T CROSSLING & CO LTD.
Neighbourhood Services,Direct Services,Third Party Payments,430100,Rendered by Private Contractors,02-Jun-2014,2751687-46035229,"1,697.32",BELL TRUCK SALES LTD.
Neighbourhood Services,Direct Services,Third Party Payments,430100,Rendered by Private Contractors,02-Jun-2014,2751698-7376,"3,330.00",BOLTON GATE CO.
Neighbourhood Services,Direct Services,Third Party Payments,430100,Rendered by Private Contractors,02-Jun-2014,2751753-K15386,"2,395.00",DELTA ELECTRICAL & MECHANICAL SERVICES.
Neighbourhood Services,Direct Services,Third Party Payments,430100,Rendered by Private Contractors,02-Jun-2014,2751753-K15387,"2,395.00",DELTA ELECTRICAL & MECHANICAL SERVICES.
Neighbourhood Services,Direct Services,Third Party Payments,430100,Rendered by Private Contractors,02-Jun-2014,2751757-9100679327,"7,594.80",DORMA UK LTD.
Neighbourhood Services,Direct Services,Third Party Payments,430100,Rendered by Private Contractors,02-Jun-2014,2751866-1866,798.00,LMC ELECTRICAL SERVICES T/A LMC ELECTRICAL & STAIRLIFT SERVICES LTD.
Neighbourhood Services,Direct Services,Third Party Payments,430100,Rendered by Private Contractors,02-Jun-2014,2751912-DI20186706,"2,777.58",NORTHERN POWERGRID (NORTHEAST) LTD.
Neighbourhood Services,Direct Services,Third Party Payments,430100,Rendered by Private Contractors,02-Jun-2014,2751927-243,"13,194.00",PARAMOUNT CEILINGS & PARTITIONS.
Neighbourhood Services,Direct Services,Third Party Payments,430100,Rendered by Private Contractors,02-Jun-2014,2751949-KLMST03RCB,"19,173.80",ROBIN BURCH.
Neighbourhood Services,Direct Services,Third Party Payments,430100,Rendered by Private Contractors,02-Jun-2014,2751971-60738647,642.56,SPRINGFIELD MOTOR GROUP.
Neighbourhood Services,Direct Services,Third Party Payments,430100,Rendered by Private Contractors,02-Jun-2014,2751971-60738648,"1,588.46",SPRINGFIELD MOTOR GROUP.
Neighbourhood Services,Direct Services,Transport,210057,Repair and Maintenance of Vehicles,02-Jun-2014,2751725-294357,667.87,CHATFIELDS.
Neighbourhood Services,Direct Services,Transport,210057,Repair and Maintenance of Vehicles,02-Jun-2014,2751754-DE10787128,603.39,DENNIS EAGLE LTD.
Neighbourhood Services,Direct Services,Transport,210057,Repair and Maintenance of Vehicles,02-Jun-2014,2751864-SI1591901,810.00,LINDEN FLUID POWER LTD.
Neighbourhood Services,Direct Services,Transport,210057,Repair and Maintenance of Vehicles,02-Jun-2014,2751945-706673,633.39,RICKERBY LTD.
Neighbourhood Services,Direct Services,Transport,210057,Repair and Maintenance of Vehicles,02-Jun-2014,2751950-14116174,681.62,ROBINS & DAY LTD NEWCASTLE.
Neighbourhood Services,Direct Services,Transport,210057,Repair and Maintenance of Vehicles,02-Jun-2014,2751952-00247767,650.95,S JENNINGS LTD.
Neighbourhood Services,Projects and Business services,Third Party Payments,410037,Rendered by Other Local Authorities,02-Jun-2014,2751903,"1,963.01",NFPAS LTD.
Neighbourhood Services,Technical Services,Construction Work,908108,Capital - Surface Dressing,02-Jun-2014,2751847-14309,"317,494.85",KIELY BROS LTD.
Neighbourhood Services,Technical Services,Stock,926900,Stock in hand-Inventory system,02-Jun-2014,2751686-152026,649.50,BDPLASTICS LTD.
Neighbourhood Services,Technical Services,Stock,926900,Stock in hand-Inventory system,02-Jun-2014,2751723-9950/01590940,"2,981.77",CERAMIC TILE DISTRIBUTORS (CTD).
Neighbourhood Services,Technical Services,Stock,926900,Stock in hand-Inventory system,02-Jun-2014,2751723-9950/01593680,"3,135.76",CERAMIC TILE DISTRIBUTORS (CTD).
Neighbourhood Services,Technical Services,Stock,926900,Stock in hand-Inventory system,02-Jun-2014,2751755-146899186,"1,125.00",DIVERSEY LTD.
Neighbourhood Services,Technical Services,Stock,926900,Stock in hand-Inventory system,02-Jun-2014,2751777-OP/I278945,773.70,FLEMING & CO (MACHINERY) LTD.
Neighbourhood Services,Technical Services,Stock,926900,Stock in hand-Inventory system,02-Jun-2014,2751832-STI401215,907.60,JT DOVE LTD.
Neighbourhood Services,Technical Services,Stock,926900,Stock in hand-Inventory system,02-Jun-2014,2751883-001/93474,764.08,MH SOUTHERN & CO LTD.
Neighbourhood Services,Technical Services,Stock,926900,Stock in hand-Inventory system,02-Jun-2014,2752012-12612062,"5,956.03",WOLSELEY UK LTD.
Neighbourhood Services,Technical Services,Supplies and Services,304221,Equipment and Materials,02-Jun-2014,2751661-19729066,"2,733.33",AGGREGATE INDUSTRIES UK LTD.
Neighbourhood Services,Technical Services,Supplies and Services,304221,Equipment and Materials,02-Jun-2014,2751661-19759250,955.28,AGGREGATE INDUSTRIES UK LTD.
Neighbourhood Services,Technical Services,Supplies and Services,304221,Equipment and Materials,02-Jun-2014,2751792-105010,817.28,GREEN TECH LTD.
Neighbourhood Services,Technical Services,Supplies and Services,304221,Equipment and Materials,02-Jun-2014,2751843-4875,"1,321.40",KEN THOMAS (SITE CLEARANCE LTD).
Neighbourhood Services,Technical Services,Supplies and Services,304221,Equipment and Materials,02-Jun-2014,2751897-NC33/C259/BW,"1,926.27",NEDCO CONTRACTS (NE) LTD.
Neighbourhood Services,Technical Services,Supplies and Services,304221,Equipment and Materials,02-Jun-2014,2751897-NC34/C259/BW,988.00,NEDCO CONTRACTS (NE) LTD.
Neighbourhood Services,Technical Services,Supplies and Services,304221,Equipment and Materials,02-Jun-2014,2751911-DI20188934,851.75,NORTHERN POWERGRID (NORTHEAST) LTD.
Neighbourhood Services,Technical Services,Supplies and Services,304337,Equipment and Materials,02-Jun-2014,2751912-DI20189134,"1,656.82",NORTHERN POWERGRID (NORTHEAST) LTD.
Neighbourhood Services,Technical Services,Supplies and Services,304337,Equipment and Materials,02-Jun-2014,2751912-DI20189136,"2,888.87",NORTHERN POWERGRID (NORTHEAST) LTD.
Neighbourhood Services,Technical Services,Supplies and Services,304337,Equipment and Materials,02-Jun-2014,2751912-DI20189137,"1,583.28",NORTHERN POWERGRID (NORTHEAST) LTD.
Neighbourhood Services,Technical Services,Third Party Payments,430100,Rendered by Private Contractors,02-Jun-2014,2751958-600,936.00,SCHMUCK WHORLTON LTD.
Neighbourhood Services,Technical Services,Third Party Payments,430100,Rendered by Private Contractors,02-Jun-2014,2751958-610,500.00,SCHMUCK WHORLTON LTD.
Neighbourhood Services,Technical Services,Third Party Payments,430100,Rendered by Private Contractors,02-Jun-2014,2751958-637,864.00,SCHMUCK WHORLTON LTD.
RED HRA,HRA Capital,Construction Work,908105,Construction work,02-Jun-2014,2751753-199430,"24,444.65",DELTA ELECTRICAL & MECHANICAL SERVICES.
RED HRA,HRA Capital,Construction Work,908105,Construction work,02-Jun-2014,2751768-2,"28,762.68",EDENDENE CONSTRUCTION SERVICES LTD.
Regeneration & Economic Development,Economic Development and Housing,Construction Work,908105,Construction work,02-Jun-2014,2751946-Z707333,"2,795.00",RIJO 42.
Regeneration & Economic Development,Economic Development and Housing,Supplies and Services,304337,Equipment and Materials,02-Jun-2014,2751944-346218,527.03,RICHARD LANG & SON LTD.
Regeneration & Economic Development,Economic Development and Housing,Supplies and Services,332047,Printing Stationery and Gen Off Exps,02-Jun-2014,2751974-87308,760.80,STANDING STONE DRAWING OFFICE SUPPLIES LTD.
Regeneration & Economic Development,Transport and Contracted Services,Supplies and Services,336005,Advertising,02-Jun-2014,2751882-51578,753.00,MERCHANDISE MANIA LTD.
Assistant Chief Executive,Partnerships & Community Engagement Div.,Cap Exp on Grants & Other Financial Assistance (REFCUS),918004,Contributions to other bodies,03-Jun-2014,2753067-VOUCHER13NB-EDRC015,"2,000.00",TRIMDON COMMUNITY GARDENS.
Children and Adult Services,Childrens Services,Premises,120009,Energy Costs,03-Jun-2014,2752923-79305943270-28/4/14,"1,659.93",NPOWER.
Children and Adult Services,Childrens Services,Supplies and Services,384534,Miscellaneous Expenses,03-Jun-2014,231750-CAS-05-2014-093,500.00,REDACTED - PAYMENT TO INDIVIDUAL
Children and Adult Services,Childrens Services,Third Party Payments,440028,Other Third Party Payments,03-Jun-2014,2752449-953723,840.75,REDACTED - PAYMENT TO INDIVIDUAL
Children and Adult Services,Education,Construction Work,908105,Construction work,03-Jun-2014,2752840-EE1,"34,602.75",JOHN WADE (HAULAGE) LTD.
Children and Adult Services,Education,Employees,040001,Recruitment Instruction and Training,03-Jun-2014,2753068-TARINV/15291460,652.50,TSL EDUCATION LTD.
Children and Adult Services,Education,Transport,230008,Contract Hire,03-Jun-2014,2752956-130507,896.00,PRATTS TAXIS.
Children and Adult Services,Head of Adults,Supplies and Services,384616,Miscellaneous Expenses,03-Jun-2014,2753058-SH421314,"4,285.20",THREE RIVERS HOUSING ASSOCIATION LTD.
Children and Adult Services,Public Health,Premises,125009,Rents,03-Jun-2014,2752910-48327627,774.62,NHS PROPERTY SERVICES LTD.
Children and Adult Services,Public Health,Third Party Payments,460802,Contract Payments,03-Jun-2014,2752658,"2,175.00",BEWICK CRESCENT SURGERY.
Children and Adult Services,Public Health,Third Party Payments,460803,Contract Payments,03-Jun-2014,2752739-DISCUSAPRIL2014,700.00,DR RT DAWSON.
Children and Adult Services,Public Health,Third Party Payments,460802,Contract Payments,03-Jun-2014,2753023-7710004192,"14,233.47",SOUTH TYNESIDE NHS TRUST.
Children and Adult Services,Redundant-LA,Supplies and Services,384302,Miscellaneous Expenses,03-Jun-2014,2752673-ANGLING,"2,114.00",C JOHNSTON T/A CAST2CATCH.
Children and Adult Services,Redundant-LA,Supplies and Services,384491,Miscellaneous Expenses,03-Jun-2014,2752706-INVOICE,"1,344.00",CORE CARE LTD..
Children and Adult Services,Redundant-LA,Supplies and Services,340001,Postages,03-Jun-2014,2752953-CAS-06-2014-017,500.00,POSTAGE BY PHONE PITNEY BOWES PLC.
Corporate Resources,I.C.T. Services,Debtors,930174,MFD - Paper Holdings,03-Jun-2014,2753032-6677097,924.00,SUPPLIES TEAM LTD.
Corporate Resources,I.C.T. Services,Supplies and Services,304252,Equipment and Materials,03-Jun-2014,2752847-36530,510.00,KBR IT & NETWORKING SOLUTIONS.
Corporate Resources,I.C.T. Services,Supplies and Services,342033,Computers and Communications,03-Jun-2014,2752945-OP/1726526,"1,419.30",PHOENIX SOFTWARE LTD.
Corporate Resources,I.C.T. Services,Supplies and Services,340001,Postages,03-Jun-2014,2752987-9047272586,"19,357.43",ROYAL MAIL GROUP PLC.
Corporate Resources,Legal & Democratic Services,Supplies and Services,338057,Services,03-Jun-2014,2752737-PB15,"1,258.40",DR PAUL BARRETT.
Dedicated Schools Grant,Dedicated Schools Grant,Third Party Payments,425005,Rendered by Voluntary Organisations,03-Jun-2014,2752819-4140000187,"15,000.00",HURWORTH HOUSE PRIORY.
Neighbourhood Services,Culture & Sport,Premises,120037,Energy Costs,03-Jun-2014,2752688-2487155,"1,518.00",CERTAS ENERGY UK LTD.
Neighbourhood Services,Culture & Sport,Third Party Payments,460305,Contract Payments,03-Jun-2014,2752928-CN18697199,577.50,OCS GROUP UK LTD T/A CANNON HYGIENE.
Neighbourhood Services,Direct Services,Stock,926004,Stock,03-Jun-2014,2752675-12164,509.58,CALDER TRAILER BOARDS.
Neighbourhood Services,Direct Services,Stock,926004,Stock,03-Jun-2014,2752807-680819,"19,624.71",HARVEST ENERGY LTD.
Neighbourhood Services,Direct Services,Stock,926004,Stock,03-Jun-2014,2752807-684258,"1,254.40",HARVEST ENERGY LTD.
Neighbourhood Services,Direct Services,Third Party Payments,430100,Rendered by Private Contractors,03-Jun-2014,2752730-244611,"1,556.03",DENNIS EAGLE LTD.
Neighbourhood Services,Direct Services,Third Party Payments,430100,Rendered by Private Contractors,03-Jun-2014,2752743-5436,"1,404.00",DUNNINGHAM DECORATORS LTD.
Neighbourhood Services,Direct Services,Third Party Payments,430100,Rendered by Private Contractors,03-Jun-2014,2752881-1353813305,727.36,MITCHELL POWERSYSTEMS.
Neighbourhood Services,Direct Services,Third Party Payments,430100,Rendered by Private Contractors,03-Jun-2014,2752920-IW01825771,565.32,NORTHGATE VEHICLE HIRE LTD.
Neighbourhood Services,Direct Services,Transport,210057,Repair and Maintenance of Vehicles,03-Jun-2014,2753034-1618,560.85,SUTCLIFFE PLAY (SCOTLAND ) LTD.
Neighbourhood Services,Projects and Business services,Supplies and Services,338027,Services,03-Jun-2014,2752632-HL157698,"1,076.10",ALCONTROL LABORATORIES.
Neighbourhood Services,Projects and Business services,Supplies and Services,340001,Postages,03-Jun-2014,2752987-9047282618,"1,757.44",ROYAL MAIL GROUP PLC.
Neighbourhood Services,Technical Services,Stock,926900,Stock in hand-Inventory system,03-Jun-2014,2752653-152996,553.30,BDPLASTICS LTD.
Neighbourhood Services,Technical Services,Stock,926900,Stock in hand-Inventory system,03-Jun-2014,2752716-276055,697.58,DACRYLATE PAINTS LTD.
Neighbourhood Services,Technical Services,Stock,926900,Stock in hand-Inventory system,03-Jun-2014,2752919-1185239,573.31,NORTHERN TOOLS & ACCESSORIES.
Neighbourhood Services,Technical Services,Supplies and Services,304358,Equipment and Materials,03-Jun-2014,2752792-9671,690.00,GEORGE VARDY HAULAGE.
Neighbourhood Services,Technical Services,Supplies and Services,304358,Equipment and Materials,03-Jun-2014,2752792-9673,670.00,GEORGE VARDY HAULAGE.
Neighbourhood Services,Technical Services,Supplies and Services,304358,Equipment and Materials,03-Jun-2014,2752792-9674,707.50,GEORGE VARDY HAULAGE.
Neighbourhood Services,Technical Services,Supplies and Services,304260,Equipment and Materials,03-Jun-2014,2752807-683064,620.00,HARVEST ENERGY LTD.
Neighbourhood Services,Technical Services,Supplies and Services,304221,Equipment and Materials,03-Jun-2014,2752810-SIN7039859,"4,048.00",HCS DRAIN SERVICES LTD.
Neighbourhood Services,Technical Services,Supplies and Services,304358,Equipment and Materials,03-Jun-2014,2752822-116,725.40,IAN WILSON.
Neighbourhood Services,Technical Services,Supplies and Services,304358,Equipment and Materials,03-Jun-2014,2752822-C207,"5,841.80",IAN WILSON.
Neighbourhood Services,Technical Services,Supplies and Services,304358,Equipment and Materials,03-Jun-2014,2752822-C208,"4,515.80",IAN WILSON.
Neighbourhood Services,Technical Services,Supplies and Services,304358,Equipment and Materials,03-Jun-2014,2752839-16039,769.60,JOHN R BUTTERFIELD LTD.
Neighbourhood Services,Technical Services,Supplies and Services,304358,Equipment and Materials,03-Jun-2014,2752839-16062,975.00,JOHN R BUTTERFIELD LTD.
Neighbourhood Services,Technical Services,Supplies and Services,304358,Equipment and Materials,03-Jun-2014,2752839-16071,838.50,JOHN R BUTTERFIELD LTD.
Neighbourhood Services,Technical Services,Supplies and Services,304358,Equipment and Materials,03-Jun-2014,2752839-16076,780.40,JOHN R BUTTERFIELD LTD.
Neighbourhood Services,Technical Services,Supplies and Services,304358,Equipment and Materials,03-Jun-2014,2752839-21396,"1,015.00",JOHN R BUTTERFIELD LTD.
Neighbourhood Services,Technical Services,Supplies and Services,304358,Equipment and Materials,03-Jun-2014,2752839-21398,916.00,JOHN R BUTTERFIELD LTD.
Neighbourhood Services,Technical Services,Supplies and Services,304358,Equipment and Materials,03-Jun-2014,2752839-21402,589.00,JOHN R BUTTERFIELD LTD.
Neighbourhood Services,Technical Services,Supplies and Services,304358,Equipment and Materials,03-Jun-2014,2752839-21403,"1,033.50",JOHN R BUTTERFIELD LTD.
Neighbourhood Services,Technical Services,Supplies and Services,304358,Equipment and Materials,03-Jun-2014,2752839-21406,545.70,JOHN R BUTTERFIELD LTD.
Neighbourhood Services,Technical Services,Supplies and Services,304358,Equipment and Materials,03-Jun-2014,2752839-21411,998.50,JOHN R BUTTERFIELD LTD.
Neighbourhood Services,Technical Services,Supplies and Services,304358,Equipment and Materials,03-Jun-2014,2752839-21443,951.40,JOHN R BUTTERFIELD LTD.
Neighbourhood Services,Technical Services,Supplies and Services,304358,Equipment and Materials,03-Jun-2014,2752839-21444,585.70,JOHN R BUTTERFIELD LTD.
Neighbourhood Services,Technical Services,Supplies and Services,304358,Equipment and Materials,03-Jun-2014,2752839-21445,896.20,JOHN R BUTTERFIELD LTD.
Neighbourhood Services,Technical Services,Supplies and Services,304358,Equipment and Materials,03-Jun-2014,2752839-21446,851.00,JOHN R BUTTERFIELD LTD.
Neighbourhood Services,Technical Services,Supplies and Services,304358,Equipment and Materials,03-Jun-2014,2752839-21481,886.30,JOHN R BUTTERFIELD LTD.
Neighbourhood Services,Technical Services,Supplies and Services,304358,Equipment and Materials,03-Jun-2014,2752839-21483,851.00,JOHN R BUTTERFIELD LTD.
Neighbourhood Services,Technical Services,Supplies and Services,304358,Equipment and Materials,03-Jun-2014,2752839-21489,624.40,JOHN R BUTTERFIELD LTD.
Neighbourhood Services,Technical Services,Supplies and Services,304221,Equipment and Materials,03-Jun-2014,2752840-0000078192,"101,207.00",JOHN WADE (HAULAGE) LTD.
Neighbourhood Services,Technical Services,Supplies and Services,304221,Equipment and Materials,03-Jun-2014,2752853-9030784769,517.60,LAFARGE TARMAC TRADING LTD.
Neighbourhood Services,Technical Services,Supplies and Services,304221,Equipment and Materials,03-Jun-2014,2752854-9031019281,642.00,LAFARGE TARMAC TRADING LTD.
Neighbourhood Services,Technical Services,Supplies and Services,304221,Equipment and Materials,03-Jun-2014,2752854-9031025225,642.00,LAFARGE TARMAC TRADING LTD.
Neighbourhood Services,Technical Services,Supplies and Services,304337,Equipment and Materials,03-Jun-2014,2752917-DI20189111,"5,947.54",NORTHERN POWERGRID (NORTHEAST) LTD.
Neighbourhood Services,Technical Services,Third Party Payments,430100,Rendered by Private Contractors,03-Jun-2014,2752810-SIN7040025,"1,652.00",HCS DRAIN SERVICES LTD.
Neighbourhood Services,Technical Services,Third Party Payments,430100,Rendered by Private Contractors,03-Jun-2014,2752840-JW6073,"40,084.30",JOHN WADE (HAULAGE) LTD.
RED HRA,Housing Revenue Account,Supplies and Services,344033,Telephones,03-Jun-2014,2752674-12816338,621.47,CABLE & WIRELESS UK.
RED HRA,HRA Capital,Construction Work,908105,Construction work,03-Jun-2014,2752769-0000132403,591.82,ENVIROVENT LTD.
RED HRA,HRA Centrally Managed,Supplies and Services,384999,Miscellaneous Expenses,03-Jun-2014,2752888-1023250,824.12,REDACTED - PAYMENT TO INDIVIDUAL
Regeneration & Economic Development,Economic Development and Housing,Fees,901002,Professional fees,03-Jun-2014,2752844-DUR,577.50,JUDY MACKLEY.
Regeneration & Economic Development,Economic Development and Housing,Supplies and Services,338066,Services,03-Jun-2014,2752900,"18,409.74",NEPRO LTD.
Regeneration & Economic Development,Economic Development and Housing,Supplies and Services,352001,Conference Expenses,03-Jun-2014,2752926-CF11008,870.00,OCEAN MEDIA GROUP LTD.
Regeneration & Economic Development,Economic Development and Housing,Supplies and Services,384437,Miscellaneous Expenses,03-Jun-2014,2753088-OrderNo1363549,"4,028.05",WESTERN UNION BUSINESS SOLUTIONS.
Regeneration & Economic Development,Economic Development and Housing,Third Party Payments,460153,Contract Payments,03-Jun-2014,2753043-608,"11,200.00",TERRA FIRMA ENVIRONMENTAL LTD.
Regeneration & Economic Development,Spatial Policy Planning Assets & Environment,Supplies and Services,338066,Services,03-Jun-2014,2752681-ILLANSCAPES1,"2,450.00",CASSOP ENVIRONMENTAL EXTRA.
Regeneration & Economic Development,Spatial Policy Planning Assets & Environment,Supplies and Services,336005,Advertising,03-Jun-2014,2752907-4801216,976.90,NEWSQUEST (YORKSHIRE & NORTH EAST) LTD.
Regeneration & Economic Development,Transport and Contracted Services,Creditors,952025,Creditor-private street works,03-Jun-2014,2752842-RED-06-2014-012,"5,138.69",JONES DAY.
Assistant Chief Executive,Partnerships & Community Engagement Div.,Supplies and Services,384085,Miscellaneous Expenses,04-Jun-2014,231800-SMIT04-14NEAT02-14,"2,200.00",DURHAM FOODBANK.
Assistant Chief Executive,Partnerships & Community Engagement Div.,Supplies and Services,384085,Miscellaneous Expenses,04-Jun-2014,231873-MAYP04-14,500.00,NORTH LODGE RESIDENTS ASSOCIATION.
Assistant Chief Executive,Partnerships & Community Engagement Div.,Supplies and Services,384085,Miscellaneous Expenses,04-Jun-2014,231886-ADAE02-14NICH01-14,"1,000.00",SHILDON INDOOR BOWLING CLUB.
Assistant Chief Executive,Partnerships & Community Engagement Div.,Supplies and Services,384085,Miscellaneous Expenses,04-Jun-2014,231892-FOSN01-14GRAB01-14,900.00,SPENNYMOOR TOWN BAND.
Assistant Chief Executive,Partnerships & Community Engagement Div.,Supplies and Services,384086,Miscellaneous Expenses,04-Jun-2014,2753284-13NB-GAMP015,"4,000.00",GREAT AYCLIFFE TOWN COUNCIL.
Assistant Chief Executive,Partnerships & Community Engagement Div.,Supplies and Services,384086,Miscellaneous Expenses,04-Jun-2014,2753563-13NB-TEES018,"2,652.00",TEESDALE DISABILITY ACCESS FORUM.
Assistant Chief Executive,Policy & Communications Division,Supplies and Services,312009,Newspapers Books and Periodicals,04-Jun-2014,2753439-Q344554,"11,232.00",NLA MEDIA ACCESS LTD.
Assistant Chief Executive,Policy & Communications Division,Supplies and Services,312009,Newspapers Books and Periodicals,04-Jun-2014,2753439-Q344555,"8,937.00",NLA MEDIA ACCESS LTD.
Children and Adult Services,Central Charges (CYPS),Supplies and Services,372009,Subscriptions,04-Jun-2014,2753140-SI11829,"15,050.00",AVCO SYSTEMS LTD.
Children and Adult Services,Childrens Services,Employees,080025,Agency Staff,04-Jun-2014,2753205-538402,"104,071.30",COMENSURA LTD.
Children and Adult Services,Childrens Services,Employees,080025,Agency Staff,04-Jun-2014,2753391-PIN18350,947.50,M2 EDUCATION LTD.
Children and Adult Services,Childrens Services,Employees,080025,Agency Staff,04-Jun-2014,2753391-PIN-18703,852.75,M2 EDUCATION LTD.
Children and Adult Services,Childrens Services,Premises,145015,Cleaning and Domestic Supplies,04-Jun-2014,2753285-06/513187,843.16,GREENHAM TRADING LTD.
Children and Adult Services,Childrens Services,Premises,120009,Energy Costs,04-Jun-2014,2753466-C1266,635.31,PETERLEE TOWN COUNCIL.
Children and Adult Services,Childrens Services,Premises,145009,Cleaning and Domestic Supplies,04-Jun-2014,2753469-61187055,"1,610.41",PHS GROUP PLC.
Children and Adult Services,Childrens Services,Premises,108099,Service Repairs and Maintenance,04-Jun-2014,2753579-000287,545.00,TINTS WINDOW TINTING.
Children and Adult Services,Childrens Services,Supplies and Services,364340,Grants to Voluntary Organisations,04-Jun-2014,2753134-106733,570.00,ARRIVA DURHAM COUNTY LTD.
Children and Adult Services,Childrens Services,Supplies and Services,304259,Equipment and Materials,04-Jun-2014,2753250-SI11795,"1,347.75",ELECTROMASTER TELECOMMUNICATIONS LTD.
Children and Adult Services,Childrens Services,Supplies and Services,338078,Services,04-Jun-2014,2753485-3867,"16,140.96",QW SECURITY LTD.
Children and Adult Services,Childrens Services,Supplies and Services,342013,Computers and Communications,04-Jun-2014,2753552-6697105,620.88,SUPPLIES TEAM LTD.
Children and Adult Services,Childrens Services,Third Party Payments,425040,Rendered by Voluntary Organisations,04-Jun-2014,2753269-3063,"3,128.40",FOSTER CARE SOLUTIONS LTD.
Children and Adult Services,Childrens Services,Third Party Payments,425040,Rendered by Voluntary Organisations,04-Jun-2014,2753269-3070,"3,128.40",FOSTER CARE SOLUTIONS LTD.
Children and Adult Services,Childrens Services,Third Party Payments,425041,Rendered by Voluntary Organisations,04-Jun-2014,2753279-1800307281,"18,000.00",GLOUCESTERSHIRE COUNTY COUNCIL.
Children and Adult Services,Childrens Services,Third Party Payments,425019,Rendered by Voluntary Organisations,04-Jun-2014,2753440-0000017241,"45,674.10",NORTH EAST AUTISM SOCIETY.
Children and Adult Services,Childrens Services,Third Party Payments,440999,Other Third Party Payments,04-Jun-2014,2753524-FOST,848.00,REDACTED - PAYMENT TO INDIVIDUAL
Children and Adult Services,Childrens Services,Transfer Payments,515207,Social Services Clients,04-Jun-2014,2753462-21420251,"1,960.00",PARK RETAIL LTD.
Children and Adult Services,Commissioning inc Supporting People,Employees,040001,Recruitment Instruction and Training,04-Jun-2014,2753273-17042,"7,400.00",GATENBY SANDERSON LTD.
Children and Adult Services,Commissioning inc Supporting People,Supplies and Services,384700,Miscellaneous Expenses,04-Jun-2014,2753241-DCC2014-1,"9,050.00",DURHAM VINEYARD.
Children and Adult Services,Education,Construction Work,908105,Construction work,04-Jun-2014,2753314-DURH/0509,"228,680.41",INSPIREDSPACES DURHAM LTD.
Children and Adult Services,Education,Construction Work,908105,Construction work,04-Jun-2014,2753314-DURH/0510,"63,128.00",INSPIREDSPACES DURHAM LTD.
Children and Adult Services,Education,Construction Work,908105,Construction work,04-Jun-2014,2753616-280119,788.00,WYG ENVIRONMENT PLANNING TRANSPORT LTD.
Children and Adult Services,Education,Employees,040001,Recruitment Instruction and Training,04-Jun-2014,2753586-TARINV/15310364,652.50,TSL EDUCATION LTD.
Children and Adult Services,Education,Premises,125009,Rents,04-Jun-2014,2753572-3053,"1,233.30",THE WORK PLACE (AYCLIFFE) LTD.
Children and Adult Services,Education,Supplies and Services,342223,Computers and Communications,04-Jun-2014,2753313-1851678,726.12,INSIGHT DIRECT (UK) LTD.
Children and Adult Services,Education,Supplies and Services,342223,Computers and Communications,04-Jun-2014,2753313-1852159,932.34,INSIGHT DIRECT (UK) LTD.
Children and Adult Services,Education,Transport,230007,Contract Hire,04-Jun-2014,2753118-020,"1,155.00",ALANS TAXIS.
Children and Adult Services,Education,Transport,230008,Contract Hire,04-Jun-2014,2753419-A039/05/14,"1,536.00",MR M ALLISON.
Children and Adult Services,Education,Transport,230008,Contract Hire,04-Jun-2014,2753419-N053/05/14,"1,216.00",MR M ALLISON.
Children and Adult Services,Education,Transport,230008,Contract Hire,04-Jun-2014,2753419-N059/05/14,"1,120.00",MR M ALLISON.
Children and Adult Services,Education,Transport,230008,Contract Hire,04-Jun-2014,2753419-N081/05/14,"1,184.00",MR M ALLISON.
Children and Adult Services,Education,Transport,230008,Contract Hire,04-Jun-2014,2753419-N197/05/14,"1,312.00",MR M ALLISON.
Children and Adult Services,Education,Transport,230007,Contract Hire,04-Jun-2014,2753458-5639,"1,160.00",OVERLANDER LTD.
Children and Adult Services,Education,Transport,230007,Contract Hire,04-Jun-2014,2753519-1134-30/4/14,585.00,SCOTT LEE BURTON.
Children and Adult Services,Education,Transport,230008,Contract Hire,04-Jun-2014,2753602-878,"1,600.00",WAYNE`S TAXIS.
Children and Adult Services,Education,Transport,230008,Contract Hire,04-Jun-2014,2753602-880,"2,288.00",WAYNE`S TAXIS.
Children and Adult Services,Education,Transport,230006,Contract Hire,04-Jun-2014,2753602-881,954.00,WAYNE`S TAXIS.
Children and Adult Services,Head of Adults,Premises,125009,Rents,04-Jun-2014,2753224-GLSRENT14/15,"4,546.88",DERWENTSIDE HOMES LTD.
Children and Adult Services,Head of Adults,Supplies and Services,384616,Miscellaneous Expenses,04-Jun-2014,2753270-SH511314,"5,142.24",FOUR HOUSING GROUP.
Children and Adult Services,Head of Adults,Supplies and Services,344033,Telephones,04-Jun-2014,2753437-I2466298,604.95,NIMANS LTD T/A ROCOM.
Children and Adult Services,Head of Adults,Transfer Payments,515209,Social Services Clients,04-Jun-2014,2753122-CAS-05-2014-087.,551.25,REDACTED - PAYMENT TO INDIVIDUAL
Children and Adult Services,Planning & Service Strategy,Supplies and Services,338089,Services,04-Jun-2014,2753592-91279288,750.00,UNIVERSITY OF NORTHUMBRIA.
Children and Adult Services,Planning & Service Strategy,Supplies and Services,338089,Services,04-Jun-2014,2753592-91279289,750.00,UNIVERSITY OF NORTHUMBRIA.
Children and Adult Services,Planning & Service Strategy,Supplies and Services,338091,Services,04-Jun-2014,2753593-06105835-003,"13,300.00",UNIVERSITY OF TEESSIDE.
Children and Adult Services,Planning & Service Strategy,Supplies and Services,338091,Services,04-Jun-2014,2753593-6758,"3,850.00",UNIVERSITY OF TEESSIDE.
Children and Adult Services,Planning & Service Strategy,Supplies and Services,338091,Services,04-Jun-2014,2753593-6760,770.00,UNIVERSITY OF TEESSIDE.
Children and Adult Services,Public Health,Supplies and Services,372009,Subscriptions,04-Jun-2014,2753568-19819,"9,019.00",THE CHRISTIE NHS FOUNDATION TRUST.
Children and Adult Services,Public Health,Third Party Payments,460803,Contract Payments,04-Jun-2014,2753153,"1,577.50",BEWICK CRESCENT SURGERY.
Children and Adult Services,Public Health,Third Party Payments,460803,Contract Payments,04-Jun-2014,231812-FEQ89/05/14/SS,570.50,G WHITFIELD LTD.
Children and Adult Services,Public Health,Third Party Payments,460803,Contract Payments,04-Jun-2014,2753160-FHD21/12/2013,586.00,BOOTS THE CHEMISTS LTD.
Children and Adult Services,Public Health,Third Party Payments,460803,Contract Payments,04-Jun-2014,2753162-FA773/NRT/04/14,"1,235.34",BOOTS THE CHEMISTS LTD.
Children and Adult Services,Public Health,Third Party Payments,460803,Contract Payments,04-Jun-2014,2753163-FLO73,"1,016.74",BOOTS THE CHEMISTS LTD.
Children and Adult Services,Public Health,Third Party Payments,460803,Contract Payments,04-Jun-2014,2753164-FA268/0414/NRT,700.90,BOWBURN PHARMACY.
Children and Adult Services,Public Health,Third Party Payments,460803,Contract Payments,04-Jun-2014,2753187-FE898/JAN/14/NRT,990.91,CENTRECHEM DISPENSING CHEMIST.
Children and Adult Services,Public Health,Third Party Payments,460802,Contract Payments,04-Jun-2014,2753189-2013-14,550.00,CHEVERLEY PARK MEDICAL CENTRE.
Children and Adult Services,Public Health,Third Party Payments,460803,Contract Payments,04-Jun-2014,2753189-2013-14/SS,550.50,CHEVERLEY PARK MEDICAL CENTRE.
Children and Adult Services,Public Health,Third Party Payments,460802,Contract Payments,04-Jun-2014,2753189-A83055/Q1,900.00,CHEVERLEY PARK MEDICAL CENTRE.
Children and Adult Services,Public Health,Third Party Payments,460803,Contract Payments,04-Jun-2014,2753202-FGN07/0414/NRT,883.67,CO-OPERATIVE PHARMACY.
Children and Adult Services,Public Health,Third Party Payments,460802,Contract Payments,04-Jun-2014,2753231-A83638/Q4/2013/HC,600.00,DR KS BALIGA.
Children and Adult Services,Public Health,Third Party Payments,460803,Contract Payments,04-Jun-2014,2753231-A83638/Q4/2014,581.50,DR KS BALIGA.
Children and Adult Services,Public Health,Third Party Payments,460802,Contract Payments,04-Jun-2014,2753232-A83017/Q4/2014/HC,"3,450.00",DR NK MAHTO.
Children and Adult Services,Public Health,Third Party Payments,460803,Contract Payments,04-Jun-2014,2753317-FDH51/0414/NRT,628.70,INTRAHEALTH LTD.
Children and Adult Services,Public Health,Third Party Payments,460803,Contract Payments,04-Jun-2014,2753372-FFC99/APRIL,577.20,LLOYDS PHARMACY.
Children and Adult Services,Public Health,Third Party Payments,460803,Contract Payments,04-Jun-2014,2753373-FET02/APRIL/14/NRT,587.06,LLOYDS PHARMACY.
Children and Adult Services,Public Health,Third Party Payments,460803,Contract Payments,04-Jun-2014,2753374-FHM85/APR/14/SS,730.00,LLOYDS PHARMACY.
Children and Adult Services,Public Health,Third Party Payments,460803,Contract Payments,04-Jun-2014,2753383-FG490/NRT/APRIL,"1,948.89",M & M PHARMACIES LTD.
Children and Adult Services,Public Health,Third Party Payments,460803,Contract Payments,04-Jun-2014,2753384-FHV08/30/14,529.50,M & M PHARMACIES LTD.
Children and Adult Services,Public Health,Third Party Payments,460803,Contract Payments,04-Jun-2014,2753385-FRQ38/APRIL2014,864.00,M & M PHARMACIES LTD.
Children and Adult Services,Public Health,Third Party Payments,460803,Contract Payments,04-Jun-2014,2753385-FRQ38APRIL2014,"1,360.82",M & M PHARMACIES LTD.
Children and Adult Services,Public Health,Third Party Payments,460803,Contract Payments,04-Jun-2014,2753386-FVW28/2014/NRT,891.49,M & M PHARMACIES LTD.
Children and Adult Services,Public Health,Third Party Payments,460803,Contract Payments,04-Jun-2014,2753386-FVW28/L2SS/04/14,648.00,M & M PHARMACIES LTD.
Children and Adult Services,Public Health,Third Party Payments,460802,Contract Payments,04-Jun-2014,2753429-A83041/Q4/2014/HC,"1,050.00",MURTON MEDICAL GROUP.
Children and Adult Services,Public Health,Third Party Payments,460802,Contract Payments,04-Jun-2014,2753442-A83020/Q4/2014/HC,"2,725.00",NORTH HOUSE SURGERY.
Children and Adult Services,Public Health,Third Party Payments,460803,Contract Payments,04-Jun-2014,2753452-A83618/Q4/2014/SS,889.50,OAKFIELDS HEALTH CENTRE.
Children and Adult Services,Public Health,Third Party Payments,460803,Contract Payments,04-Jun-2014,2753501-FL345/0414/NRT,"1,156.01",ROBERTS & ROBERTS LTD T/A HIGGINBOTTOM PHARMACY.
Children and Adult Services,Public Health,Third Party Payments,460803,Contract Payments,04-Jun-2014,2753537-A83619,853.00,SOUTHDENE MEDICAL CENTRE.
Children and Adult Services,Public Health,Third Party Payments,460802,Contract Payments,04-Jun-2014,2753545-A83023,"3,425.00",STANLEY MEDICAL GROUP.
Children and Adult Services,Public Health,Third Party Payments,460803,Contract Payments,04-Jun-2014,2753566-FLL39/04/14/NRT,531.38,TESCO PHARMACY.
Children and Adult Services,Public Health,Third Party Payments,460803,Contract Payments,04-Jun-2014,2753567-A83042/Q4/2013/14,740.00,THE CARODOC PRACTICE.
Children and Adult Services,Public Health,Third Party Payments,460802,Contract Payments,04-Jun-2014,2753571-INV,"1,000.00",THE WEARDALE PRACTICE.
Corporate Resources,Centrally Administered Costs,Supplies and Services,384199,Miscellaneous Expenses,04-Jun-2014,2753195-C/BC124375,"24,166.66",CIVICA UK LTD.
Corporate Resources,Human Resources,Supplies and Services,352001,Conference Expenses,04-Jun-2014,2753236-10009835,"1,000.00",DURHAM & DARLINGTON FIRE & RESCUE.
Corporate Resources,Human Resources,Supplies and Services,384199,Miscellaneous Expenses,04-Jun-2014,2753448-12170578,"5,602.40",NORTHGATE INFORMATION SOLUTIONS UK LTD.
Corporate Resources,I.C.T. Services,Construction Work,908105,Construction work,04-Jun-2014,2753554-119685,"4,960.00",SWITCHSHOP LTD.
Corporate Resources,I.C.T. Services,Construction Work,908105,Construction work,04-Jun-2014,2753554-119708,"1,125.00",SWITCHSHOP LTD.
Corporate Resources,I.C.T. Services,Construction Work,908105,Construction work,04-Jun-2014,2753559-PSI-9091920,557.00,TECHNOLOGY SERVICES GROUP LTD.
Corporate Resources,I.C.T. Services,Stock,926900,Stock in hand-Inventory system,04-Jun-2014,2753289-INV0153848,575.72,GV MULTI MEDIA LTD.
Corporate Resources,I.C.T. Services,Stock,926900,Stock in hand-Inventory system,04-Jun-2014,2753311-SIN331984,"3,170.10",IDN SUPPLIES LTD.
Corporate Resources,I.C.T. Services,Stock,926900,Stock in hand-Inventory system,04-Jun-2014,2753313-1849949,744.00,INSIGHT DIRECT (UK) LTD.
Corporate Resources,I.C.T. Services,Stock,926900,Stock in hand-Inventory system,04-Jun-2014,2753313-1853059,985.74,INSIGHT DIRECT (UK) LTD.
Corporate Resources,I.C.T. Services,Stock,926900,Stock in hand-Inventory system,04-Jun-2014,2753552-6702930,552.47,SUPPLIES TEAM LTD.
Corporate Resources,I.C.T. Services,Stock,926900,Stock in hand-Inventory system,04-Jun-2014,2753595-2343535,"16,150.00",VIGLEN LTD.
Corporate Resources,I.C.T. Services,Stock,926900,Stock in hand-Inventory system,04-Jun-2014,2753595-2343640,"1,440.00",VIGLEN LTD.
Corporate Resources,I.C.T. Services,Stock,926900,Stock in hand-Inventory system,04-Jun-2014,2753617-V489296,698.00,XMA LTD.
Corporate Resources,I.C.T. Services,Supplies and Services,304252,Equipment and Materials,04-Jun-2014,231882-1050514,"1,750.00",RN SERVICE ENGINEERS LTD.
Corporate Resources,I.C.T. Services,Supplies and Services,304303,Equipment and Materials,04-Jun-2014,2753289-INV0153839,"4,521.22",GV MULTI MEDIA LTD.
Corporate Resources,I.C.T. Services,Supplies and Services,304303,Equipment and Materials,04-Jun-2014,2753289-INV0153958,"1,219.08",GV MULTI MEDIA LTD.
Corporate Resources,I.C.T. Services,Supplies and Services,332029,Printing Stationery and Gen Off Exps,04-Jun-2014,2753299-69652,"8,405.00",HILLPRINT MEDIA LTD.
Corporate Resources,I.C.T. Services,Supplies and Services,304303,Equipment and Materials,04-Jun-2014,2753313-1848783,"1,037.76",INSIGHT DIRECT (UK) LTD.
Corporate Resources,I.C.T. Services,Supplies and Services,342033,Computers and Communications,04-Jun-2014,2753313-1852373,607.56,INSIGHT DIRECT (UK) LTD.
Corporate Resources,I.C.T. Services,Supplies and Services,304303,Equipment and Materials,04-Jun-2014,2753349-36548,"2,159.07",KBR IT & NETWORKING SOLUTIONS.
Corporate Resources,I.C.T. Services,Supplies and Services,304303,Equipment and Materials,04-Jun-2014,2753349-36549,"2,795.00",KBR IT & NETWORKING SOLUTIONS.
Corporate Resources,I.C.T. Services,Supplies and Services,342215,Computers and Communications,04-Jun-2014,2753451-4740,"3,855.08",NTS (UK)LTD.
Corporate Resources,I.C.T. Services,Supplies and Services,332029,Printing Stationery and Gen Off Exps,04-Jun-2014,2753477-604088,550.00,POTTS PRINTERS LTD.
Corporate Resources,I.C.T. Services,Supplies and Services,332029,Printing Stationery and Gen Off Exps,04-Jun-2014,2753477-604150,"1,084.00",POTTS PRINTERS LTD.
Corporate Resources,I.C.T. Services,Supplies and Services,344033,Telephones,04-Jun-2014,2753557-05035720,"1,720.95",TALKTALK BUSINESS.
Corporate Resources,Legal & Democratic Services,Supplies and Services,328041,Clothing Uniforms and Laundry,04-Jun-2014,2753237-19/05/2014,"1,317.70",DURHAM BUSINESSWEAR LTD.
Corporate Resources,Legal & Democratic Services,Supplies and Services,384199,Miscellaneous Expenses,04-Jun-2014,2753351-2974,"2,566.80",KENYON INTERNATIONAL EMERGENCY SERVICES.
Corporate Resources,Legal & Democratic Services,Supplies and Services,340001,Postages,04-Jun-2014,2753505-9047321903,"50,526.41",ROYAL MAIL GROUP PLC.
Dedicated Schools Grant,Dedicated Schools Grant,Supplies and Services,384871,Miscellaneous Expenses,04-Jun-2014,2753251-CAS-05-2014-081,"1,430.00",EMERALD NURSERY.
Dedicated Schools Grant,Dedicated Schools Grant,Third Party Payments,410037,Rendered by Other Local Authorities,04-Jun-2014,2753302-1000077,"21,223.08",HORIZONS SPECIALIST ACADEMY TRUST.
Dedicated Schools Grant,Dedicated Schools Grant,Third Party Payments,440080,Other Third Party Payments,04-Jun-2014,2753465-21163,"18,856.04",PERCY HEDLEY FOUNDATION.
Dedicated Schools Grant,Dedicated Schools Grant,Transport,230010,Contract Hire,04-Jun-2014,2753310-PRU024,"1,168.00",IAN SOULSBY.
Dedicated Schools Grant,Dedicated Schools Grant,Transport,230010,Contract Hire,04-Jun-2014,2753396-031403,"3,075.00",MARK & JOHN CHISHOLM T/A (CHEVRON).
Dedicated Schools Grant,Dedicated Schools Grant,Transport,230010,Contract Hire,04-Jun-2014,2753396-031410,"1,180.00",MARK & JOHN CHISHOLM T/A (CHEVRON).
Neighbourhood Services,Culture & Sport,Employees,080025,Agency Staff,04-Jun-2014,2753149-SIN016800,"9,250.00",BEAMISH MUSEUM LTD.
Neighbourhood Services,Culture & Sport,Premises,108301,Service Repairs and Maintenance,04-Jun-2014,2753356-02,"1,550.00",LAURIE LAMBETH.
Neighbourhood Services,Culture & Sport,Premises,108301,Service Repairs and Maintenance,04-Jun-2014,2753393-4906,"4,827.20",MAKEPEACE MOTORS.
Neighbourhood Services,Culture & Sport,Supplies and Services,304259,Equipment and Materials,04-Jun-2014,231809-2362,521.00,FIRE PARTS.
Neighbourhood Services,Culture & Sport,Supplies and Services,304221,Equipment and Materials,04-Jun-2014,231889-914/12333,805.00,SITELINK COMMUNICATIONS LTD.
Neighbourhood Services,Culture & Sport,Supplies and Services,304221,Equipment and Materials,04-Jun-2014,231889-914-12332,"1,250.00",SITELINK COMMUNICATIONS LTD.
Neighbourhood Services,Culture & Sport,Supplies and Services,384199,Miscellaneous Expenses,04-Jun-2014,2753123-034,"1,800.00",AMIE SLAVIN.
Neighbourhood Services,Culture & Sport,Supplies and Services,324001,Provisions,04-Jun-2014,2753180-840268049,550.85,CARLSBERG UK LTD.
Neighbourhood Services,Culture & Sport,Supplies and Services,384199,Miscellaneous Expenses,04-Jun-2014,2753406-2208,800.00,MID NITE EXPRESS.
Neighbourhood Services,Culture & Sport,Supplies and Services,304337,Equipment and Materials,04-Jun-2014,2753464-000589089,895.19,PEN & SWORD BOOKS LTD.
Neighbourhood Services,Culture & Sport,Supplies and Services,338047,Services,04-Jun-2014,2753470-PHENT104388,781.69,PICTUREHOUSE ENTERTAINMENT LTD.
Neighbourhood Services,Culture & Sport,Supplies and Services,338099,Services,04-Jun-2014,2753528-102609,"1,041.50",SHOWSEC INTERNATIONAL LTD.
Neighbourhood Services,Culture & Sport,Supplies and Services,336005,Advertising,04-Jun-2014,2753550-336,520.00,SUMO DESIGN LTD.
Neighbourhood Services,Culture & Sport,Supplies and Services,304221,Equipment and Materials,04-Jun-2014,2753558-14006149,"3,187.16",TECHNOGYM UK LTD.
Neighbourhood Services,Culture & Sport,Supplies and Services,384700,Miscellaneous Expenses,04-Jun-2014,2753561,576.00,TEESDALE ATHLETIC CLUB.
Neighbourhood Services,Culture & Sport,Supplies and Services,384199,Miscellaneous Expenses,04-Jun-2014,2753598-FESTIVAL,"1,205.25",WANNASEE LTD.
Neighbourhood Services,Culture & Sport,Third Party Payments,460305,Contract Payments,04-Jun-2014,2753482-4236229,"2,970.18",PRS FOR MUSIC.
Neighbourhood Services,Direct Services,Employees,040149,Recruitment Instruction and Training,04-Jun-2014,2753370-16836,798.60,LITS LTD.
Neighbourhood Services,Direct Services,Premises,115125,Repairs to Grounds,04-Jun-2014,2753304-B33/0067865,784.57,HOWDENS JOINERY LTD.
Neighbourhood Services,Direct Services,Premises,115125,Repairs to Grounds,04-Jun-2014,2753305-B33/0067676,883.54,HOWDENS JOINERY LTD.
Neighbourhood Services,Direct Services,Premises,115125,Repairs to Grounds,04-Jun-2014,2753305-B33/0067730,828.78,HOWDENS JOINERY LTD.
Neighbourhood Services,Direct Services,Premises,115125,Repairs to Grounds,04-Jun-2014,2753305-B33/0067751,910.63,HOWDENS JOINERY LTD.
Neighbourhood Services,Direct Services,Premises,115125,Repairs to Grounds,04-Jun-2014,2753305-B33/0067752,827.84,HOWDENS JOINERY LTD.
Neighbourhood Services,Direct Services,Premises,115125,Repairs to Grounds,04-Jun-2014,2753305-B33/0067783,757.84,HOWDENS JOINERY LTD.
Neighbourhood Services,Direct Services,Premises,115125,Repairs to Grounds,04-Jun-2014,2753305-B33/0067814,784.57,HOWDENS JOINERY LTD.
Neighbourhood Services,Direct Services,Premises,115125,Repairs to Grounds,04-Jun-2014,2753305-B33/0067863,605.40,HOWDENS JOINERY LTD.
Neighbourhood Services,Direct Services,Premises,115125,Repairs to Grounds,04-Jun-2014,2753305-B33/0067864,789.19,HOWDENS JOINERY LTD.
Neighbourhood Services,Direct Services,Premises,115125,Repairs to Grounds,04-Jun-2014,2753305-B33/0067906,686.94,HOWDENS JOINERY LTD.
Neighbourhood Services,Direct Services,Premises,115125,Repairs to Grounds,04-Jun-2014,2753305-B33/0067919,555.91,HOWDENS JOINERY LTD.
Neighbourhood Services,Direct Services,Premises,150005,Apportioned Exps of Operational Blds,04-Jun-2014,2753394-1405022,"2,832.00",MANDALE INVESTMENTS LTD.
Neighbourhood Services,Direct Services,Premises,125009,Rents,04-Jun-2014,2753619-5716,"2,000.00",YOUNGS RPS LLP.
Neighbourhood Services,Direct Services,Supplies and Services,304221,Equipment and Materials,04-Jun-2014,2753141-114095,531.05,AVIRE LTD.
Neighbourhood Services,Direct Services,Supplies and Services,304221,Equipment and Materials,04-Jun-2014,2753172-1650/0362371,"1,772.23",BSS GROUP PLC.
Neighbourhood Services,Direct Services,Supplies and Services,304221,Equipment and Materials,04-Jun-2014,2753172-1650/0366728,676.13,BSS GROUP PLC.
Neighbourhood Services,Direct Services,Supplies and Services,304221,Equipment and Materials,04-Jun-2014,2753245-4051408,620.00,EAST RIDING HORTICULTURE LTD.
Neighbourhood Services,Direct Services,Supplies and Services,304221,Equipment and Materials,04-Jun-2014,2753247-059-142978,858.27,EDMUNDSON ELECTRICAL LTD.
Neighbourhood Services,Direct Services,Supplies and Services,304221,Equipment and Materials,04-Jun-2014,2753247-059-143842,897.89,EDMUNDSON ELECTRICAL LTD.
Neighbourhood Services,Direct Services,Supplies and Services,304259,Equipment and Materials,04-Jun-2014,2753281-069253,"8,493.00",GODFREY SYRETT LTD.
Neighbourhood Services,Direct Services,Supplies and Services,304221,Equipment and Materials,04-Jun-2014,2753344-BI1135073,943.22,JT DOVE LTD.
Neighbourhood Services,Direct Services,Supplies and Services,304221,Equipment and Materials,04-Jun-2014,2753378-3329949,704.46,LONDON GENERAL SALES LTD.
Neighbourhood Services,Direct Services,Supplies and Services,304221,Equipment and Materials,04-Jun-2014,2753378-3331617,726.80,LONDON GENERAL SALES LTD.
Neighbourhood Services,Direct Services,Supplies and Services,304259,Equipment and Materials,04-Jun-2014,2753453-CN18747079,670.88,OCS GROUP UK LTD T/A CANNON HYGIENE.
Neighbourhood Services,Direct Services,Supplies and Services,304221,Equipment and Materials,04-Jun-2014,2753459-555453,"1,252.00",P & N ASSOCIATES LTD.
Neighbourhood Services,Direct Services,Supplies and Services,304221,Equipment and Materials,04-Jun-2014,2753473-4120166232,975.80,PLUMBING TRADE SUPPLIES LTD.
Neighbourhood Services,Direct Services,Supplies and Services,304221,Equipment and Materials,04-Jun-2014,2753474-198223,"4,645.02",PLUMBING TRADE SUPPLIES LTD.
Neighbourhood Services,Direct Services,Supplies and Services,304221,Equipment and Materials,04-Jun-2014,2753474-199661,"2,260.22",PLUMBING TRADE SUPPLIES LTD.
Neighbourhood Services,Direct Services,Supplies and Services,304221,Equipment and Materials,04-Jun-2014,2753474-4120166072,959.79,PLUMBING TRADE SUPPLIES LTD.
Neighbourhood Services,Direct Services,Supplies and Services,304221,Equipment and Materials,04-Jun-2014,2753474-4120166115,947.53,PLUMBING TRADE SUPPLIES LTD.
Neighbourhood Services,Direct Services,Supplies and Services,304221,Equipment and Materials,04-Jun-2014,2753474-4120166230,"1,013.43",PLUMBING TRADE SUPPLIES LTD.
Neighbourhood Services,Direct Services,Supplies and Services,304221,Equipment and Materials,04-Jun-2014,2753475-INV205196,542.80,POINTER LTD.
Neighbourhood Services,Direct Services,Supplies and Services,304221,Equipment and Materials,04-Jun-2014,2753475-INV205206,581.00,POINTER LTD.
Neighbourhood Services,Direct Services,Supplies and Services,338078,Services,04-Jun-2014,2753485-4211,"5,112.34",QW SECURITY LTD.
Neighbourhood Services,Direct Services,Supplies and Services,304357,Equipment and Materials,04-Jun-2014,2753489-8848,"1,109.00",RD KEARTON & SONS LTD.
Neighbourhood Services,Direct Services,Supplies and Services,304221,Equipment and Materials,04-Jun-2014,2753530-2450022017,"13,169.90",SIKA LIQUID PLASTICS LTD.
Neighbourhood Services,Direct Services,Supplies and Services,304221,Equipment and Materials,04-Jun-2014,2753555-1158600,"2,590.63",T CROSSLING & CO LTD.
Neighbourhood Services,Direct Services,Supplies and Services,304259,Equipment and Materials,04-Jun-2014,2753562-1318,"1,248.50",TEESDALE COMMUNICATION & SECURITY.
Neighbourhood Services,Direct Services,Supplies and Services,304221,Equipment and Materials,04-Jun-2014,2753582-99034,"1,094.12",TOMMY WARDLE.
Neighbourhood Services,Direct Services,Supplies and Services,304221,Equipment and Materials,04-Jun-2014,2753597-37236,600.00,W MARLEY AGRICULTURAL CONTRACTORS LTD.
Neighbourhood Services,Direct Services,Supplies and Services,304221,Equipment and Materials,04-Jun-2014,2753615-11258585,761.54,WOLSELEY UK LTD.
Neighbourhood Services,Direct Services,Supplies and Services,304221,Equipment and Materials,04-Jun-2014,2753615-12092567,"1,723.86",WOLSELEY UK LTD.
Neighbourhood Services,Direct Services,Third Party Payments,430100,Rendered by Private Contractors,04-Jun-2014,2753107-13589,"1,044.00",ACREBROAD LTD T/A DOBERMANS FLOORING.
Neighbourhood Services,Direct Services,Third Party Payments,430100,Rendered by Private Contractors,04-Jun-2014,2753176-15101,900.00,REDACTED - PAYMENT TO INDIVIDUAL
Neighbourhood Services,Direct Services,Third Party Payments,430100,Rendered by Private Contractors,04-Jun-2014,2753184-902618,561.00,CDS SECURITY LTD.
Neighbourhood Services,Direct Services,Third Party Payments,430100,Rendered by Private Contractors,04-Jun-2014,2753185-050,"16,984.60",CEILINGS DIRECT LTD.
Neighbourhood Services,Direct Services,Third Party Payments,430100,Rendered by Private Contractors,04-Jun-2014,2753324-2406,"4,707.85",JAMES INGLEFORD SCAFFOLDING LTD.
Neighbourhood Services,Direct Services,Third Party Payments,430100,Rendered by Private Contractors,04-Jun-2014,2753329-15941,"9,724.26",JDP CONTRACTING SERVICES LTD.
Neighbourhood Services,Direct Services,Third Party Payments,430100,Rendered by Private Contractors,04-Jun-2014,2753339-105157,"4,171.26",JOHNSON WRIGHT FLOORING LTD.
Neighbourhood Services,Direct Services,Third Party Payments,430100,Rendered by Private Contractors,04-Jun-2014,2753476-SW/0206,"1,577.13",POLAR (NE) LTD.
Neighbourhood Services,Direct Services,Third Party Payments,430100,Rendered by Private Contractors,04-Jun-2014,2753481-66801,"1,191.63",PROTECTOR SECURITY GROUP LTD.
Neighbourhood Services,Direct Services,Third Party Payments,430100,Rendered by Private Contractors,04-Jun-2014,2753481-66802,"2,292.18",PROTECTOR SECURITY GROUP LTD.
Neighbourhood Services,Direct Services,Third Party Payments,430100,Rendered by Private Contractors,04-Jun-2014,2753495-2981,"9,466.00",RINGLAND SCAFFOLDING.
Neighbourhood Services,Direct Services,Third Party Payments,430100,Rendered by Private Contractors,04-Jun-2014,2753507-MAY02214,"1,530.14",RW CHICKEN (SCAFFOLDING) LTD.
Neighbourhood Services,Direct Services,Third Party Payments,430100,Rendered by Private Contractors,04-Jun-2014,2753507-MAY02314,"1,238.08",RW CHICKEN (SCAFFOLDING) LTD.
Neighbourhood Services,Direct Services,Third Party Payments,430100,Rendered by Private Contractors,04-Jun-2014,2753507-MAY02414,619.04,RW CHICKEN (SCAFFOLDING) LTD.
Neighbourhood Services,Direct Services,Third Party Payments,430100,Rendered by Private Contractors,04-Jun-2014,2753507-MAY026/14,609.51,RW CHICKEN (SCAFFOLDING) LTD.
Neighbourhood Services,Direct Services,Third Party Payments,430100,Rendered by Private Contractors,04-Jun-2014,2753507-MAY02714,682.33,RW CHICKEN (SCAFFOLDING) LTD.
Neighbourhood Services,Direct Services,Third Party Payments,430100,Rendered by Private Contractors,04-Jun-2014,2753507-MAY028/14,"1,200.00",RW CHICKEN (SCAFFOLDING) LTD.
Neighbourhood Services,Direct Services,Third Party Payments,430100,Rendered by Private Contractors,04-Jun-2014,2753507-MAY02914,552.56,RW CHICKEN (SCAFFOLDING) LTD.
Neighbourhood Services,Direct Services,Third Party Payments,430100,Rendered by Private Contractors,04-Jun-2014,2753507-MAY03114,"6,348.59",RW CHICKEN (SCAFFOLDING) LTD.
Neighbourhood Services,Direct Services,Transport,230005,Contract Hire,04-Jun-2014,2753277-9655,"1,827.00",GEORGE VARDY HAULAGE.
Neighbourhood Services,EnvironmentHealth & Consumer Protection,Supplies and Services,336005,Advertising,04-Jun-2014,2753194-2804033983,793.00,CITY OF SUNDERLAND.
Neighbourhood Services,EnvironmentHealth & Consumer Protection,Supplies and Services,384199,Miscellaneous Expenses,04-Jun-2014,2753483,"1,350.00",PUBLIC ANALYST SCIENTIFIC SERVICES LTD.
Neighbourhood Services,Projects and Business services,Supplies and Services,338027,Services,04-Jun-2014,2753119-HL160866,"1,374.33",ALCONTROL LABORATORIES.
Neighbourhood Services,Projects and Business services,Supplies and Services,304357,Equipment and Materials,04-Jun-2014,2753337-1301876,576.54,JOHN NIXON LTD.
Neighbourhood Services,Projects and Business services,Supplies and Services,340001,Postages,04-Jun-2014,2753504-9047329767,"3,107.14",ROYAL MAIL GROUP PLC.
Neighbourhood Services,Projects and Business services,Supplies and Services,340001,Postages,04-Jun-2014,2753504-9047380312,"2,609.47",ROYAL MAIL GROUP PLC.
Neighbourhood Services,Projects and Business services,Third Party Payments,430103,Rendered by Private Contractors,04-Jun-2014,2753169,772.34,BRITISH HEART FOUNDATION.
Neighbourhood Services,Projects and Business services,Third Party Payments,430119,Rendered by Private Contractors,04-Jun-2014,2753294-SIN7040269,529.57,HCS DRAIN SERVICES LTD.
Neighbourhood Services,Projects and Business services,Third Party Payments,430100,Rendered by Private Contractors,04-Jun-2014,2753543-0000709055,880.00,SRCL LTD.
Neighbourhood Services,Projects and Business services,Vehicles Equipment Furniture and Fittings,912529,Purchase-equipment,04-Jun-2014,2753249-7829,"3,010.46",ELECTRO SERVE CONTRACTS LTD.
Neighbourhood Services,Redundant Direct Services,Supplies and Services,304221,Equipment and Materials,04-Jun-2014,2753526-CD970063391,750.00,SHERRIFF AMENITY.
Neighbourhood Services,Technical Services,Construction Work,908108,Capital - Surface Dressing,04-Jun-2014,2753215-10376,"1,930.45",COUPE LINE LTD.
Neighbourhood Services,Technical Services,Construction Work,908108,Capital - Surface Dressing,04-Jun-2014,2753352-14352,"57,065.27",KIELY BROS LTD.
Neighbourhood Services,Technical Services,Fees,901002,Professional fees,04-Jun-2014,2753520-SIL/D262/2412,"5,909.04",SEALANE INSHORE LTD.
Neighbourhood Services,Technical Services,Stock,926900,Stock in hand-Inventory system,04-Jun-2014,2753133-921987198,622.68,ARCO LTD.
Neighbourhood Services,Technical Services,Stock,926900,Stock in hand-Inventory system,04-Jun-2014,2753133-921990226,604.99,ARCO LTD.
Neighbourhood Services,Technical Services,Stock,926900,Stock in hand-Inventory system,04-Jun-2014,2753188-3351328,"1,400.00",CHAMBERLAIN DOORS LTD.
Neighbourhood Services,Technical Services,Stock,926900,Stock in hand-Inventory system,04-Jun-2014,2753203-151262,"1,607.04",COLAS LTD.
Neighbourhood Services,Technical Services,Stock,926900,Stock in hand-Inventory system,04-Jun-2014,2753247-059-143096,727.00,EDMUNDSON ELECTRICAL LTD.
Neighbourhood Services,Technical Services,Stock,926900,Stock in hand-Inventory system,04-Jun-2014,2753247-059-143787,891.00,EDMUNDSON ELECTRICAL LTD.
Neighbourhood Services,Technical Services,Stock,926900,Stock in hand-Inventory system,04-Jun-2014,2753265-OP/I279263,686.06,FLEMING & CO (MACHINERY) LTD.
Neighbourhood Services,Technical Services,Stock,926900,Stock in hand-Inventory system,04-Jun-2014,2753265-OP/I279398,775.55,FLEMING & CO (MACHINERY) LTD.
Neighbourhood Services,Technical Services,Stock,926900,Stock in hand-Inventory system,04-Jun-2014,2753285-06/512000,"5,169.41",GREENHAM TRADING LTD.
Neighbourhood Services,Technical Services,Stock,926900,Stock in hand-Inventory system,04-Jun-2014,2753315-449068,"2,833.60",INSTARMAC GROUP PLC.
Neighbourhood Services,Technical Services,Stock,926900,Stock in hand-Inventory system,04-Jun-2014,2753315-449727,"2,307.20",INSTARMAC GROUP PLC.
Neighbourhood Services,Technical Services,Stock,926900,Stock in hand-Inventory system,04-Jun-2014,2753344-PHSTI20172,"1,181.18",JT DOVE LTD.
Neighbourhood Services,Technical Services,Stock,926900,Stock in hand-Inventory system,04-Jun-2014,2753344-STI401331,822.96,JT DOVE LTD.
Neighbourhood Services,Technical Services,Stock,926900,Stock in hand-Inventory system,04-Jun-2014,2753344-STI401688,545.79,JT DOVE LTD.
Neighbourhood Services,Technical Services,Stock,926900,Stock in hand-Inventory system,04-Jun-2014,2753364-LFP/14/1711,"1,109.50",LIFELINE FIRE PREVENTION LTD.
Neighbourhood Services,Technical Services,Stock,926900,Stock in hand-Inventory system,04-Jun-2014,2753377-10536,"1,833.00",LOGIC STREET & PARK FURNITURE LTD.
Neighbourhood Services,Technical Services,Stock,926900,Stock in hand-Inventory system,04-Jun-2014,2753392-827/033751,867.13,MAGNET LTD.
Neighbourhood Services,Technical Services,Stock,926900,Stock in hand-Inventory system,04-Jun-2014,2753461-XL114906,"1,640.25",PARK ELECTRICAL DISTRIBUTORS LTD.
Neighbourhood Services,Technical Services,Stock,926900,Stock in hand-Inventory system,04-Jun-2014,2753461-XL115102,"5,124.96",PARK ELECTRICAL DISTRIBUTORS LTD.
Neighbourhood Services,Technical Services,Stock,926900,Stock in hand-Inventory system,04-Jun-2014,2753461-XL115577,"1,021.30",PARK ELECTRICAL DISTRIBUTORS LTD.
Neighbourhood Services,Technical Services,Stock,926900,Stock in hand-Inventory system,04-Jun-2014,2753461-XL115586,"2,672.70",PARK ELECTRICAL DISTRIBUTORS LTD.
Neighbourhood Services,Technical Services,Stock,926900,Stock in hand-Inventory system,04-Jun-2014,2753461-XL115595,"2,442.68",PARK ELECTRICAL DISTRIBUTORS LTD.
Neighbourhood Services,Technical Services,Stock,926900,Stock in hand-Inventory system,04-Jun-2014,2753461-XL115729,810.00,PARK ELECTRICAL DISTRIBUTORS LTD.
Neighbourhood Services,Technical Services,Stock,926900,Stock in hand-Inventory system,04-Jun-2014,2753461-XLL15415,"1,145.61",PARK ELECTRICAL DISTRIBUTORS LTD.
Neighbourhood Services,Technical Services,Stock,926900,Stock in hand-Inventory system,04-Jun-2014,2753492-RSIN0099840,"1,590.00",RIGBY TAYLOR LTD.
Neighbourhood Services,Technical Services,Stock,926900,Stock in hand-Inventory system,04-Jun-2014,2753493-42622,516.00,RIGHT OFFICE INTERIORS LTD.
Neighbourhood Services,Technical Services,Stock,926900,Stock in hand-Inventory system,04-Jun-2014,2753532-64764,"1,089.50",SIMMONSIGNS LTD.
Neighbourhood Services,Technical Services,Stock,926900,Stock in hand-Inventory system,04-Jun-2014,2753532-64780,"4,190.20",SIMMONSIGNS LTD.
Neighbourhood Services,Technical Services,Stock,926900,Stock in hand-Inventory system,04-Jun-2014,2753539-270040546,781.17,SOVEREIGN CHEMICALS LTD.
Neighbourhood Services,Technical Services,Stock,926900,Stock in hand-Inventory system,04-Jun-2014,2753539-270040715,525.05,SOVEREIGN CHEMICALS LTD.
Neighbourhood Services,Technical Services,Stock,926900,Stock in hand-Inventory system,04-Jun-2014,2753574-N/IN122567,643.58,THOMAS OWEN & SONS (NEWCASTLE) LTD.
Neighbourhood Services,Technical Services,Stock,926900,Stock in hand-Inventory system,04-Jun-2014,2753574-N/IN122568,"1,073.08",THOMAS OWEN & SONS (NEWCASTLE) LTD.
Neighbourhood Services,Technical Services,Stock,926900,Stock in hand-Inventory system,04-Jun-2014,2753615-12759203,627.63,WOLSELEY UK LTD.
Neighbourhood Services,Technical Services,Stock,926900,Stock in hand-Inventory system,04-Jun-2014,2753615-12759204,880.07,WOLSELEY UK LTD.
Neighbourhood Services,Technical Services,Stock,926900,Stock in hand-Inventory system,04-Jun-2014,2753615-12801135,571.37,WOLSELEY UK LTD.
Neighbourhood Services,Technical Services,Supplies and Services,304221,Equipment and Materials,04-Jun-2014,2753113-19789217,"1,016.80",AGGREGATE INDUSTRIES UK LTD.
Neighbourhood Services,Technical Services,Supplies and Services,304221,Equipment and Materials,04-Jun-2014,2753113-19789220,569.17,AGGREGATE INDUSTRIES UK LTD.
Neighbourhood Services,Technical Services,Supplies and Services,304221,Equipment and Materials,04-Jun-2014,2753113-19796116,"1,308.20",AGGREGATE INDUSTRIES UK LTD.
Neighbourhood Services,Technical Services,Supplies and Services,304221,Equipment and Materials,04-Jun-2014,2753113-19796117,648.24,AGGREGATE INDUSTRIES UK LTD.
Neighbourhood Services,Technical Services,Supplies and Services,304221,Equipment and Materials,04-Jun-2014,2753113-19803101,"1,743.44",AGGREGATE INDUSTRIES UK LTD.
Neighbourhood Services,Technical Services,Supplies and Services,304221,Equipment and Materials,04-Jun-2014,2753113-19803103,575.97,AGGREGATE INDUSTRIES UK LTD.
Neighbourhood Services,Technical Services,Supplies and Services,304221,Equipment and Materials,04-Jun-2014,2753113-19803105,922.96,AGGREGATE INDUSTRIES UK LTD.
Neighbourhood Services,Technical Services,Supplies and Services,304221,Equipment and Materials,04-Jun-2014,2753113-19803106,995.28,AGGREGATE INDUSTRIES UK LTD.
Neighbourhood Services,Technical Services,Supplies and Services,304221,Equipment and Materials,04-Jun-2014,2753113-19809131,576.20,AGGREGATE INDUSTRIES UK LTD.
Neighbourhood Services,Technical Services,Supplies and Services,304221,Equipment and Materials,04-Jun-2014,2753113-19809133,844.04,AGGREGATE INDUSTRIES UK LTD.
Neighbourhood Services,Technical Services,Supplies and Services,304221,Equipment and Materials,04-Jun-2014,2753113-19813042,668.60,AGGREGATE INDUSTRIES UK LTD.
Neighbourhood Services,Technical Services,Supplies and Services,304221,Equipment and Materials,04-Jun-2014,2753113-19813043,"1,094.34",AGGREGATE INDUSTRIES UK LTD.
Neighbourhood Services,Technical Services,Supplies and Services,304221,Equipment and Materials,04-Jun-2014,2753113-19833093,"4,844.68",AGGREGATE INDUSTRIES UK LTD.
Neighbourhood Services,Technical Services,Supplies and Services,304221,Equipment and Materials,04-Jun-2014,2753113-19833095,568.70,AGGREGATE INDUSTRIES UK LTD.
Neighbourhood Services,Technical Services,Supplies and Services,304221,Equipment and Materials,04-Jun-2014,2753113-19839435,"1,021.93",AGGREGATE INDUSTRIES UK LTD.
Neighbourhood Services,Technical Services,Supplies and Services,304221,Equipment and Materials,04-Jun-2014,2753114-19776289,"1,249.92",AGGREGATE INDUSTRIES UK LTD.
Neighbourhood Services,Technical Services,Supplies and Services,304221,Equipment and Materials,04-Jun-2014,2753114-19776291,"1,107.72",AGGREGATE INDUSTRIES UK LTD.
Neighbourhood Services,Technical Services,Supplies and Services,304221,Equipment and Materials,04-Jun-2014,2753114-19776292,714.03,AGGREGATE INDUSTRIES UK LTD.
Neighbourhood Services,Technical Services,Supplies and Services,304221,Equipment and Materials,04-Jun-2014,2753114-19782927,"1,191.64",AGGREGATE INDUSTRIES UK LTD.
Neighbourhood Services,Technical Services,Supplies and Services,304221,Equipment and Materials,04-Jun-2014,2753114-19782928,737.83,AGGREGATE INDUSTRIES UK LTD.
Neighbourhood Services,Technical Services,Supplies and Services,304221,Equipment and Materials,04-Jun-2014,2753114-19782930,"2,471.32",AGGREGATE INDUSTRIES UK LTD.
Neighbourhood Services,Technical Services,Supplies and Services,304221,Equipment and Materials,04-Jun-2014,2753114-19782931,"1,125.87",AGGREGATE INDUSTRIES UK LTD.
Neighbourhood Services,Technical Services,Supplies and Services,304221,Equipment and Materials,04-Jun-2014,2753114-19782932,"1,450.58",AGGREGATE INDUSTRIES UK LTD.
Neighbourhood Services,Technical Services,Supplies and Services,304221,Equipment and Materials,04-Jun-2014,2753114-19782934,"1,549.81",AGGREGATE INDUSTRIES UK LTD.
Neighbourhood Services,Technical Services,Supplies and Services,304221,Equipment and Materials,04-Jun-2014,2753114-19789221,"1,006.55",AGGREGATE INDUSTRIES UK LTD.
Neighbourhood Services,Technical Services,Supplies and Services,304221,Equipment and Materials,04-Jun-2014,2753114-19796119,563.50,AGGREGATE INDUSTRIES UK LTD.
Neighbourhood Services,Technical Services,Supplies and Services,304221,Equipment and Materials,04-Jun-2014,2753132-19597,"1,470.15",ARBOR TIMBER & BUILDERS MERCHANTS LTD.
Neighbourhood Services,Technical Services,Supplies and Services,304221,Equipment and Materials,04-Jun-2014,2753133-922007406,672.88,ARCO LTD.
Neighbourhood Services,Technical Services,Supplies and Services,372009,Subscriptions,04-Jun-2014,2753183-MI66778,"1,440.96",CAUSEWAY TECHNOLOGIES LTD.
Neighbourhood Services,Technical Services,Supplies and Services,304221,Equipment and Materials,04-Jun-2014,2753290-1405\011,"1,245.00",HALL CONSTRUCTION SERVICES LTD.
Neighbourhood Services,Technical Services,Supplies and Services,304221,Equipment and Materials,04-Jun-2014,2753309-SIN035604,"2,744.00",HYDRO INTERNATIONAL (UK) LTD.
Neighbourhood Services,Technical Services,Supplies and Services,304221,Equipment and Materials,04-Jun-2014,2753334-00089475,"4,969.28",JOBLING PURSER LTD.
Neighbourhood Services,Technical Services,Supplies and Services,304221,Equipment and Materials,04-Jun-2014,2753334-00090069,"4,969.28",JOBLING PURSER LTD.
Neighbourhood Services,Technical Services,Supplies and Services,304221,Equipment and Materials,04-Jun-2014,2753344-BI1135676,569.92,JT DOVE LTD.
Neighbourhood Services,Technical Services,Supplies and Services,304221,Equipment and Materials,04-Jun-2014,2753344-CNI19491/D,"1,787.18",JT DOVE LTD.
Neighbourhood Services,Technical Services,Supplies and Services,304221,Equipment and Materials,04-Jun-2014,2753354-9031025228,529.50,LAFARGE TARMAC TRADING LTD.
Neighbourhood Services,Technical Services,Supplies and Services,304221,Equipment and Materials,04-Jun-2014,2753354-9031062808,706.80,LAFARGE TARMAC TRADING LTD.
Neighbourhood Services,Technical Services,Supplies and Services,304221,Equipment and Materials,04-Jun-2014,2753354-9031077178,890.75,LAFARGE TARMAC TRADING LTD.
Neighbourhood Services,Technical Services,Supplies and Services,304221,Equipment and Materials,04-Jun-2014,2753382-136927,611.00,LUCY ZODION LTD.
Neighbourhood Services,Technical Services,Supplies and Services,304221,Equipment and Materials,04-Jun-2014,2753403-31303,556.79,MAY GURNEY LTD.
Neighbourhood Services,Technical Services,Supplies and Services,384110,Miscellaneous Expenses,04-Jun-2014,2753405-130813877,"2,610.00",MICRO DRAINAGE LTD.
Neighbourhood Services,Technical Services,Supplies and Services,304337,Equipment and Materials,04-Jun-2014,2753446-DI20185716,982.74,NORTHERN POWERGRID (NORTHEAST) LTD.
Neighbourhood Services,Technical Services,Supplies and Services,304337,Equipment and Materials,04-Jun-2014,2753446-DI20187109,"1,627.66",NORTHERN POWERGRID (NORTHEAST) LTD.
Neighbourhood Services,Technical Services,Supplies and Services,304221,Equipment and Materials,04-Jun-2014,2753447-DI20183676,"1,773.51",NORTHERN POWERGRID (NORTHEAST) LTD.
Neighbourhood Services,Technical Services,Supplies and Services,304221,Equipment and Materials,04-Jun-2014,2753449-13327,606.51,NORTHUMBRIAN ROADS LTD.
Neighbourhood Services,Technical Services,Supplies and Services,304221,Equipment and Materials,04-Jun-2014,2753584-56331,"1,887.50",TRADE & DIY PRODUCTS LTD.
Neighbourhood Services,Technical Services,Supplies and Services,304221,Equipment and Materials,04-Jun-2014,2753589-136885,793.92,TYNEDALE ROADSTONE LTD.
Neighbourhood Services,Technical Services,Supplies and Services,304221,Equipment and Materials,04-Jun-2014,2753589-136888,990.22,TYNEDALE ROADSTONE LTD.
Neighbourhood Services,Technical Services,Third Party Payments,460256,Contract Payments,04-Jun-2014,2753125-IWSN2034,"11,088.75",ANDEL LTD.
Neighbourhood Services,Technical Services,Third Party Payments,430100,Rendered by Private Contractors,04-Jun-2014,2753347-1588,"1,278.00",KAEFER C & D - KD SCAFFOLDING DIVISION.
Neighbourhood Services,Technical Services,Third Party Payments,430100,Rendered by Private Contractors,04-Jun-2014,2753347-1589,785.01,KAEFER C & D - KD SCAFFOLDING DIVISION.
Neighbourhood Services,Technical Services,Third Party Payments,430100,Rendered by Private Contractors,04-Jun-2014,2753347-1762,695.00,KAEFER C & D - KD SCAFFOLDING DIVISION.
Neighbourhood Services,Technical Services,Third Party Payments,430100,Rendered by Private Contractors,04-Jun-2014,2753481-66844,550.00,PROTECTOR SECURITY GROUP LTD.
Neighbourhood Services,Technical Services,Third Party Payments,430100,Rendered by Private Contractors,04-Jun-2014,2753536-12050931,"3,165.26",SOUTH TYNESIDE COUNCIL.
RED HRA,Housing Revenue Account,Debtors,930106,Debtor-furnished tenancy scheme,04-Jun-2014,2753620-1800006950170,"2,138.29",YOUR HOMES NEWCASTLE.
RED HRA,HRA Capital,Construction Work,908105,Construction work,04-Jun-2014,2753107-13320,"1,320.00",ACREBROAD LTD T/A DOBERMANS FLOORING.
RED HRA,HRA Capital,Construction Work,908105,Construction work,04-Jun-2014,2753433-8094,621.00,NELSONS OF DURHAM.
RED HRA,HRA Capital,Construction Work,908105,Construction work,04-Jun-2014,2753522-28/05/2014,660.00,SGS MIS ENVIRONMENTAL LTD.
RED HRA,HRA Capital,Construction Work,908105,Construction work,04-Jun-2014,2753522-74205,644.00,SGS MIS ENVIRONMENTAL LTD.
RED HRA,HRA Capital,Construction Work,908105,Construction work,04-Jun-2014,2753522-74207,"1,650.00",SGS MIS ENVIRONMENTAL LTD.
RED HRA,HRA Capital,Construction Work,908105,Construction work,04-Jun-2014,2753522-74415,860.00,SGS MIS ENVIRONMENTAL LTD.
RED HRA,HRA Capital,Construction Work,908105,Construction work,04-Jun-2014,2753621-31239,"3,765.81",YWC GROUP LTD.
RED HRA,HRA Capital,Construction Work,908105,Construction work,04-Jun-2014,2753621-31240,678.69,YWC GROUP LTD.
RED HRA,HRA Capital,Construction Work,908105,Construction work,04-Jun-2014,2753621-31241,"1,483.92",YWC GROUP LTD.
RED HRA,HRA Centrally Managed,Creditors,952191,Creditor-HRA-rents-refunds,04-Jun-2014,231835-RENTREF,500.00,REDACTED - PAYMENT TO INDIVIDUAL
RED HRA,HRA Centrally Managed,Supplies and Services,384999,Miscellaneous Expenses,04-Jun-2014,231855-RENTREF,825.72,REDACTED - PAYMENT TO INDIVIDUAL
RED HRA,HRA Centrally Managed,Supplies and Services,384999,Miscellaneous Expenses,04-Jun-2014,2753425,577.66,REDACTED - PAYMENT TO INDIVIDUAL
RED HRA,HRA Centrally Managed,Supplies and Services,384999,Miscellaneous Expenses,04-Jun-2014,2753426-1036995,805.20,REDACTED - PAYMENT TO INDIVIDUAL
RED HRA,HRA Centrally Managed,Supplies and Services,384999,Miscellaneous Expenses,04-Jun-2014,2753428-RENTREF,720.40,REDACTED - PAYMENT TO INDIVIDUAL
Regeneration & Economic Development,Econ Dev and Regen Financing,Creditors,952146,Creditor-Section 106 agreement,04-Jun-2014,2753223-SECTION105,"47,355.00",DENE VALLEY PARISH COUNCIL.
Regeneration & Economic Development,Economic Development and Housing,Cap Exp on Grants & Other Financial Assistance (REFCUS),918401,Capital grants,04-Jun-2014,2753259-RED-05-2014-140,"3,730.00",F TIFFEN BUILDING SERVICES.
Regeneration & Economic Development,Economic Development and Housing,Cap Exp on Grants & Other Financial Assistance (REFCUS),918401,Capital grants,04-Jun-2014,2753259-RED-05-2014-154,"2,480.00",F TIFFEN BUILDING SERVICES.
Regeneration & Economic Development,Economic Development and Housing,Cap Exp on Grants & Other Financial Assistance (REFCUS),918401,Capital grants,04-Jun-2014,2753576-RED-05-2014-152,"3,895.00",THYSSENKRUPP ENCASA LTD.
Regeneration & Economic Development,Economic Development and Housing,Cap Exp on Grants & Other Financial Assistance (REFCUS),918401,Capital grants,04-Jun-2014,2753576-RED-05-2014-155,"1,480.00",THYSSENKRUPP ENCASA LTD.
Regeneration & Economic Development,Economic Development and Housing,Cap Exp on Grants & Other Financial Assistance (REFCUS),918401,Capital grants,04-Jun-2014,2753576-RED-05-2014-163,"4,080.00",THYSSENKRUPP ENCASA LTD.
Regeneration & Economic Development,Economic Development and Housing,Construction Work,908113,Capital - Landscaping,04-Jun-2014,2753148-210514,"1,200.00",BARNARD CASTLE TOWN COUNCIL.
Regeneration & Economic Development,Economic Development and Housing,Construction Work,908105,Construction work,04-Jun-2014,2753208-0455,750.00,COMMERCIAL ENERGY ASSESSMENT NORTH EAST LTD.
Regeneration & Economic Development,Economic Development and Housing,Construction Work,908105,Construction work,04-Jun-2014,2753221-RED-05-2014-146,"5,000.00",REDACTED - PAYMENT TO INDIVIDUAL
Regeneration & Economic Development,Economic Development and Housing,Construction Work,908105,Construction work,04-Jun-2014,2753487-11167,575.00,RADECAL SIGNS GRAPHICS & ADVERTISING.
Regeneration & Economic Development,Economic Development and Housing,Construction Work,908105,Construction work,04-Jun-2014,2753588-1809,"102,347.12",TURNEY WYLDE (CONSTRUCTION) LTD.
Regeneration & Economic Development,Economic Development and Housing,Fees,901002,Professional fees,04-Jun-2014,2753218-304,"3,810.00",CURIOUS 12 LTD.
Regeneration & Economic Development,Economic Development and Housing,Other Expenses,914001,Other capital expenses,04-Jun-2014,2753435-RED-06-2014-003,850.00,NEW AGE PLUMBING & HEATING SERVICES.
Regeneration & Economic Development,Economic Development and Housing,Other Expenses,914001,Other capital expenses,04-Jun-2014,2753435-RED-06-2014-006,"3,248.33",NEW AGE PLUMBING & HEATING SERVICES.
Regeneration & Economic Development,Economic Development and Housing,Other Expenses,914001,Other capital expenses,04-Jun-2014,2753607,828.50,WHARTON LANDSCAPES.
Regeneration & Economic Development,Economic Development and Housing,Premises,120009,Energy Costs,04-Jun-2014,2753450-NNO7KWV5,911.32,NPOWER.
Regeneration & Economic Development,Economic Development and Housing,Premises,108099,Service Repairs and Maintenance,04-Jun-2014,2753468-61258558,"1,756.45",PHS GROUP PLC.
Regeneration & Economic Development,Economic Development and Housing,Premises,106080,Centrally Controlled Rep and Maint,04-Jun-2014,2753600-1488,"15,882.91",WATERMAN ENVIRONMENTAL SERVICES.
Regeneration & Economic Development,Economic Development and Housing,Supplies and Services,324117,Provisions,04-Jun-2014,2753103-54977833,790.29,3663.
Regeneration & Economic Development,Economic Development and Housing,Supplies and Services,324117,Provisions,04-Jun-2014,2753103-55066728,913.63,3663.
Regeneration & Economic Development,Economic Development and Housing,Supplies and Services,384899,Miscellaneous Expenses,04-Jun-2014,2753135-PV/ART/15/2014,"3,653.00",ARTWORKS IN TEESDALE.
Regeneration & Economic Development,Economic Development and Housing,Supplies and Services,384700,Miscellaneous Expenses,04-Jun-2014,2753137-RED-05-2014-164,"1,000.00",ASPIRE LEARNING SUPPORT & WELLING CIC.
Regeneration & Economic Development,Economic Development and Housing,Supplies and Services,384700,Miscellaneous Expenses,04-Jun-2014,2753244-RED-05-2014-161,725.00,EAST DURHAM COMMUNITY DEVELOPMENT TRUST LTD.
Regeneration & Economic Development,Economic Development and Housing,Supplies and Services,384899,Miscellaneous Expenses,04-Jun-2014,2753445-RED-05-2014-167,"6,728.40",NORTHERN ARCHAELOGICAL ASSOCIATES LTD.
Regeneration & Economic Development,Economic Development and Housing,Supplies and Services,384437,Miscellaneous Expenses,04-Jun-2014,2753460-F98343318,616.00,P & O FERRIES HOLDINGS LTD.
Regeneration & Economic Development,Economic Development and Housing,Supplies and Services,384437,Miscellaneous Expenses,04-Jun-2014,2753508-SAA/21MAY14,"1,650.00",SAARANG.
Regeneration & Economic Development,Economic Development and Housing,Supplies and Services,384700,Miscellaneous Expenses,04-Jun-2014,2753549-RED-05-2014-147,"1,000.00",STR ELECTRICS.
Regeneration & Economic Development,Economic Development and Housing,Supplies and Services,336005,Advertising,04-Jun-2014,2753575-TML/14/03/07,500.00,THRIVE MARKETING LTD.
Regeneration & Economic Development,Spatial Policy Planning Assets & Environment,Supplies and Services,384199,Miscellaneous Expenses,04-Jun-2014,2753190,550.93,REDACTED - PAYMENT TO INDIVIDUAL
Regeneration & Economic Development,Spatial Policy Planning Assets & Environment,Supplies and Services,338099,Services,04-Jun-2014,2753323-30553,"1,277.95",JAMES FLETCHER LTD T/A JAMES FLETCHER MARQUEES.
Regeneration & Economic Development,Spatial Policy Planning Assets & Environment,Supplies and Services,338099,Services,04-Jun-2014,2753410-00001825,825.00,MK CATERING NE LTD T/A JACKSONS CATERING.
Regeneration & Economic Development,Spatial Policy Planning Assets & Environment,Supplies and Services,336005,Advertising,04-Jun-2014,2753436-5240498,938.91,NEWSQUEST (YORKSHIRE & NORTH EAST) LTD.
Regeneration & Economic Development,Spatial Policy Planning Assets & Environment,Supplies and Services,336005,Advertising,04-Jun-2014,2753436-5395706,"1,564.85",NEWSQUEST (YORKSHIRE & NORTH EAST) LTD.
Regeneration & Economic Development,Spatial Policy Planning Assets & Environment,Supplies and Services,384199,Miscellaneous Expenses,04-Jun-2014,2753499-BURSARY2MAY14,535.50,REDACTED - PAYMENT TO INDIVIDUAL
Regeneration & Economic Development,Transport and Contracted Services,Other Expenses,914001,Other capital expenses,04-Jun-2014,2753614-299532,672.60,WM SMITH & SONS (BARNARD CASTLE) LTD.
Regeneration & Economic Development,Transport and Contracted Services,Premises,120009,Energy Costs,04-Jun-2014,2753450-NNO7KSQ9,"2,953.67",NPOWER.
Regeneration & Economic Development,Transport and Contracted Services,Supplies and Services,384199,Miscellaneous Expenses,04-Jun-2014,2753220-2504050,"4,950.00",DARLINGTON BOROUGH COUNCIL.
Regeneration & Economic Development,Transport and Contracted Services,Supplies and Services,342051,Computers and Communications,04-Jun-2014,2753320-4100431808,"2,805.00",ITO WORLD LTD.
Regeneration & Economic Development,Transport and Contracted Services,Supplies and Services,304245,Equipment and Materials,04-Jun-2014,2753587-10242395,"1,005.50",TUNSTALL HEALTHCARE (UK) LTD.
Regeneration & Economic Development,Transport and Contracted Services,Third Party Payments,440999,Other Third Party Payments,04-Jun-2014,2753234-5595-17,"1,666.67",DTA CONSULTING ENGINEERS.
Regeneration & Economic Development,Transport and Contracted Services,Third Party Payments,430106,Rendered by Private Contractors,04-Jun-2014,2753546-8781,"11,465.80",STANLEY TRAVEL (NORTH EAST) LTD.
Assistant Chief Executive,Partnerships & Community Engagement Div.,Cap Exp on Grants & Other Financial Assistance (REFCUS),918004,Contributions to other bodies,05-Jun-2014,2753846-VOUCHER13NB-DVLY008,"2,000.00",SHOTLEY BRIDGE CRICKET CLUB.
Assistant Chief Executive,Partnerships & Community Engagement Div.,Supplies and Services,384086,Miscellaneous Expenses,05-Jun-2014,2753664-VOUCHER13NB-4TOG015,"2,200.00",CHILTON COMMUNITY COLLEGE.
Assistant Chief Executive,Partnerships & Community Engagement Div.,Transfer Payments,525030,Other,05-Jun-2014,2753664-VOUCHER13AB-4TOG011,"9,875.00",CHILTON COMMUNITY COLLEGE.
Children and Adult Services,Childrens Services,Supplies and Services,384534,Miscellaneous Expenses,05-Jun-2014,2753724-CAS-05-2014-098,507.35,REDACTED - PAYMENT TO INDIVIDUAL
Children and Adult Services,Childrens Services,Supplies and Services,384534,Miscellaneous Expenses,05-Jun-2014,2753769-CAS-05-2014-097,614.68,REDACTED - PAYMENT TO INDIVIDUAL
Children and Adult Services,Childrens Services,Supplies and Services,384199,Miscellaneous Expenses,05-Jun-2014,2753863-0000003668,510.00,SUNDERLAND AFC FOUNDATION.
Children and Adult Services,Childrens Services,Supplies and Services,384302,Miscellaneous Expenses,05-Jun-2014,2753881-INV01,600.00,THERESA SPITERI T/A ZUMBA FITNESS.
Children and Adult Services,Childrens Services,Third Party Payments,425040,Rendered by Voluntary Organisations,05-Jun-2014,2753867-146604,910.00,SWIIS (UK) LTD.
Children and Adult Services,Childrens Services,Third Party Payments,425040,Rendered by Voluntary Organisations,05-Jun-2014,2753867-146876,910.00,SWIIS (UK) LTD.
Children and Adult Services,Childrens Services,Transport,230007,Contract Hire,05-Jun-2014,2753859-8879,"1,738.00",STANLEY TRAVEL (NORTH EAST) LTD.
Children and Adult Services,Childrens Services,Transport,230007,Contract Hire,05-Jun-2014,2753859-8880,"1,210.00",STANLEY TRAVEL (NORTH EAST) LTD.
Children and Adult Services,Education,Employees,040001,Recruitment Instruction and Training,05-Jun-2014,2753889-TARINV/15291919,652.50,TSL EDUCATION LTD.
Children and Adult Services,Education,Supplies and Services,338099,Services,05-Jun-2014,2753791-0534/1314,600.00,MUSIC & THE DEAF.
Children and Adult Services,Education,Transport,230008,Contract Hire,05-Jun-2014,2753763,960.00,MA BODDY.
Children and Adult Services,Education,Transport,230006,Contract Hire,05-Jun-2014,2753623-51405,880.00,24/7 TAXI SERVICES LTD.
Children and Adult Services,Education,Transport,230008,Contract Hire,05-Jun-2014,2753623-51410,"1,040.00",24/7 TAXI SERVICES LTD.
Children and Adult Services,Education,Transport,230008,Contract Hire,05-Jun-2014,2753623-51411,720.00,24/7 TAXI SERVICES LTD.
Children and Adult Services,Education,Transport,230008,Contract Hire,05-Jun-2014,2753623-51412,560.00,24/7 TAXI SERVICES LTD.
Children and Adult Services,Education,Transport,230008,Contract Hire,05-Jun-2014,2753623-51413,"1,857.25",24/7 TAXI SERVICES LTD.
Children and Adult Services,Education,Transport,230008,Contract Hire,05-Jun-2014,2753623-51417,"1,380.00",24/7 TAXI SERVICES LTD.
Children and Adult Services,Education,Transport,230008,Contract Hire,05-Jun-2014,2753624-51415,"1,584.00",@CAB TAXIS.
Children and Adult Services,Education,Transport,230006,Contract Hire,05-Jun-2014,2753625-497-31/5/14,582.00,A BARKER.
Children and Adult Services,Education,Transport,230007,Contract Hire,05-Jun-2014,2753625-498,520.00,A BARKER.
Children and Adult Services,Education,Transport,230010,Contract Hire,05-Jun-2014,2753720-9,800.00,IAN SHEPLEY T/A SHEPPA`S TAXIS.
Children and Adult Services,Education,Transport,230008,Contract Hire,05-Jun-2014,2753721-727,"1,600.00",J YOUNG T/A VIP TAXIS.
Children and Adult Services,Education,Transport,230008,Contract Hire,05-Jun-2014,2753721-728,832.00,J YOUNG T/A VIP TAXIS.
Children and Adult Services,Education,Transport,230008,Contract Hire,05-Jun-2014,2753721-729,"1,056.00",J YOUNG T/A VIP TAXIS.
Children and Adult Services,Education,Transport,230008,Contract Hire,05-Jun-2014,2753721-730,"1,696.00",J YOUNG T/A VIP TAXIS.
Children and Adult Services,Education,Transport,230008,Contract Hire,05-Jun-2014,2753728-JK55,666.00,JK TAXIS.
Children and Adult Services,Education,Transport,230008,Contract Hire,05-Jun-2014,2753742-A033-31/5/14,880.00,K & R TAXIS.
Children and Adult Services,Education,Transport,230008,Contract Hire,05-Jun-2014,2753743-09,"1,840.00",KD TAXIS.
Children and Adult Services,Education,Transport,230008,Contract Hire,05-Jun-2014,2753745-17-23/5/14,"1,440.00",L & R PRIVATE HIRE.
Children and Adult Services,Education,Transport,230008,Contract Hire,05-Jun-2014,2753756-1808,"2,759.36",LOCAL TRANSPORT LTD.
Children and Adult Services,Education,Transport,230008,Contract Hire,05-Jun-2014,2753770-00661,"2,096.00",MICHAELS TRAVEL.
Children and Adult Services,Education,Transport,230008,Contract Hire,05-Jun-2014,2753770-660,"1,200.00",MICHAELS TRAVEL.
Children and Adult Services,Education,Transport,230008,Contract Hire,05-Jun-2014,2753778-366/2014,"1,344.00",MOLLYS TAXIS.
Children and Adult Services,Education,Transport,230008,Contract Hire,05-Jun-2014,2753778-367-13/5/14,"1,925.00",MOLLYS TAXIS.
Children and Adult Services,Education,Transport,230008,Contract Hire,05-Jun-2014,2753778-370,"1,620.00",MOLLYS TAXIS.
Children and Adult Services,Education,Transport,230008,Contract Hire,05-Jun-2014,2753784-0086,"1,967.57",MR P CAHILL T/A KILEYS TAXIS.
Children and Adult Services,Education,Transport,230008,Contract Hire,05-Jun-2014,2753785-20B,780.16,MR RAYMOND RENWICK.
Children and Adult Services,Education,Transport,230006,Contract Hire,05-Jun-2014,2753785-9E,534.00,MR RAYMOND RENWICK.
Children and Adult Services,Education,Transport,230008,Contract Hire,05-Jun-2014,2753799-3036,"2,166.08",NIGHTINGALE COACHES.
Children and Adult Services,Education,Transport,230008,Contract Hire,05-Jun-2014,2753799-3037,"1,699.36",NIGHTINGALE COACHES.
Children and Adult Services,Education,Transport,230008,Contract Hire,05-Jun-2014,2753799-3038,"1,714.56",NIGHTINGALE COACHES.
Children and Adult Services,Education,Transport,230008,Contract Hire,05-Jun-2014,2753799-3039,"1,184.00",NIGHTINGALE COACHES.
Children and Adult Services,Education,Transport,230007,Contract Hire,05-Jun-2014,2753799-3041,"2,080.00",NIGHTINGALE COACHES.
Children and Adult Services,Education,Transport,230007,Contract Hire,05-Jun-2014,2753799-3042,"2,000.00",NIGHTINGALE COACHES.
Children and Adult Services,Education,Transport,230007,Contract Hire,05-Jun-2014,2753799-3043,"2,384.00",NIGHTINGALE COACHES.
Children and Adult Services,Education,Transport,230007,Contract Hire,05-Jun-2014,2753799-3044,"2,384.00",NIGHTINGALE COACHES.
Children and Adult Services,Education,Transport,230007,Contract Hire,05-Jun-2014,2753799-3045,"2,160.00",NIGHTINGALE COACHES.
Children and Adult Services,Education,Transport,230007,Contract Hire,05-Jun-2014,2753799-3047,"1,664.00",NIGHTINGALE COACHES.
Children and Adult Services,Education,Transport,230008,Contract Hire,05-Jun-2014,2753799-3048,"1,200.00",NIGHTINGALE COACHES.
Children and Adult Services,Education,Transport,230007,Contract Hire,05-Jun-2014,2753803-740,"2,480.00",NORTH STAR TRAVEL.
Children and Adult Services,Education,Transport,230008,Contract Hire,05-Jun-2014,2753811-5640,"1,272.00",OVERLANDER LTD.
Children and Adult Services,Education,Transport,230008,Contract Hire,05-Jun-2014,2753815-426,"1,248.00",PETERLEE EXECUTIVE CARS.
Children and Adult Services,Education,Transport,230008,Contract Hire,05-Jun-2014,2753816-0315,646.00,PETER`S PRIVATE HIRE/PETER BEST.
Children and Adult Services,Education,Transport,230008,Contract Hire,05-Jun-2014,2753828-2145,"1,056.00",RICHIES TAXIS.
Children and Adult Services,Education,Transport,230008,Contract Hire,05-Jun-2014,2753828-2146,"1,520.00",RICHIES TAXIS.
Children and Adult Services,Education,Transport,230008,Contract Hire,05-Jun-2014,2753832-212,"1,216.00",ROAD RUNNERS (NE) LTD.
Children and Adult Services,Education,Transport,230007,Contract Hire,05-Jun-2014,2753833-130092,"4,942.40",ROBERTS TOURS.
Children and Adult Services,Education,Transport,230008,Contract Hire,05-Jun-2014,2753834-010,"1,360.00",RONS TAXI.
Children and Adult Services,Education,Transport,230008,Contract Hire,05-Jun-2014,2753835-1586,"1,628.00",RONS TAXIS.
Children and Adult Services,Education,Transport,230008,Contract Hire,05-Jun-2014,2753835-1587,"1,888.00",RONS TAXIS.
Children and Adult Services,Education,Transport,230008,Contract Hire,05-Jun-2014,2753836-W019-19/5/14,960.00,ROUTE 1.
Children and Adult Services,Education,Transport,230007,Contract Hire,05-Jun-2014,2753837-ROXAPR14B,"1,100.00",ROXBYS BUS HIRE.
Children and Adult Services,Education,Transport,230007,Contract Hire,05-Jun-2014,2753839-3080/01,800.00,S & S TRAVEL LTD.
Children and Adult Services,Education,Transport,230007,Contract Hire,05-Jun-2014,2753839-4079/01,585.00,S & S TRAVEL LTD.
Children and Adult Services,Education,Transport,230008,Contract Hire,05-Jun-2014,2753839-S011/20,"1,440.00",S & S TRAVEL LTD.
Children and Adult Services,Education,Transport,230008,Contract Hire,05-Jun-2014,2753839-W075/20,"1,344.00",S & S TRAVEL LTD.
Children and Adult Services,Education,Transport,230008,Contract Hire,05-Jun-2014,2753844-22,"1,280.00",SHARON`S TAXI.
Children and Adult Services,Education,Transport,230008,Contract Hire,05-Jun-2014,2753847-71396,"1,440.00",SHOTTON PRIVATE HIRE.
Children and Adult Services,Education,Transport,230008,Contract Hire,05-Jun-2014,2753851-055A,"1,200.00",SJ MACKENZIE T/A SCOTTS TAXIS.
Children and Adult Services,Education,Transport,230006,Contract Hire,05-Jun-2014,2753859-8892,810.00,STANLEY TRAVEL (NORTH EAST) LTD.
Children and Adult Services,Education,Transport,230006,Contract Hire,05-Jun-2014,2753872-1873,945.00,TALBOTS TAXIS.
Children and Adult Services,Education,Transport,230008,Contract Hire,05-Jun-2014,2753873-B668,945.00,TALBOTS TRAVEL LTD.
Children and Adult Services,Education,Transport,230008,Contract Hire,05-Jun-2014,2753873-B669,928.00,TALBOTS TRAVEL LTD.
Children and Adult Services,Education,Transport,230008,Contract Hire,05-Jun-2014,2753876-05/2014/042,"1,680.00",TARNS TAXIS LTD.
Children and Adult Services,Education,Transport,230008,Contract Hire,05-Jun-2014,2753876-05/2014/046,660.00,TARNS TAXIS LTD.
Children and Adult Services,Education,Transport,230008,Contract Hire,05-Jun-2014,2753876-05/2014/047,"1,040.00",TARNS TAXIS LTD.
Children and Adult Services,Education,Transport,230008,Contract Hire,05-Jun-2014,2753880-126,990.00,THE TAXI COMPANY (MURTON) LTD.
Children and Adult Services,Education,Transport,230008,Contract Hire,05-Jun-2014,2753884-004/14,"1,140.80",TL TAXIS.
Children and Adult Services,Education,Transport,230008,Contract Hire,05-Jun-2014,2753888-010,672.00,TRIDENT TAXIS.
Children and Adult Services,Education,Transport,230008,Contract Hire,05-Jun-2014,2753888-10,640.00,TRIDENT TAXIS.
Children and Adult Services,Education,Transport,230008,Contract Hire,05-Jun-2014,2753890-20,"1,211.00",TT TAXIS.
Children and Adult Services,Education,Transport,230008,Contract Hire,05-Jun-2014,2753896-879,"1,440.00",WAYNE`S TAXIS.
Children and Adult Services,Education,Transport,230007,Contract Hire,05-Jun-2014,2753897-CONS/MAY/141,"2,691.20",WEARDALE MOTOR SERVICES LTD.
Children and Adult Services,Education,Transport,230007,Contract Hire,05-Jun-2014,2753897-CONS/MAY/142,"2,704.00",WEARDALE MOTOR SERVICES LTD.
Children and Adult Services,Education,Transport,230007,Contract Hire,05-Jun-2014,2753897-CONS/MAY14/3,"4,704.00",WEARDALE MOTOR SERVICES LTD.
Children and Adult Services,Education,Transport,230007,Contract Hire,05-Jun-2014,2753898-5045,512.00,WEARDALE PRIVATE HIRE.
Children and Adult Services,Education,Transport,230007,Contract Hire,05-Jun-2014,2753898-5046,"3,856.00",WEARDALE PRIVATE HIRE.
Children and Adult Services,Education,Transport,230006,Contract Hire,05-Jun-2014,2753898-5049,"1,381.12",WEARDALE PRIVATE HIRE.
Children and Adult Services,Education,Transport,230008,Contract Hire,05-Jun-2014,2753902-WESTLEA230514,"1,050.00",WESTLEA TAXIS.
Children and Adult Services,Head of Adults,Supplies and Services,324117,Provisions,05-Jun-2014,2753739-100275,631.94,JR HOLLAND FOOD SERVICES LTD.
Children and Adult Services,Public Health,Third Party Payments,460803,Contract Payments,05-Jun-2014,2753639-FW299/NRT/0414,531.66,ASDA PHARMACY.
Children and Adult Services,Public Health,Third Party Payments,460803,Contract Payments,05-Jun-2014,2753646-FH756/NRT/0414,955.43,BOOTS THE CHEMISTS LTD.
Children and Adult Services,Public Health,Third Party Payments,460803,Contract Payments,05-Jun-2014,2753647-FW704/APRIL2014,"1,077.66",BOOTS THE CHEMISTS LTD.
Children and Adult Services,Public Health,Third Party Payments,460803,Contract Payments,05-Jun-2014,2753652-FFV56/0414/NRT,"1,634.14",BRITTON & ROBSON LTD.
Children and Adult Services,Public Health,Third Party Payments,460803,Contract Payments,05-Jun-2014,2753682-FLX61/APR14/NRT,633.48,DIXON & HALL LTD.
Children and Adult Services,Public Health,Third Party Payments,460803,Contract Payments,05-Jun-2014,2753683-FWL23/NRT/0414,"3,031.72",DIXON & HALL LTD.
Children and Adult Services,Public Health,Third Party Payments,460803,Contract Payments,05-Jun-2014,2753702-FV165/33042014/NRT,910.07,G WHITFIELD LTD.
Children and Adult Services,Public Health,Third Party Payments,460803,Contract Payments,05-Jun-2014,2753726-FKG29/NRT/0414,"1,827.84",JF EILBECK CHEMIST LTD.
Children and Adult Services,Public Health,Third Party Payments,460803,Contract Payments,05-Jun-2014,2753731-FR810/APR14/NRT,582.51,JOHN LOW LTD T/A MOORSIDE PHARMACY.
Children and Adult Services,Public Health,Third Party Payments,460803,Contract Payments,05-Jun-2014,2753817-FC276/414/NRT,631.65,PHILLIPS CHEMISTS LTD.
Corporate Resources,Corporate Finance,Supplies and Services,384199,Miscellaneous Expenses,05-Jun-2014,2753644-101269,"12,175.00",BEYOND SYSTEMS.
Corporate Resources,Financial Services,Supplies and Services,342214,Computers and Communications,05-Jun-2014,2753795-91754657,717.75,NEOPOST LTD.
Corporate Resources,I.C.T. Services,Construction Work,908105,Construction work,05-Jun-2014,2753667-2803019266,"4,131.13",CITY OF SUNDERLAND.
Corporate Resources,I.C.T. Services,Supplies and Services,344033,Telephones,05-Jun-2014,2753656,999.00,CABLE & WIRELESS UK.
Corporate Resources,I.C.T. Services,Supplies and Services,344033,Telephones,05-Jun-2014,2753893-915357-051,"117,818.00",VIRGIN MEDIA LTD.
Corporate Resources,Legal & Democratic Services,Supplies and Services,328041,Clothing Uniforms and Laundry,05-Jun-2014,2753685-21193,"1,133.35",DURHAM BUSINESSWEAR LTD.
Corporate Resources,Legal & Democratic Services,Supplies and Services,338042,Services,05-Jun-2014,2753774-304985,540.00,MISS SARAH WOOLRICH.
Corporate Resources,Legal & Democratic Services,Supplies and Services,338042,Services,05-Jun-2014,2753780-304201,"1,000.00",MR CHARLES MCCAIN.
Dedicated Schools Grant,Dedicated Schools Grant,Supplies and Services,338035,Services,05-Jun-2014,2753787-1-2014/TG,612.50,REDACTED - PAYMENT TO INDIVIDUAL
Dedicated Schools Grant,Dedicated Schools Grant,Third Party Payments,440080,Other Third Party Payments,05-Jun-2014,2753681-054/15/1205.,"7,746.00",DISC LTD.
Dedicated Schools Grant,Dedicated Schools Grant,Third Party Payments,425005,Rendered by Voluntary Organisations,05-Jun-2014,2753814-21058,"30,611.01",PERCY HEDLEY FOUNDATION.
Dedicated Schools Grant,Dedicated Schools Grant,Transport,230010,Contract Hire,05-Jun-2014,2753745-2-31/5/14,824.00,L & R PRIVATE HIRE.
Dedicated Schools Grant,Dedicated Schools Grant,Transport,230010,Contract Hire,05-Jun-2014,2753745-60,"1,705.00",L & R PRIVATE HIRE.
Dedicated Schools Grant,Dedicated Schools Grant,Transport,230010,Contract Hire,05-Jun-2014,2753762-005,"1,600.00",M BEHAN T/A M & M`S TAXIS.
Neighbourhood Services,Culture & Sport,Supplies and Services,328041,Clothing Uniforms and Laundry,05-Jun-2014,2753768-DIS002,"2,927.82",MDH TEAMWEAR & TROPHIES.
Neighbourhood Services,Culture & Sport,Supplies and Services,384700,Miscellaneous Expenses,05-Jun-2014,2753771,576.00,REDACTED - PAYMENT TO INDIVIDUAL
Neighbourhood Services,Direct Services,Stock,926004,Stock,05-Jun-2014,2753700-216225238,"1,798.50",FUCHS LUBRICANTS (UK) PLC.
Neighbourhood Services,Direct Services,Stock,926004,Stock,05-Jun-2014,2753714-680224,"1,644.80",HARVEST ENERGY LTD.
Neighbourhood Services,Direct Services,Stock,926004,Stock,05-Jun-2014,2753714-680714,"14,158.41",HARVEST ENERGY LTD.
Neighbourhood Services,Direct Services,Stock,926004,Stock,05-Jun-2014,2753714-682223,"17,280.70",HARVEST ENERGY LTD.
Neighbourhood Services,Direct Services,Stock,926004,Stock,05-Jun-2014,2753714-682727,"1,629.15",HARVEST ENERGY LTD.
Neighbourhood Services,Direct Services,Stock,926004,Stock,05-Jun-2014,2753714-683066,"4,886.58",HARVEST ENERGY LTD.
Neighbourhood Services,Direct Services,Stock,926004,Stock,05-Jun-2014,2753714-683067,"4,584.32",HARVEST ENERGY LTD.
Neighbourhood Services,Direct Services,Stock,926004,Stock,05-Jun-2014,2753714-683973,"18,651.17",HARVEST ENERGY LTD.
Neighbourhood Services,Direct Services,Stock,926004,Stock,05-Jun-2014,2753714-684256,"13,478.75",HARVEST ENERGY LTD.
Neighbourhood Services,Direct Services,Stock,926004,Stock,05-Jun-2014,2753714-684259,"19,484.89",HARVEST ENERGY LTD.
Neighbourhood Services,Direct Services,Stock,926004,Stock,05-Jun-2014,2753714-684274,"2,186.60",HARVEST ENERGY LTD.
Neighbourhood Services,Direct Services,Stock,926004,Stock,05-Jun-2014,2753714-684873,"11,948.97",HARVEST ENERGY LTD.
Neighbourhood Services,Direct Services,Stock,926004,Stock,05-Jun-2014,2753714-684874,"19,375.20",HARVEST ENERGY LTD.
Neighbourhood Services,Direct Services,Stock,926004,Stock,05-Jun-2014,2753794-311523,701.60,NE TRUCK SPARES LTD.
Neighbourhood Services,Direct Services,Stock,926004,Stock,05-Jun-2014,2753908-SVI27448,"2,079.19",ZOELLER WASTE SYSTEMS LTD.
Neighbourhood Services,Direct Services,Supplies and Services,304221,Equipment and Materials,05-Jun-2014,2753689-059-143617,689.17,EDMUNDSON ELECTRICAL LTD.
Neighbourhood Services,Direct Services,Supplies and Services,384956,Miscellaneous Expenses,05-Jun-2014,2753691-Y01151030,"5,206.00",ENVIRONMENT AGENCY.
Neighbourhood Services,Direct Services,Supplies and Services,384956,Miscellaneous Expenses,05-Jun-2014,2753691-Y01151031,"5,206.00",ENVIRONMENT AGENCY.
Neighbourhood Services,Direct Services,Supplies and Services,384956,Miscellaneous Expenses,05-Jun-2014,2753691-Y01151032,"2,717.00",ENVIRONMENT AGENCY.
Neighbourhood Services,Direct Services,Supplies and Services,384956,Miscellaneous Expenses,05-Jun-2014,2753691-Y01151035,"11,685.00",ENVIRONMENT AGENCY.
Neighbourhood Services,Direct Services,Supplies and Services,304221,Equipment and Materials,05-Jun-2014,2753725-3307/0147064,"1,913.83",JEWSON LTD.
Neighbourhood Services,Direct Services,Supplies and Services,304221,Equipment and Materials,05-Jun-2014,2753796-062108,"1,250.00",NEW ROW FARM NURSERIES.
Neighbourhood Services,Direct Services,Supplies and Services,338078,Services,05-Jun-2014,2753823-3960,647.50,QW SECURITY LTD.
Neighbourhood Services,Direct Services,Supplies and Services,304221,Equipment and Materials,05-Jun-2014,2753830-RSIN0096663,505.00,RIGBY TAYLOR LTD.
Neighbourhood Services,Direct Services,Third Party Payments,430100,Rendered by Private Contractors,05-Jun-2014,2753629-14481,"1,675.00",AMBIC LTD.
Neighbourhood Services,Direct Services,Third Party Payments,430100,Rendered by Private Contractors,05-Jun-2014,2753666-3678,784.00,CITY FABRICATIONS.
Neighbourhood Services,Direct Services,Third Party Payments,430100,Rendered by Private Contractors,05-Jun-2014,2753680-244097,571.70,DENNIS EAGLE LTD.
Neighbourhood Services,Direct Services,Third Party Payments,430100,Rendered by Private Contractors,05-Jun-2014,2753704-357546,607.08,GEMCO EQUIPMENT LTD.
Neighbourhood Services,Direct Services,Third Party Payments,430100,Rendered by Private Contractors,05-Jun-2014,2753712-0335/14,665.00,H BRADLEY.
Neighbourhood Services,Direct Services,Third Party Payments,430100,Rendered by Private Contractors,05-Jun-2014,2753729-B03468,652.74,JOHN HART COMMERCIALS LTD.
Neighbourhood Services,Direct Services,Third Party Payments,430100,Rendered by Private Contractors,05-Jun-2014,2753767-17714,"7,143.81",MCCARRICK CONSTRUCTION CO LTD.
Neighbourhood Services,Direct Services,Third Party Payments,430100,Rendered by Private Contractors,05-Jun-2014,2753827-24508,"2,452.20",R PARKER WALL & FLOOR TILING CONTRACTOR.
Neighbourhood Services,Direct Services,Third Party Payments,430100,Rendered by Private Contractors,05-Jun-2014,2753908-SVI27382,"1,205.53",ZOELLER WASTE SYSTEMS LTD.
Neighbourhood Services,Direct Services,Transport,230005,Contract Hire,05-Jun-2014,2753679-673356,528.00,DAWSONRENTALS VANS LTD.
Neighbourhood Services,Direct Services,Transport,210057,Repair and Maintenance of Vehicles,05-Jun-2014,2753688-S184855,"1,604.42",ECON ENGINEERING LTD.
Neighbourhood Services,Direct Services,Transport,230005,Contract Hire,05-Jun-2014,2753750-4335281,"1,615.00",LEEDS COMMERCIAL LTD.
Neighbourhood Services,Direct Services,Transport,230005,Contract Hire,05-Jun-2014,2753750-4335282,"2,850.00",LEEDS COMMERCIAL LTD.
Neighbourhood Services,Direct Services,Transport,210057,Repair and Maintenance of Vehicles,05-Jun-2014,2753794-311462,517.70,NE TRUCK SPARES LTD.
Neighbourhood Services,Direct Services,Transport,210057,Repair and Maintenance of Vehicles,05-Jun-2014,2753800-65728,732.38,NORPLAST LTD.
Neighbourhood Services,Direct Services,Transport,230005,Contract Hire,05-Jun-2014,2753820-INV/23752,850.00,PREMIER TRUCK HIRE LTD.
Neighbourhood Services,Direct Services,Transport,210057,Repair and Maintenance of Vehicles,05-Jun-2014,2753829-707302,534.96,RICKERBY LTD.
Neighbourhood Services,Direct Services,Transport,230005,Contract Hire,05-Jun-2014,2753845-10487331,"1,232.87",SHB HIRE LTD.
Neighbourhood Services,Direct Services,Transport,230005,Contract Hire,05-Jun-2014,2753845-10487335,"2,625.00",SHB HIRE LTD.
Neighbourhood Services,Direct Services,Transport,210057,Repair and Maintenance of Vehicles,05-Jun-2014,2753908-SVI27352,"2,009.52",ZOELLER WASTE SYSTEMS LTD.
Neighbourhood Services,Projects and Business services,Supplies and Services,338027,Services,05-Jun-2014,2753627-HL153746,"2,438.82",ALCONTROL LABORATORIES.
Neighbourhood Services,Projects and Business services,Supplies and Services,338027,Services,05-Jun-2014,2753627-HL156989,"1,330.59",ALCONTROL LABORATORIES.
Neighbourhood Services,Projects and Business services,Supplies and Services,384956,Miscellaneous Expenses,05-Jun-2014,2753691-Y01151036,"3,652.00",ENVIRONMENT AGENCY.
Neighbourhood Services,Projects and Business services,Supplies and Services,384956,Miscellaneous Expenses,05-Jun-2014,2753691-Y01151038,"1,320.00",ENVIRONMENT AGENCY.
Neighbourhood Services,Technical Services,Stock,926900,Stock in hand-Inventory system,05-Jun-2014,2753630-14698,551.66,AMECAL.
Neighbourhood Services,Technical Services,Stock,926900,Stock in hand-Inventory system,05-Jun-2014,2753634-921659985,"2,594.50",ARCO LTD.
Neighbourhood Services,Technical Services,Stock,926900,Stock in hand-Inventory system,05-Jun-2014,2753717-2581841,762.50,HIRE STATION LTD.
Neighbourhood Services,Technical Services,Supplies and Services,384110,Miscellaneous Expenses,05-Jun-2014,2753661-MI65971,"1,211.71",CAUSEWAY TECHNOLOGIES LTD.
Neighbourhood Services,Technical Services,Supplies and Services,304358,Equipment and Materials,05-Jun-2014,2753722-5304662,"1,188.10",JA GILSON (AGRICULTURAL CONTRACTORS) LTD.
Neighbourhood Services,Technical Services,Supplies and Services,304358,Equipment and Materials,05-Jun-2014,2753733-15989,951.50,JOHN R BUTTERFIELD LTD.
Neighbourhood Services,Technical Services,Supplies and Services,304358,Equipment and Materials,05-Jun-2014,2753733-16011,633.75,JOHN R BUTTERFIELD LTD.
Neighbourhood Services,Technical Services,Supplies and Services,304358,Equipment and Materials,05-Jun-2014,2753733-16034,"1,241.00",JOHN R BUTTERFIELD LTD.
Neighbourhood Services,Technical Services,Supplies and Services,304358,Equipment and Materials,05-Jun-2014,2753733-16038,972.60,JOHN R BUTTERFIELD LTD.
Neighbourhood Services,Technical Services,Supplies and Services,304358,Equipment and Materials,05-Jun-2014,2753733-16063,"1,161.00",JOHN R BUTTERFIELD LTD.
Neighbourhood Services,Technical Services,Supplies and Services,304358,Equipment and Materials,05-Jun-2014,2753733-16064,853.00,JOHN R BUTTERFIELD LTD.
Neighbourhood Services,Technical Services,Supplies and Services,304358,Equipment and Materials,05-Jun-2014,2753733-16068,892.60,JOHN R BUTTERFIELD LTD.
Neighbourhood Services,Technical Services,Supplies and Services,304358,Equipment and Materials,05-Jun-2014,2753733-16070,741.00,JOHN R BUTTERFIELD LTD.
Neighbourhood Services,Technical Services,Supplies and Services,304358,Equipment and Materials,05-Jun-2014,2753733-16072,922.00,JOHN R BUTTERFIELD LTD.
Neighbourhood Services,Technical Services,Supplies and Services,304358,Equipment and Materials,05-Jun-2014,2753733-16073,582.00,JOHN R BUTTERFIELD LTD.
Neighbourhood Services,Technical Services,Supplies and Services,304358,Equipment and Materials,05-Jun-2014,2753733-16075,655.80,JOHN R BUTTERFIELD LTD.
Neighbourhood Services,Technical Services,Supplies and Services,304358,Equipment and Materials,05-Jun-2014,2753733-16080,588.60,JOHN R BUTTERFIELD LTD.
Neighbourhood Services,Technical Services,Supplies and Services,304358,Equipment and Materials,05-Jun-2014,2753733-21408,588.60,JOHN R BUTTERFIELD LTD.
Neighbourhood Services,Technical Services,Supplies and Services,304358,Equipment and Materials,05-Jun-2014,2753733-21435,"1,215.00",JOHN R BUTTERFIELD LTD.
Neighbourhood Services,Technical Services,Supplies and Services,304358,Equipment and Materials,05-Jun-2014,2753733-21448,914.20,JOHN R BUTTERFIELD LTD.
Neighbourhood Services,Technical Services,Supplies and Services,304358,Equipment and Materials,05-Jun-2014,2753733-21449,685.20,JOHN R BUTTERFIELD LTD.
Neighbourhood Services,Technical Services,Supplies and Services,304358,Equipment and Materials,05-Jun-2014,2753733-21451,606.60,JOHN R BUTTERFIELD LTD.
Neighbourhood Services,Technical Services,Supplies and Services,304221,Equipment and Materials,05-Jun-2014,2753746-9030847085,574.93,LAFARGE TARMAC TRADING LTD.
Neighbourhood Services,Technical Services,Supplies and Services,304221,Equipment and Materials,05-Jun-2014,2753746-9030989661,556.50,LAFARGE TARMAC TRADING LTD.
Neighbourhood Services,Technical Services,Supplies and Services,304221,Equipment and Materials,05-Jun-2014,2753746-9031000064,502.55,LAFARGE TARMAC TRADING LTD.
Neighbourhood Services,Technical Services,Supplies and Services,304337,Equipment and Materials,05-Jun-2014,2753806-DI20187108,"8,647.14",NORTHERN POWERGRID (NORTHEAST) LTD.
Neighbourhood Services,Technical Services,Supplies and Services,304221,Equipment and Materials,05-Jun-2014,2753849-25216363115,931.00,SIG TRADING LTD.
RED HRA,HRA Centrally Managed,Creditors,952191,Creditor-HRA-rents-refunds,05-Jun-2014,231906-RENTREF,663.27,REDACTED - PAYMENT TO INDIVIDUAL
Regeneration & Economic Development,Economic Development and Housing,Supplies and Services,384999,Miscellaneous Expenses,05-Jun-2014,2753858-INVSPR014,500.00,SSERTROF PROPERTY RENTALS LTD.
Regeneration & Economic Development,Spatial Policy Planning Assets & Environment,Construction Work,908105,Construction work,05-Jun-2014,2753804,"9,567.41",NORTHERN ENERGY CONNECTIONS LTD.
Regeneration & Economic Development,Spatial Policy Planning Assets & Environment,Premises,125009,Rents,05-Jun-2014,2753773-4007,"17,793.75",MINTON OLDBURY LTD.
Regeneration & Economic Development,Transport and Contracted Services,Third Party Payments,430106,Rendered by Private Contractors,05-Jun-2014,2753730-DCC4-5/14,"5,855.11",JOHN JAMES BRUNSKILL.
Regeneration & Economic Development,Transport and Contracted Services,Third Party Payments,430106,Rendered by Private Contractors,05-Jun-2014,2753744,"5,168.10",KEITH HAMMOND T/A FERRYHILL VILLAGE TRAVEL.
Regeneration & Economic Development,Transport and Contracted Services,Third Party Payments,430106,Rendered by Private Contractors,05-Jun-2014,2753824-201-26/5/14,"8,537.86",R COOPER T/A DC TAXIS.
Regeneration & Economic Development,Transport and Contracted Services,Third Party Payments,430106,Rendered by Private Contractors,05-Jun-2014,2753859-9121,"13,453.85",STANLEY TRAVEL (NORTH EAST) LTD.
Assistant Chief Executive,Partnerships & Community Engagement Div.,Cap Exp on Grants & Other Financial Assistance (REFCUS),918004,Contributions to other bodies,06-Jun-2014,2754125-VOUCHER13NB-4TOG013,"3,068.00",ENTER CIC.
Assistant Chief Executive,Partnerships & Community Engagement Div.,Cap Exp on Grants & Other Financial Assistance (REFCUS),918004,Contributions to other bodies,06-Jun-2014,2754129-VOUCHER13NB-TEES016,"4,000.00",EVENWOOD & BARONY PARISH COUNCIL.
Assistant Chief Executive,Partnerships & Community Engagement Div.,Transfer Payments,525030,Other,06-Jun-2014,2754574-VOUCHER13AB,"1,335.00",WOLSINGHAM SCHOOL & COMMUNITY COLLEGE.
Children and Adult Services,Childrens Services,Premises,108099,Service Repairs and Maintenance,06-Jun-2014,2754101-9100679761,"3,342.02",DORMA UK LTD.
Children and Adult Services,Childrens Services,Premises,106099,Centrally Controlled Rep and Maint,06-Jun-2014,2754187-117258,720.00,HUTCHINSON ENVIRONMENTAL SOLUTIONS LTD.
Children and Adult Services,Childrens Services,Premises,108099,Service Repairs and Maintenance,06-Jun-2014,2754187-117482,809.50,HUTCHINSON ENVIRONMENTAL SOLUTIONS LTD.
Children and Adult Services,Childrens Services,Supplies and Services,364340,Grants to Voluntary Organisations,06-Jun-2014,2753959-106311,810.00,ARRIVA DURHAM COUNTY LTD.
Children and Adult Services,Childrens Services,Third Party Payments,425040,Rendered by Voluntary Organisations,06-Jun-2014,2754481-146608,"1,069.00",SWIIS FOSTER CARE LTD.
Children and Adult Services,Childrens Services,Transport,230005,Contract Hire,06-Jun-2014,2753921-T42/SW,"1,264.00",AABAT TAXIS.
Children and Adult Services,Education,Transport,230007,Contract Hire,06-Jun-2014,2754258,800.00,MA BODDY.
Children and Adult Services,Education,Transport,230007,Contract Hire,06-Jun-2014,2753911-51401,624.00,24/7 TAXI SERVICES LTD.
Children and Adult Services,Education,Transport,230008,Contract Hire,06-Jun-2014,2753911-51408,960.00,24/7 TAXI SERVICES LTD.
Children and Adult Services,Education,Transport,230007,Contract Hire,06-Jun-2014,2753918-A1DCC/511,755.68,A1 TAXIS.
Children and Adult Services,Education,Transport,230008,Contract Hire,06-Jun-2014,2753921-T31/SE,"2,000.00",AABAT TAXIS.
Children and Adult Services,Education,Transport,230008,Contract Hire,06-Jun-2014,2753921-T32/SF,"1,024.00",AABAT TAXIS.
Children and Adult Services,Education,Transport,230006,Contract Hire,06-Jun-2014,2753921-T33/SG,"1,159.95",AABAT TAXIS.
Children and Adult Services,Education,Transport,230008,Contract Hire,06-Jun-2014,2753921-T34/SH,"1,264.00",AABAT TAXIS.
Children and Adult Services,Education,Transport,230008,Contract Hire,06-Jun-2014,2753921-T41/SV,"1,104.00",AABAT TAXIS.
Children and Adult Services,Education,Transport,230008,Contract Hire,06-Jun-2014,2753921-V2/SCC,"1,056.00",AABAT TAXIS.
Children and Adult Services,Education,Transport,230008,Contract Hire,06-Jun-2014,2753922-71-23/5/14,"1,500.00",ABLE NOVAK TAXIS.
Children and Adult Services,Education,Transport,230008,Contract Hire,06-Jun-2014,2753922-72,"1,760.00",ABLE NOVAK TAXIS.
Children and Adult Services,Education,Transport,230008,Contract Hire,06-Jun-2014,2753922-73-23/5/14,"1,120.00",ABLE NOVAK TAXIS.
Children and Adult Services,Education,Transport,230007,Contract Hire,06-Jun-2014,2753924-554,"1,088.00",AC TAXIS.
Children and Adult Services,Education,Transport,230008,Contract Hire,06-Jun-2014,2753939-0287,880.00,AJS PRIVATE HIRE.
Children and Adult Services,Education,Transport,230006,Contract Hire,06-Jun-2014,2753940-388023,608.00,ALAN PRITCHARD T/A ALPHA TAXIS.
Children and Adult Services,Education,Transport,230008,Contract Hire,06-Jun-2014,2753963-404,"1,120.00",AT TAXIS LTD.
Children and Adult Services,Education,Transport,230007,Contract Hire,06-Jun-2014,2753965-03150,916.16,ATLAS TAXIS CONSETT.
Children and Adult Services,Education,Transport,230008,Contract Hire,06-Jun-2014,2753984-1317,"1,584.00",BOBBY DOVE.
Children and Adult Services,Education,Transport,230008,Contract Hire,06-Jun-2014,2754019-80,"1,125.00",CASTLE CARS.
Children and Adult Services,Education,Transport,230007,Contract Hire,06-Jun-2014,2754072-4744,"1,220.00",CROFT BUSINESS SERVICES (UK) LTD T/A CROFT TAXIS.
Children and Adult Services,Education,Transport,230008,Contract Hire,06-Jun-2014,2754076-47,960.00,D CROOK.
Children and Adult Services,Education,Transport,230007,Contract Hire,06-Jun-2014,2754104-7288,"19,797.40",DURHAM CITY COACHES.
Children and Adult Services,Education,Transport,230007,Contract Hire,06-Jun-2014,2754149-16297,"2,064.00",GARNETTS LTD (COACHES).
Children and Adult Services,Education,Transport,230007,Contract Hire,06-Jun-2014,2754158-167V,"3,224.00",GRAHAMS MOTOR SERVICES.
Children and Adult Services,Education,Transport,230007,Contract Hire,06-Jun-2014,2754158-174V,"1,664.00",GRAHAMS MOTOR SERVICES.
Children and Adult Services,Education,Transport,230007,Contract Hire,06-Jun-2014,2754207-725,600.00,J YOUNG T/A VIP TAXIS.
Children and Adult Services,Education,Transport,230008,Contract Hire,06-Jun-2014,2754207-731,950.00,J YOUNG T/A VIP TAXIS.
Children and Adult Services,Education,Transport,230008,Contract Hire,06-Jun-2014,2754207-733,"1,344.00",J YOUNG T/A VIP TAXIS.
Children and Adult Services,Education,Transport,230008,Contract Hire,06-Jun-2014,2754222-S007020,"1,849.00",KEITH HAMMOND T/A FERRYHILL VILLAGE TRAVEL.
Children and Adult Services,Education,Transport,230008,Contract Hire,06-Jun-2014,2754231-KW251-1/6/14,720.00,KWIK CABS.
Children and Adult Services,Education,Transport,230008,Contract Hire,06-Jun-2014,2754231-KW252-1/6/14,640.00,KWIK CABS.
Children and Adult Services,Education,Transport,230008,Contract Hire,06-Jun-2014,2754231-KW253,880.00,KWIK CABS.
Children and Adult Services,Education,Transport,230008,Contract Hire,06-Jun-2014,2754231-KW253A-1/6/14,825.00,KWIK CABS.
Children and Adult Services,Education,Transport,230008,Contract Hire,06-Jun-2014,2754231-KW254-1/6/14,560.00,KWIK CABS.
Children and Adult Services,Education,Transport,230008,Contract Hire,06-Jun-2014,2754253-68-23/5/14,"1,328.00",LORRAINES TAXIS.
Children and Adult Services,Education,Transport,230008,Contract Hire,06-Jun-2014,2754253-69,"1,408.00",LORRAINES TAXIS.
Children and Adult Services,Education,Transport,230008,Contract Hire,06-Jun-2014,2754258-A040-1/5/14,"1,440.00",MA BODDY.
Children and Adult Services,Education,Transport,230008,Contract Hire,06-Jun-2014,2754258-EV-13,"1,416.80",MA BODDY.
Children and Adult Services,Education,Transport,230008,Contract Hire,06-Jun-2014,2754261-380514,"1,088.00",MARKS TAXIS.
Children and Adult Services,Education,Transport,230008,Contract Hire,06-Jun-2014,2754261-480514,736.00,MARKS TAXIS.
Children and Adult Services,Education,Transport,230008,Contract Hire,06-Jun-2014,2754268-02-31/5/14,"1,360.00",MAURICE & SONS.
Children and Adult Services,Education,Transport,230008,Contract Hire,06-Jun-2014,2754272-1480MCD,"1,584.00",MCDONALD TRAVEL.
Children and Adult Services,Education,Transport,230008,Contract Hire,06-Jun-2014,2754272-1482MCD,"1,008.00",MCDONALD TRAVEL.
Children and Adult Services,Education,Transport,230008,Contract Hire,06-Jun-2014,2754272-1483MCD,992.00,MCDONALD TRAVEL.
Children and Adult Services,Education,Transport,230008,Contract Hire,06-Jun-2014,2754272-1484MCD,"1,763.00",MCDONALD TRAVEL.
Children and Adult Services,Education,Transport,230007,Contract Hire,06-Jun-2014,2754274-00662,"2,240.00",MICHAELS TRAVEL.
Children and Adult Services,Education,Transport,230008,Contract Hire,06-Jun-2014,2754281-N071-009,"1,793.75",MISS KA SUTHERLAND T/A FERRYHILL TRAVEL TAXI & MINIBUS HIRE.
Children and Adult Services,Education,Transport,230008,Contract Hire,06-Jun-2014,2754281-W101-008,960.00,MISS KA SUTHERLAND T/A FERRYHILL TRAVEL TAXI & MINIBUS HIRE.
Children and Adult Services,Education,Transport,230008,Contract Hire,06-Jun-2014,2754288-1-175,"1,440.00",MR D KEMP T/A ACE EXECUTIVE.
Children and Adult Services,Education,Transport,230008,Contract Hire,06-Jun-2014,2754292-231,560.00,MR LEE ANDERSON.
Children and Adult Services,Education,Transport,230007,Contract Hire,06-Jun-2014,2754319-3046,"2,080.00",NIGHTINGALE COACHES.
Children and Adult Services,Education,Transport,230007,Contract Hire,06-Jun-2014,2754358-1308,"2,080.00",PAUL WATSON TRAVEL.
Children and Adult Services,Education,Transport,230006,Contract Hire,06-Jun-2014,2754445-F536-05-14,"1,938.00",SIMON ELLIFF.
Children and Adult Services,Education,Transport,230008,Contract Hire,06-Jun-2014,2754446-35,"1,160.00",SIMONS TAXIS.
Children and Adult Services,Education,Transport,230008,Contract Hire,06-Jun-2014,2754451-056A,"1,920.00",SJ MACKENZIE T/A SCOTTS TAXIS.
Children and Adult Services,Education,Transport,230008,Contract Hire,06-Jun-2014,2754451-059A,"1,440.00",SJ MACKENZIE T/A SCOTTS TAXIS.
Children and Adult Services,Education,Transport,230008,Contract Hire,06-Jun-2014,2754457-302,"1,120.00",SODA TAXIS.
Children and Adult Services,Education,Transport,230008,Contract Hire,06-Jun-2014,2754484-36405C,"1,320.00",T MOORE & SON.
Children and Adult Services,Education,Transport,230008,Contract Hire,06-Jun-2014,2754486-1872,"1,075.00",TALBOTS TAXIS.
Children and Adult Services,Education,Transport,230008,Contract Hire,06-Jun-2014,2754491-DCC/2014/22,"1,265.76",TAYLOR`S TAXIS.
Children and Adult Services,Education,Transport,230008,Contract Hire,06-Jun-2014,2754491-DCC/2014/23,"1,712.00",TAYLOR`S TAXIS.
Children and Adult Services,Education,Transport,230007,Contract Hire,06-Jun-2014,2754491-DCC/2014/24,"1,072.00",TAYLOR`S TAXIS.
Children and Adult Services,Education,Transport,230008,Contract Hire,06-Jun-2014,2754491-DCC/2014/26,"1,408.00",TAYLOR`S TAXIS.
Children and Adult Services,Education,Transport,230007,Contract Hire,06-Jun-2014,2754499-22/23/5/2014,"1,575.00",TED WILFORD COACHES.
Children and Adult Services,Education,Transport,230007,Contract Hire,06-Jun-2014,2754530-NO4014,544.00,TRANSPORT.ADVENTURE.XI.
Children and Adult Services,Education,Transport,230009,Contract Hire,06-Jun-2014,2754530-NO4114,608.00,TRANSPORT.ADVENTURE.XI.
Children and Adult Services,Education,Transport,230008,Contract Hire,06-Jun-2014,2754535-034-23/5/14,672.00,TRUDY`S.
Children and Adult Services,Education,Transport,230006,Contract Hire,06-Jun-2014,2754566-987,802.00,WE CONNOR.
Children and Adult Services,Planning & Service Strategy,Supplies and Services,338091,Services,06-Jun-2014,2754551-07044018-004,770.00,UNIVERSITY OF TEESSIDE.
Children and Adult Services,Public Health,Premises,125009,Rents,06-Jun-2014,2754318-48328367,774.62,NHS PROPERTY SERVICES LTD.
Corporate Resources,Legal & Democratic Services,Supplies and Services,338057,Services,06-Jun-2014,2754047-3910004113,"28,634.58",CO DURHAM & DARLINGTON NHS FOUNDATION TRUST.
Corporate Resources,Legal & Democratic Services,Supplies and Services,338057,Services,06-Jun-2014,2754047-3980004301,"9,903.00",CO DURHAM & DARLINGTON NHS FOUNDATION TRUST.
Corporate Resources,Legal & Democratic Services,Supplies and Services,338057,Services,06-Jun-2014,2754047-3980004322,"19,444.50",CO DURHAM & DARLINGTON NHS FOUNDATION TRUST.
Dedicated Schools Grant,Dedicated Schools Grant,Supplies and Services,338091,Services,06-Jun-2014,2754246-I/N-284,"2,450.00",LIAM DINEEN T/A BOX CLEVER.
Dedicated Schools Grant,Dedicated Schools Grant,Transport,230010,Contract Hire,06-Jun-2014,2754213-2014/08,800.00,JM HUMBLE COACH HIRE.
Dedicated Schools Grant,Dedicated Schools Grant,Transport,230010,Contract Hire,06-Jun-2014,2754222-L049005,754.00,KEITH HAMMOND T/A FERRYHILL VILLAGE TRAVEL.
Dedicated Schools Grant,Dedicated Schools Grant,Transport,230010,Contract Hire,06-Jun-2014,2754457-L014-260,"1,810.00",SODA TAXIS.
Dedicated Schools Grant,Dedicated Schools Grant,Transport,230010,Contract Hire,06-Jun-2014,2754484-36605E,661.50,T MOORE & SON.
Dedicated Schools Grant,Dedicated Schools Grant,Transport,230010,Contract Hire,06-Jun-2014,2754484-36705D,"1,487.50",T MOORE & SON.
Dedicated Schools Grant,Dedicated Schools Grant,Transport,230010,Contract Hire,06-Jun-2014,2754521-TS14-20,"1,600.00",TOP STAR TRAVEL.
Dedicated Schools Grant,Dedicated Schools Grant,Transport,230010,Contract Hire,06-Jun-2014,2754531-13009,880.00,TRAVEL 6.
Dedicated Schools Grant,Dedicated Schools Grant,Transport,230010,Contract Hire,06-Jun-2014,2754531-2024,666.00,TRAVEL 6.
Neighbourhood Services,Culture & Sport,Premises,145009,Cleaning and Domestic Supplies,06-Jun-2014,2754269-131405,527.66,MAX RECYCLE T/A THE DURHAM COMPANY (TDC).
Neighbourhood Services,Culture & Sport,Premises,145009,Cleaning and Domestic Supplies,06-Jun-2014,2754269-131407,547.10,MAX RECYCLE T/A THE DURHAM COMPANY (TDC).
Neighbourhood Services,Culture & Sport,Premises,145009,Cleaning and Domestic Supplies,06-Jun-2014,2754269-131409,547.10,MAX RECYCLE T/A THE DURHAM COMPANY (TDC).
Neighbourhood Services,Culture & Sport,Premises,106080,Centrally Controlled Rep and Maint,06-Jun-2014,2754432-3298907,613.41,SECOM PLC.
Neighbourhood Services,Culture & Sport,Supplies and Services,312013,Newspapers Books and Periodicals,06-Jun-2014,2753962-4303738,679.45,ASKEWS & HOLTS LIBRARY SERVICES LTD.
Neighbourhood Services,Culture & Sport,Supplies and Services,312013,Newspapers Books and Periodicals,06-Jun-2014,2753962-4306730,536.03,ASKEWS & HOLTS LIBRARY SERVICES LTD.
Neighbourhood Services,Culture & Sport,Supplies and Services,304252,Equipment and Materials,06-Jun-2014,2754079-SIN122873,"1,233.00",DALESAUNA LTD.
Neighbourhood Services,Culture & Sport,Supplies and Services,304259,Equipment and Materials,06-Jun-2014,2754368-60251684,"3,069.39",PHS GROUP PLC.
Neighbourhood Services,Culture & Sport,Supplies and Services,304259,Equipment and Materials,06-Jun-2014,2754475-5599,"3,924.00",STONE TECHNICAL SERVICES LTD.
Neighbourhood Services,Direct Services,Premises,106080,Centrally Controlled Rep and Maint,06-Jun-2014,2754193-30634,563.40,IDS FIRE & SECURITY.
Neighbourhood Services,Direct Services,Supplies and Services,304221,Equipment and Materials,06-Jun-2014,2754126-Y01151730,"1,980.00",ENVIRONMENT AGENCY.
Neighbourhood Services,Direct Services,Supplies and Services,304221,Equipment and Materials,06-Jun-2014,2754184-A38/0045040,544.35,HOWDENS JOINERY LTD.
Neighbourhood Services,Direct Services,Supplies and Services,304221,Equipment and Materials,06-Jun-2014,2754519-99048,"1,597.40",TOMMY WARDLE.
Neighbourhood Services,Direct Services,Third Party Payments,430100,Rendered by Private Contractors,06-Jun-2014,2754217-105280,816.98,JOHNSON WRIGHT FLOORING LTD.
Neighbourhood Services,Projects and Business services,Supplies and Services,304357,Equipment and Materials,06-Jun-2014,2754255-11,"1,200.00",M & E & MR WALTON.
Neighbourhood Services,Projects and Business services,Third Party Payments,430119,Rendered by Private Contractors,06-Jun-2014,2754170-SIN7040266,"5,837.83",HCS DRAIN SERVICES LTD.
Neighbourhood Services,Technical Services,Supplies and Services,304221,Equipment and Materials,06-Jun-2014,2754001-DHM/310024,"1,928.35",BUILDBASE LTD.
Neighbourhood Services,Technical Services,Supplies and Services,304221,Equipment and Materials,06-Jun-2014,2754027-3006541276,990.00,CEMEX UK MATERIALS LTD.
Neighbourhood Services,Technical Services,Supplies and Services,304221,Equipment and Materials,06-Jun-2014,2754215-08/79132,"3,190.74",JOHN DAVIDSON (PIPES) LTD.
Neighbourhood Services,Technical Services,Supplies and Services,304221,Equipment and Materials,06-Jun-2014,2754542-136717,"1,965.29",TYNEDALE ROADSTONE LTD.
Neighbourhood Services,Technical Services,Supplies and Services,304221,Equipment and Materials,06-Jun-2014,2754542-136882,633.24,TYNEDALE ROADSTONE LTD.
RED HRA,HRA Capital,Construction Work,908105,Construction work,06-Jun-2014,2754347-969941,"8,288.00",OPENREACH LLU.
Regeneration & Economic Development,Economic Development and Housing,Supplies and Services,338002,Services,06-Jun-2014,2754438-RED-06-2014-022,"3,300.00",SHERBURN HILL COMMUNITY ASSOCIATION.
Regeneration & Economic Development,Economic Development and Housing,Supplies and Services,384700,Miscellaneous Expenses,06-Jun-2014,2754567-RED-06-2014-014,"1,000.00",WEAR VALLEY PLUMBING & HEATING.
Regeneration & Economic Development,Spatial Policy Planning Assets & Environment,Supplies and Services,384700,Miscellaneous Expenses,06-Jun-2014,2754038-RED-06-2014-013,"1,653.15",CITY OF SUNDERLAND.
Regeneration & Economic Development,Transport and Contracted Services,Construction Work,908105,Construction work,06-Jun-2014,2754004-02125,"2,804.01",BUS SHELTERS LTD.
Assistant Chief Executive,Partnerships & Community Engagement Div.,Supplies and Services,384085,Miscellaneous Expenses,09-Jun-2014,2754619-PEMT03-14NICH03-14,500.00,DENE VALLEY CARNIVAL COMMITTEE.
Assistant Chief Executive,Partnerships & Community Engagement Div.,Supplies and Services,384085,Miscellaneous Expenses,09-Jun-2014,2754620-PEMT02-14NICH02-14,500.00,DENE VALLEY COMMUNITY PARTNERSHIP.
Children and Adult Services,Childrens Services,Employees,080025,Agency Staff,09-Jun-2014,2754613-537583,"101,140.73",COMENSURA LTD.
Children and Adult Services,Childrens Services,Employees,080025,Agency Staff,09-Jun-2014,2754613-537788,"106,724.89",COMENSURA LTD.
Children and Adult Services,Childrens Services,Supplies and Services,364999,Grants to Voluntary Organisations,09-Jun-2014,2754584-CAS-01-2014-103,518.00,2ND BISHOP AUCKLAND SCOUT GROUP.
Children and Adult Services,Childrens Services,Third Party Payments,440016,Other Third Party Payments,09-Jun-2014,2754684-CAS-06-2014-033,794.43,REDACTED - PAYMENT TO INDIVIDUAL
Children and Adult Services,Childrens Services,Transport,230005,Contract Hire,09-Jun-2014,2754645-2772,924.00,GATESHEAD CENTRAL TAXIS LTD.
Children and Adult Services,Childrens Services,Transport,230005,Contract Hire,09-Jun-2014,2754702-218,"1,287.00",ROAD RUNNERS (NE) LTD.
Children and Adult Services,Education,Third Party Payments,440999,Other Third Party Payments,09-Jun-2014,2754615-14/15019,780.00,CORNFORTH PARTNERSHIP.
Children and Adult Services,Education,Transport,230007,Contract Hire,09-Jun-2014,2754714,918.72,SIMON ELLIFF.
Children and Adult Services,Education,Transport,230007,Contract Hire,09-Jun-2014,2754594-03154,576.00,ATLAS TAXIS CONSETT.
Children and Adult Services,Education,Transport,230007,Contract Hire,09-Jun-2014,2754595-5184-23/5/14,520.00,AW TAXIS.
Children and Adult Services,Education,Transport,230007,Contract Hire,09-Jun-2014,2754644-16298,"2,544.00",GARNETTS LTD (COACHES).
Children and Adult Services,Education,Transport,230007,Contract Hire,09-Jun-2014,2754701-20,993.60,RJB & KE GAIR T/A ROBS PRIVATE HIRE.
Children and Adult Services,Education,Transport,230008,Contract Hire,09-Jun-2014,2754716-123,736.00,SODA TAXIS.
Children and Adult Services,Education,Transport,230007,Contract Hire,09-Jun-2014,2754718-9203,"2,528.00",STANLEY TRAVEL (NORTH EAST) LTD.
Children and Adult Services,Education,Transport,230008,Contract Hire,09-Jun-2014,2754719-DCC091/E004,"1,920.16",STEPHEN COXON.
Children and Adult Services,Head of Adults,Premises,125009,Rents,09-Jun-2014,2754650-2400-064198,"3,297.26",GVA GRIMLEY LLP.
Children and Adult Services,Head of Adults,Premises,125009,Rents,09-Jun-2014,2754667-349858,782.50,KNIGHT FRANK LLP.
Children and Adult Services,Head of Adults,Transport,230005,Contract Hire,09-Jun-2014,2754682-618,"2,700.00",MR AD HOWARD.
Children and Adult Services,Planning & Service Strategy,Supplies and Services,338089,Services,09-Jun-2014,2754699-16259,"2,048.74",RECONSTRUCT LTD.
Corporate Resources,Corporate Finance,Supplies and Services,342051,Computers and Communications,09-Jun-2014,2754734-1739,"3,303.65",UNIT4 BUSINESS SOFTWARE LTD FORMERLY AGRESSO.
Corporate Resources,Financial Services,Supplies and Services,364999,Grants to Voluntary Organisations,09-Jun-2014,2754606-CACD002,"58,998.00",CITIZENS ADVICE COUNTY DURHAM.
Corporate Resources,I.C.T. Services,Supplies and Services,304303,Equipment and Materials,09-Jun-2014,2754679-17697,801.94,MAGNUM GROUP T/A RA TECHNOLOGY.
Corporate Resources,Legal & Democratic Services,Supplies and Services,338057,Services,09-Jun-2014,2754609-3980004454,"2,865.00",CO DURHAM & DARLINGTON NHS FOUNDATION TRUST.
Corporate Resources,Legal & Democratic Services,Supplies and Services,338057,Services,09-Jun-2014,2754610-S44995-00886,670.00,CO-OPERATIVE FUNERAL CARE.
Corporate Resources,Legal & Democratic Services,Supplies and Services,338057,Services,09-Jun-2014,2754625-PB32,"1,258.40",DR PAUL BARRETT.
Corporate Resources,Legal & Democratic Services,Supplies and Services,338057,Services,09-Jun-2014,2754627-APRIL-14U,"1,355.20",DR SREE MUSSUNOOR.
Corporate Resources,Legal & Democratic Services,Supplies and Services,338057,Services,09-Jun-2014,2754634-1227,"1,172.70",ELYSIAN PATHOLOGY SERVICES LTD.
Dedicated Schools Grant,Dedicated Schools Grant,Supplies and Services,338091,Services,09-Jun-2014,2754671-I/N-290,"4,000.00",LIAM DINEEN T/A BOX CLEVER.
Dedicated Schools Grant,Dedicated Schools Grant,Transport,230010,Contract Hire,09-Jun-2014,2754588-506023,"1,265.00",ALANS CABS.
Dedicated Schools Grant,Dedicated Schools Grant,Transport,230010,Contract Hire,09-Jun-2014,2754719-DCC009/B004,"1,376.00",STEPHEN COXON.
Neighbourhood Services,Culture & Sport,Supplies and Services,338099,Services,09-Jun-2014,2754592-100334,"20,000.00",ARTICHOKE TRUST.
Neighbourhood Services,Culture & Sport,Supplies and Services,304259,Equipment and Materials,09-Jun-2014,2754632-059-143800,"1,224.00",EDMUNDSON ELECTRICAL LTD.
Neighbourhood Services,Culture & Sport,Supplies and Services,384199,Miscellaneous Expenses,09-Jun-2014,2754655-13006,"1,168.41",INTEROPERA.
Neighbourhood Services,Culture & Sport,Supplies and Services,384700,Miscellaneous Expenses,09-Jun-2014,2754670-SI-002379,"2,341.75",LEISUREWORKS.
Neighbourhood Services,Culture & Sport,Supplies and Services,312013,Newspapers Books and Periodicals,09-Jun-2014,2754677-1075538,636.82,MAGNA LARGE PRINT BOOKS.
Neighbourhood Services,Culture & Sport,Supplies and Services,336005,Advertising,09-Jun-2014,2754729-1458717,500.00,TRINITY MIRROR PUBLISHING LTD.
Neighbourhood Services,Culture & Sport,Supplies and Services,338047,Services,09-Jun-2014,2754735-IN14015733,"1,328.24",UNIVERSAL PICTURES INTERNATIONAL UK & EIRE LTD.
Neighbourhood Services,Culture & Sport,Supplies and Services,304259,Equipment and Materials,09-Jun-2014,2754744-299554,983.85,WM SMITH & SONS (BARNARD CASTLE) LTD.
Neighbourhood Services,Direct Services,Supplies and Services,304221,Equipment and Materials,09-Jun-2014,2754601-1650/0372930,653.02,BSS GROUP PLC.
Neighbourhood Services,Direct Services,Supplies and Services,304221,Equipment and Materials,09-Jun-2014,2754601-1650/0372931,679.68,BSS GROUP PLC.
Neighbourhood Services,Direct Services,Supplies and Services,304221,Equipment and Materials,09-Jun-2014,2754602-1650/0372927,781.32,BSS GROUP PLC.
Neighbourhood Services,Direct Services,Supplies and Services,304259,Equipment and Materials,09-Jun-2014,2754631-4041849,"3,378.40",EAST RIDING HORTICULTURE LTD.
Neighbourhood Services,Direct Services,Supplies and Services,304259,Equipment and Materials,09-Jun-2014,2754685-062119,500.00,NEW ROW FARM NURSERIES.
Neighbourhood Services,Direct Services,Supplies and Services,304221,Equipment and Materials,09-Jun-2014,2754725-29219,"1,688.00",TOTAL PUMP SOLUTIONS LTD.
Neighbourhood Services,Direct Services,Third Party Payments,430100,Rendered by Private Contractors,09-Jun-2014,2754586-10940,700.00,ADVANTAGE UTILITIES SERVICES LTD.
Neighbourhood Services,EnvironmentHealth & Consumer Protection,Supplies and Services,336005,Advertising,09-Jun-2014,2754603-93555159,793.00,CAPITA PROPERTY & INFRASTRUCTURE LTD.
Neighbourhood Services,Projects and Business services,Construction Work,908105,Construction work,09-Jun-2014,2754736-15646,"8,000.00",VIRIDIAN SYSTEMS LTD.
Neighbourhood Services,Projects and Business services,Third Party Payments,430119,Rendered by Private Contractors,09-Jun-2014,2754736-15647,"4,939.00",VIRIDIAN SYSTEMS LTD.
Neighbourhood Services,Technical Services,Stock,926900,Stock in hand-Inventory system,09-Jun-2014,2754618-276974A,"1,341.50",DACRYLATE PAINTS LTD.
Neighbourhood Services,Technical Services,Stock,926900,Stock in hand-Inventory system,09-Jun-2014,2754745-12801130,833.28,WOLSELEY UK LTD.
Neighbourhood Services,Technical Services,Stock,926900,Stock in hand-Inventory system,09-Jun-2014,2754745-12801479,"1,237.99",WOLSELEY UK LTD.
Neighbourhood Services,Technical Services,Stock,926900,Stock in hand-Inventory system,09-Jun-2014,2754745-12880850,"1,248.57",WOLSELEY UK LTD.
Neighbourhood Services,Technical Services,Stock,926900,Stock in hand-Inventory system,09-Jun-2014,2754745-12881076,"3,474.34",WOLSELEY UK LTD.
Neighbourhood Services,Technical Services,Stock,926900,Stock in hand-Inventory system,09-Jun-2014,2754745-12881077,"1,659.23",WOLSELEY UK LTD.
Neighbourhood Services,Technical Services,Stock,926900,Stock in hand-Inventory system,09-Jun-2014,2754745-12881084,854.10,WOLSELEY UK LTD.
Neighbourhood Services,Technical Services,Supplies and Services,304252,Equipment and Materials,09-Jun-2014,2754643-006018483,570.00,GAP GROUP LTD.
Neighbourhood Services,Technical Services,Supplies and Services,304357,Equipment and Materials,09-Jun-2014,2754643-DCC010614,"11,732.82",GAP GROUP LTD.
RED HRA,Housing Revenue Account,Premises,120009,Energy Costs,09-Jun-2014,2754741-2593,"2,189.13",WELLSPRINGS PROPERTIES LTD.
RED HRA,Housing Revenue Account,Supplies and Services,342053,Computers and Communications,09-Jun-2014,2754689-91307980,"6,000.00",NORTHGATE INFORMATION SOLUTIONS UK LTD.
RED HRA,HRA Capital,Construction Work,908105,Construction work,09-Jun-2014,2754710-CON68568,719.00,SGS MIS ENVIRONMENTAL LTD.
RED HRA,HRA Capital,Construction Work,908105,Construction work,09-Jun-2014,2754721-10110417883,"1,477.49",SUNTER LTD.
RED HRA,HRA Capital,Construction Work,908105,Construction work,09-Jun-2014,2754721-196273,"1,477.49",SUNTER LTD.
Regeneration & Economic Development,Spatial Policy Planning Assets & Environment,Supplies and Services,342501,Computers and Communications,09-Jun-2014,2754585-0000083182,526.80,ADEM LTD.
Regeneration & Economic Development,Spatial Policy Planning Assets & Environment,Supplies and Services,338099,Services,09-Jun-2014,2754607,556.28,REDACTED - PAYMENT TO INDIVIDUAL
Regeneration & Economic Development,Transport and Contracted Services,Supplies and Services,304245,Equipment and Materials,09-Jun-2014,2754731-10240834,"3,750.00",TUNSTALL HEALTHCARE (UK) LTD.
Children and Adult Services,Childrens Services,Supplies and Services,338076,Services,10-Jun-2014,2755496-20011999,"26,862.52",DURHAM POLICE & CRIME COMMISSIONER.
Children and Adult Services,Childrens Services,Third Party Payments,440016,Other Third Party Payments,10-Jun-2014,2754826-954416,"1,649.44",REDACTED - PAYMENT TO INDIVIDUAL
Children and Adult Services,Childrens Services,Third Party Payments,440016,Other Third Party Payments,10-Jun-2014,2754826-954417,"1,649.44",REDACTED - PAYMENT TO INDIVIDUAL
Children and Adult Services,Childrens Services,Third Party Payments,440015,Other Third Party Payments,10-Jun-2014,2754971-954469,729.56,REDACTED - PAYMENT TO INDIVIDUAL
Children and Adult Services,Childrens Services,Third Party Payments,440001,Other Third Party Payments,10-Jun-2014,2755072-954073,953.06,REDACTED - PAYMENT TO INDIVIDUAL
Children and Adult Services,Childrens Services,Third Party Payments,440028,Other Third Party Payments,10-Jun-2014,2755278-955059,706.23,REDACTED - PAYMENT TO INDIVIDUAL
Children and Adult Services,Childrens Services,Third Party Payments,440001,Other Third Party Payments,10-Jun-2014,2755296-954096,888.93,REDACTED - PAYMENT TO INDIVIDUAL
Children and Adult Services,Childrens Services,Third Party Payments,440005,Other Third Party Payments,10-Jun-2014,2755337-954222,541.95,REDACTED - PAYMENT TO INDIVIDUAL
Children and Adult Services,Childrens Services,Third Party Payments,486029,Service Level Agreements,10-Jun-2014,2755518-16609,"21,125.83",FAMILY ACTION.
Children and Adult Services,Childrens Services,Third Party Payments,425040,Rendered by Voluntary Organisations,10-Jun-2014,2755525-630118385,"3,947.83",FOSTERING PEOPLE LTD.
Children and Adult Services,Childrens Services,Third Party Payments,425017,Rendered by Voluntary Organisations,10-Jun-2014,2755806-1150036,"2,795.00",ST CUTHBERTS CARE.
Children and Adult Services,Childrens Services,Third Party Payments,425040,Rendered by Voluntary Organisations,10-Jun-2014,2755806-1150279,"3,100.00",ST CUTHBERTS CARE.
Children and Adult Services,Childrens Services,Third Party Payments,425040,Rendered by Voluntary Organisations,10-Jun-2014,2755821-146605,"1,069.00",SWIIS FOSTER CARE LTD.
Children and Adult Services,Childrens Services,Third Party Payments,425040,Rendered by Voluntary Organisations,10-Jun-2014,2755821-146877,"1,069.00",SWIIS FOSTER CARE LTD.
Children and Adult Services,Childrens Services,Third Party Payments,440999,Other Third Party Payments,10-Jun-2014,2755831-4810002362,"2,083.33",TEES ESK & WEAR VALLEYS NHS FOUNDATION TRUST.
Children and Adult Services,Childrens Services,Third Party Payments,440999,Other Third Party Payments,10-Jun-2014,2755831-4810002555,"22,916.67",TEES ESK & WEAR VALLEYS NHS FOUNDATION TRUST.
Children and Adult Services,Childrens Services,Transport,230005,Contract Hire,10-Jun-2014,2755452-0001249,550.00,COLORS TAXIS LTD.
Children and Adult Services,Childrens Services,Transport,230005,Contract Hire,10-Jun-2014,2755616-1835,"1,045.00",LOCAL TRANSPORT LTD.
Children and Adult Services,Education,Supplies and Services,342053,Computers and Communications,10-Jun-2014,2755362-TVC101152,544.00,ADVIZA PARTNERSHIP.
Children and Adult Services,Education,Supplies and Services,384199,Miscellaneous Expenses,10-Jun-2014,2755679-1224,"4,376.00",NORTHERN LEARNING TRUST CHARITY.
Children and Adult Services,Education,Transfer Payments,510026,School Children,10-Jun-2014,2755614-22APRILTO18JUL,"1,116.87",LITTLE DUCKLINGS NURSERY.
Children and Adult Services,Education,Transfer Payments,510026,School Children,10-Jun-2014,2755816-10083,"1,419.75",SUNSHINE DAY NURSERY.
Children and Adult Services,Education,Transport,230007,Contract Hire,10-Jun-2014,2755351-51402,704.00,24/7 TAXI SERVICES LTD.
Children and Adult Services,Education,Transport,230008,Contract Hire,10-Jun-2014,2755351-51414,"1,072.00",24/7 TAXI SERVICES LTD.
Children and Adult Services,Education,Transport,230007,Contract Hire,10-Jun-2014,2755356-33,832.00,AALPHA TAXIS.
Children and Adult Services,Education,Transport,230007,Contract Hire,10-Jun-2014,2755359-109,700.00,ACE TAXIS (WINSTON).
Children and Adult Services,Education,Transport,230008,Contract Hire,10-Jun-2014,2755374-45,"1,088.00",ANDY CABS.
Children and Adult Services,Education,Transport,230008,Contract Hire,10-Jun-2014,2755385-405,"1,160.00",AT TAXIS LTD.
Children and Adult Services,Education,Transport,230008,Contract Hire,10-Jun-2014,2755385-406,851.20,AT TAXIS LTD.
Children and Adult Services,Education,Transport,230008,Contract Hire,10-Jun-2014,2755388-2305014,880.00,AVALON TAXIS.
Children and Adult Services,Education,Transport,230008,Contract Hire,10-Jun-2014,2755392-32,"1,480.00",BEELINE TAXIS.
Children and Adult Services,Education,Transport,230006,Contract Hire,10-Jun-2014,2755393-014,980.00,BG TAXIS.
Children and Adult Services,Education,Transport,230007,Contract Hire,10-Jun-2014,2755395-05/2014/0001,620.00,BILL SCOTT (BILL SCOTT TAXIS).
Children and Adult Services,Education,Transport,230008,Contract Hire,10-Jun-2014,2755398-89,560.00,BL TAXIS.
Children and Adult Services,Education,Transport,230008,Contract Hire,10-Jun-2014,2755400-1318,"1,104.00",BOBBY DOVE.
Children and Adult Services,Education,Transport,230007,Contract Hire,10-Jun-2014,2755411-0409,540.32,BRIANS MINIBUSES.
Children and Adult Services,Education,Transport,230007,Contract Hire,10-Jun-2014,2755420-PS080,"1,108.80",BURNDALE PRIVATE HIRE.
Children and Adult Services,Education,Transport,230008,Contract Hire,10-Jun-2014,2755424-BIL0043,"1,104.00",CA MUSGROVE.
Children and Adult Services,Education,Transport,230007,Contract Hire,10-Jun-2014,2755438-02,920.00,CHAPMAN TRAVEL.
Children and Adult Services,Education,Transport,230007,Contract Hire,10-Jun-2014,2755445-44364,"1,120.00",CJ GRIERSON.
Children and Adult Services,Education,Transport,230007,Contract Hire,10-Jun-2014,2755445-44365,"3,840.00",CJ GRIERSON.
Children and Adult Services,Education,Transport,230007,Contract Hire,10-Jun-2014,2755451-C/8142,"5,072.00",COCHRANES T/A KELVIN TRAVEL.
Children and Adult Services,Education,Transport,230007,Contract Hire,10-Jun-2014,2755451-C/8143,"2,056.00",COCHRANES T/A KELVIN TRAVEL.
Children and Adult Services,Education,Transport,230007,Contract Hire,10-Jun-2014,2755451-C/8144,"3,968.00",COCHRANES T/A KELVIN TRAVEL.
Children and Adult Services,Education,Transport,230007,Contract Hire,10-Jun-2014,2755451-C/8145,"2,216.00",COCHRANES T/A KELVIN TRAVEL.
Children and Adult Services,Education,Transport,230008,Contract Hire,10-Jun-2014,2755457-281,"1,491.20",CONNORS MINI BUSES.
Children and Adult Services,Education,Transport,230008,Contract Hire,10-Jun-2014,2755457-282,"1,452.32",CONNORS MINI BUSES.
Children and Adult Services,Education,Transport,230008,Contract Hire,10-Jun-2014,2755457-283,"1,178.56",CONNORS MINI BUSES.
Children and Adult Services,Education,Transport,230008,Contract Hire,10-Jun-2014,2755457-284,"1,551.52",CONNORS MINI BUSES.
Children and Adult Services,Education,Transport,230007,Contract Hire,10-Jun-2014,2755471-4833,874.56,CROFT BUSINESS SERVICES (UK) LTD T/A CROFT TAXIS.
Children and Adult Services,Education,Transport,230008,Contract Hire,10-Jun-2014,2755471-4834,746.24,CROFT BUSINESS SERVICES (UK) LTD T/A CROFT TAXIS.
Children and Adult Services,Education,Transport,230008,Contract Hire,10-Jun-2014,2755471-4835,"2,049.50",CROFT BUSINESS SERVICES (UK) LTD T/A CROFT TAXIS.
Children and Adult Services,Education,Transport,230006,Contract Hire,10-Jun-2014,2755471-4836,792.00,CROFT BUSINESS SERVICES (UK) LTD T/A CROFT TAXIS.
Children and Adult Services,Education,Transport,230006,Contract Hire,10-Jun-2014,2755471-4839,"1,192.00",CROFT BUSINESS SERVICES (UK) LTD T/A CROFT TAXIS.
Children and Adult Services,Education,Transport,230008,Contract Hire,10-Jun-2014,2755471-4841,768.00,CROFT BUSINESS SERVICES (UK) LTD T/A CROFT TAXIS.
Children and Adult Services,Education,Transport,230008,Contract Hire,10-Jun-2014,2755471-4842,943.36,CROFT BUSINESS SERVICES (UK) LTD T/A CROFT TAXIS.
Children and Adult Services,Education,Transport,230007,Contract Hire,10-Jun-2014,2755471-4843,960.00,CROFT BUSINESS SERVICES (UK) LTD T/A CROFT TAXIS.
Children and Adult Services,Education,Transport,230006,Contract Hire,10-Jun-2014,2755471-4844,679.36,CROFT BUSINESS SERVICES (UK) LTD T/A CROFT TAXIS.
Children and Adult Services,Education,Transport,230008,Contract Hire,10-Jun-2014,2755471-4847,"1,329.92",CROFT BUSINESS SERVICES (UK) LTD T/A CROFT TAXIS.
Children and Adult Services,Education,Transport,230008,Contract Hire,10-Jun-2014,2755471-4848,736.00,CROFT BUSINESS SERVICES (UK) LTD T/A CROFT TAXIS.
Children and Adult Services,Education,Transport,230007,Contract Hire,10-Jun-2014,2755517-034,864.00,EXTREAM TAXI`S.
Children and Adult Services,Education,Transport,230007,Contract Hire,10-Jun-2014,2755533-16292,"2,224.00",GARNETTS LTD (COACHES).
Children and Adult Services,Education,Transport,230007,Contract Hire,10-Jun-2014,2755533-16295,"6,192.00",GARNETTS LTD (COACHES).
Children and Adult Services,Education,Transport,230007,Contract Hire,10-Jun-2014,2755533-16296,"14,224.00",GARNETTS LTD (COACHES).
Children and Adult Services,Education,Transport,230007,Contract Hire,10-Jun-2014,2755533-16299,"3,270.00",GARNETTS LTD (COACHES).
Children and Adult Services,Education,Transport,230007,Contract Hire,10-Jun-2014,2755533-16315,"23,925.65",GARNETTS LTD (COACHES).
Children and Adult Services,Education,Transport,230008,Contract Hire,10-Jun-2014,2755574-0102,600.00,I CLYDESDALE T/A BURNOPFIELD TAXIS.
Children and Adult Services,Education,Transport,230008,Contract Hire,10-Jun-2014,2755574-04/2014-0101,"1,050.00",I CLYDESDALE T/A BURNOPFIELD TAXIS.
Children and Adult Services,Education,Transport,230007,Contract Hire,10-Jun-2014,2755579-732,640.00,J YOUNG T/A VIP TAXIS.
Children and Adult Services,Education,Transport,230006,Contract Hire,10-Jun-2014,2755597-00518,512.00,KENNAS CABS.
Children and Adult Services,Education,Transport,230008,Contract Hire,10-Jun-2014,2755616-1809,"1,600.00",LOCAL TRANSPORT LTD.
Children and Adult Services,Education,Transport,230008,Contract Hire,10-Jun-2014,2755616-1810,"1,216.00",LOCAL TRANSPORT LTD.
Children and Adult Services,Education,Transport,230008,Contract Hire,10-Jun-2014,2755616-1811,802.60,LOCAL TRANSPORT LTD.
Children and Adult Services,Education,Transport,230008,Contract Hire,10-Jun-2014,2755624-051401,"1,600.00",MARK & JOHN CHISHOLM T/A (CHEVRON).
Children and Adult Services,Education,Transport,230008,Contract Hire,10-Jun-2014,2755624-051405,832.00,MARK & JOHN CHISHOLM T/A (CHEVRON).
Children and Adult Services,Education,Transport,230008,Contract Hire,10-Jun-2014,2755624-051406,760.00,MARK & JOHN CHISHOLM T/A (CHEVRON).
Children and Adult Services,Education,Transport,230008,Contract Hire,10-Jun-2014,2755629-09,"1,620.00",MARTIN`S TAXIS.
Children and Adult Services,Education,Transport,230008,Contract Hire,10-Jun-2014,2755634-1481MCD,"1,744.00",MCDONALD TRAVEL.
Children and Adult Services,Education,Transport,230008,Contract Hire,10-Jun-2014,2755643-CEW25,"1,200.00",MOOR PRIVATE HIRE.
Children and Adult Services,Education,Transport,230007,Contract Hire,10-Jun-2014,2755645-1017,"1,137.60",MR CHRISTOPHER BRECHIN T/A CB TAXI`S.
Children and Adult Services,Education,Transport,230008,Contract Hire,10-Jun-2014,2755646-BRECK05-14,"2,291.00",MR CT WALKER T/A COLIN`S TAXIS.
Children and Adult Services,Education,Transport,230007,Contract Hire,10-Jun-2014,2755653-TN009,576.00,MR THOMAS G GRIFFITHS T/A TNL TAXIS.
Children and Adult Services,Education,Transport,230007,Contract Hire,10-Jun-2014,2755699-1307,784.00,PAUL WATSON TRAVEL.
Children and Adult Services,Education,Transport,230008,Contract Hire,10-Jun-2014,2755705-666,"1,156.00",PG TRIPS.
Children and Adult Services,Education,Transport,230008,Contract Hire,10-Jun-2014,2755705-667,"1,496.00",PG TRIPS.
Children and Adult Services,Education,Transport,230008,Contract Hire,10-Jun-2014,2755715-985,"1,050.00",PODA LTD.
Children and Adult Services,Education,Transport,230007,Contract Hire,10-Jun-2014,2755727-1234,"7,360.00",PYGALL COACH HIRE.
Children and Adult Services,Education,Transport,230007,Contract Hire,10-Jun-2014,2755727-1235,"2,400.00",PYGALL COACH HIRE.
Children and Adult Services,Education,Transport,230007,Contract Hire,10-Jun-2014,2755727-1236,"1,568.00",PYGALL COACH HIRE.
Children and Adult Services,Education,Transport,230008,Contract Hire,10-Jun-2014,2755730-001,"1,016.00",R&R PRIVATE HIRE.
Children and Adult Services,Education,Transport,230008,Contract Hire,10-Jun-2014,2755733-13144,"1,350.00",RAPID MINIBUSES.
Children and Adult Services,Education,Transport,230008,Contract Hire,10-Jun-2014,2755750-101,"2,176.00",ROBBIE`S PRIVATE HIRE.
Children and Adult Services,Education,Transport,230007,Contract Hire,10-Jun-2014,2755808-9204,"1,760.00",STANLEY TRAVEL (NORTH EAST) LTD.
Children and Adult Services,Education,Transport,230008,Contract Hire,10-Jun-2014,2755808-9207,"1,935.68",STANLEY TRAVEL (NORTH EAST) LTD.
Children and Adult Services,Education,Transport,230008,Contract Hire,10-Jun-2014,2755808-9208,"1,024.00",STANLEY TRAVEL (NORTH EAST) LTD.
Children and Adult Services,Education,Transport,230008,Contract Hire,10-Jun-2014,2755808-9209,860.80,STANLEY TRAVEL (NORTH EAST) LTD.
Children and Adult Services,Education,Transport,230008,Contract Hire,10-Jun-2014,2755808-9210,913.60,STANLEY TRAVEL (NORTH EAST) LTD.
Children and Adult Services,Education,Transport,230008,Contract Hire,10-Jun-2014,2755808-9211,"1,084.48",STANLEY TRAVEL (NORTH EAST) LTD.
Children and Adult Services,Education,Transport,230008,Contract Hire,10-Jun-2014,2755808-9212,"1,174.40",STANLEY TRAVEL (NORTH EAST) LTD.
Children and Adult Services,Education,Transport,230008,Contract Hire,10-Jun-2014,2755808-9214,848.00,STANLEY TRAVEL (NORTH EAST) LTD.
Children and Adult Services,Education,Transport,230008,Contract Hire,10-Jun-2014,2755808-9217,924.00,STANLEY TRAVEL (NORTH EAST) LTD.
Children and Adult Services,Education,Transport,230008,Contract Hire,10-Jun-2014,2755809-1839,576.00,STAR CABS.
Children and Adult Services,Education,Transport,230008,Contract Hire,10-Jun-2014,2755823-1168-23/5/14,"1,790.00",TAILORMADE TRAVEL.
Children and Adult Services,Education,Transport,230007,Contract Hire,10-Jun-2014,2755830-5030-M09-23/5/14,"2,740.00",TED WILFORD COACHES.
Children and Adult Services,Education,Transport,230007,Contract Hire,10-Jun-2014,2755845-2277,"1,888.00",TM TRAVEL.
Children and Adult Services,Education,Transport,230006,Contract Hire,10-Jun-2014,2755883-0514,"1,922.00",WEST AUCKLAND TOWN TRAVEL (WATT).
Children and Adult Services,Head of Adults,Supplies and Services,324117,Provisions,10-Jun-2014,2755592-100278,630.75,JR HOLLAND FOOD SERVICES LTD.
Children and Adult Services,Head of Adults,Third Party Payments,470101,Purchase of Care,10-Jun-2014,2755562-WI6398,"40,600.88",HESLEY CARE GROUP LTD.
Children and Adult Services,Head of Adults,Transport,230005,Contract Hire,10-Jun-2014,2755622-0514,"1,309.00",MAG`S CARS.
Children and Adult Services,Head of Adults,Transport,230005,Contract Hire,10-Jun-2014,2755665-3060,"1,088.00",NIGHTINGALE COACHES.
Children and Adult Services,Head of Adults,Transport,230005,Contract Hire,10-Jun-2014,2755665-3061,"2,346.00",NIGHTINGALE COACHES.
Children and Adult Services,Head of Adults,Transport,230005,Contract Hire,10-Jun-2014,2755665-3062,"1,360.00",NIGHTINGALE COACHES.
Children and Adult Services,Head of Adults,Transport,230005,Contract Hire,10-Jun-2014,2755707-00894,"1,248.00",PHILLIPS TAXI GROUP LTD.
Children and Adult Services,Public Health,Third Party Payments,460803,Contract Payments,10-Jun-2014,2755406-FPC89/04/2014,832.00,BOOTS THE CHEMISTS LTD.
Children and Adult Services,Public Health,Third Party Payments,460803,Contract Payments,10-Jun-2014,2755609-58,"7,500.00",LIBERTY FROM ADDICTION.
Children and Adult Services,Public Health,Third Party Payments,460803,Contract Payments,10-Jun-2014,2755781-FJW29APIRL,606.00,SHOTTON PHARMACY.
Corporate Resources,Financial Services,Supplies and Services,338066,Services,10-Jun-2014,2755444-C/RB123236,"5,250.00",CIVICA UK LTD.
Corporate Resources,I.C.T. Services,Supplies and Services,342051,Computers and Communications,10-Jun-2014,2755636-4514855,"3,695.00",MICROCAD COMPUTER AIDED DESIGN SPECIALISTS LTD
Corporate Resources,I.C.T. Services,Vehicles Equipment Furniture and Fittings,912701,Computer equipment,10-Jun-2014,2755685-15534,"3,845.00",NTA MONITOR LTD.
Corporate Resources,Legal & Democratic Services,Supplies and Services,332047,Printing Stationery and Gen Off Exps,10-Jun-2014,2755818-6644406,730.47,SUPPLIES TEAM LTD.
Dedicated Schools Grant,Dedicated Schools Grant,Supplies and Services,338081,Services,10-Jun-2014,2755503-0000032738,540.00,EAST DURHAM COLLEGE.
Dedicated Schools Grant,Dedicated Schools Grant,Transport,230010,Contract Hire,10-Jun-2014,2755423-P05207,800.00,C & R TAXIS.
Dedicated Schools Grant,Dedicated Schools Grant,Transport,230010,Contract Hire,10-Jun-2014,2755436-004-23-5/14,624.00,CENTRAL TAXIS (PETERLEE) LTD.
Dedicated Schools Grant,Dedicated Schools Grant,Transport,230010,Contract Hire,10-Jun-2014,2755517-032,608.00,EXTREAM TAXI`S.
Dedicated Schools Grant,Dedicated Schools Grant,Transport,230008,Contract Hire,10-Jun-2014,2755595-1423,500.00,KEN CHAMBERS T/A SHILDON TAXIS.
Dedicated Schools Grant,Dedicated Schools Grant,Transport,230010,Contract Hire,10-Jun-2014,2755597-00517,"1,055.50",KENNAS CABS.
Dedicated Schools Grant,Dedicated Schools Grant,Transport,230010,Contract Hire,10-Jun-2014,2755624-051402,"1,360.00",MARK & JOHN CHISHOLM T/A (CHEVRON).
Dedicated Schools Grant,Dedicated Schools Grant,Transport,230010,Contract Hire,10-Jun-2014,2755624-051403,"2,015.00",MARK & JOHN CHISHOLM T/A (CHEVRON).
Dedicated Schools Grant,Dedicated Schools Grant,Transport,230010,Contract Hire,10-Jun-2014,2755624-051404,"1,440.00",MARK & JOHN CHISHOLM T/A (CHEVRON).
Dedicated Schools Grant,Dedicated Schools Grant,Transport,230010,Contract Hire,10-Jun-2014,2755624-051409,"1,440.00",MARK & JOHN CHISHOLM T/A (CHEVRON).
Dedicated Schools Grant,Dedicated Schools Grant,Transport,230010,Contract Hire,10-Jun-2014,2755624-051410,"1,168.00",MARK & JOHN CHISHOLM T/A (CHEVRON).
Neighbourhood Services,Culture & Sport,Supplies and Services,372009,Subscriptions,10-Jun-2014,2755861-38528/R06,"2,255.00",UKACTIVE FORMERLY FITNESS INDUSTRY ASSOCIATION.
Neighbourhood Services,Culture & Sport,Supplies and Services,384199,Miscellaneous Expenses,10-Jun-2014,2755879-BM79,750.00,REDACTED - PAYMENT TO INDIVIDUAL
Neighbourhood Services,Direct Services,Construction Work,908105,Construction work,10-Jun-2014,2755719-128296,720.00,PREMIER TRAFFIC MANAGEMENT LTD.
Neighbourhood Services,Direct Services,Stock,926004,Stock,10-Jun-2014,2755430-283026,587.94,CARRS BILLINGTON AGRICULTURE.
Neighbourhood Services,Direct Services,Stock,926004,Stock,10-Jun-2014,2755612-SI1602301,660.00,LINDEN FLUID POWER LTD.
Neighbourhood Services,Direct Services,Supplies and Services,304221,Equipment and Materials,10-Jun-2014,2755417-1660/0383598,608.20,BSS GROUP PLC.
Neighbourhood Services,Direct Services,Supplies and Services,304221,Equipment and Materials,10-Jun-2014,2755695-555536,"4,048.00",P & N ASSOCIATES LTD.
Neighbourhood Services,Direct Services,Third Party Payments,430100,Rendered by Private Contractors,10-Jun-2014,2755421-37283,500.25,BURNT TREE GROUP LTD.
Neighbourhood Services,Direct Services,Third Party Payments,430100,Rendered by Private Contractors,10-Jun-2014,2755569-53455,"1,169.00",HOGARTH COACHWORKS LTD.
Neighbourhood Services,Direct Services,Third Party Payments,430100,Rendered by Private Contractors,10-Jun-2014,2755617-107011,"1,231.59",LONDONDERRY GARAGE LTD.
Neighbourhood Services,Direct Services,Third Party Payments,430100,Rendered by Private Contractors,10-Jun-2014,2755677-18770,760.31,NORTHBURN TECHNICAL SERVICES LTD.
Neighbourhood Services,Direct Services,Third Party Payments,430100,Rendered by Private Contractors,10-Jun-2014,2755728-201508,"37,550.00",R BEAL & CO LTD.
Neighbourhood Services,Direct Services,Third Party Payments,430100,Rendered by Private Contractors,10-Jun-2014,2755853-101736,900.00,TRIPLE POINT LEASE PARTNERS.
Neighbourhood Services,Direct Services,Transport,210057,Repair and Maintenance of Vehicles,10-Jun-2014,2755426-12187,676.00,CALDER TRAILER BOARDS.
Neighbourhood Services,Direct Services,Transport,210057,Repair and Maintenance of Vehicles,10-Jun-2014,2755430-283023,632.88,CARRS BILLINGTON AGRICULTURE.
Neighbourhood Services,Direct Services,Transport,210057,Repair and Maintenance of Vehicles,10-Jun-2014,2755430-450380,552.80,CARRS BILLINGTON AGRICULTURE.
Neighbourhood Services,Direct Services,Transport,210057,Repair and Maintenance of Vehicles,10-Jun-2014,2755834-96297590,755.95,TERBERG MATEC (UK) LTD.
Neighbourhood Services,Projects and Business services,Third Party Payments,430119,Rendered by Private Contractors,10-Jun-2014,2755560-SIN7040270,"16,135.20",HCS DRAIN SERVICES LTD.
Neighbourhood Services,Technical Services,Fees,901002,Professional fees,10-Jun-2014,2755363-28187540,"22,251.34",AECOM LTD.
Neighbourhood Services,Technical Services,Stock,926900,Stock in hand-Inventory system,10-Jun-2014,2755572-082495.,"7,321.55",HYDRAM ENGINEERING LTD.
Neighbourhood Services,Technical Services,Stock,926900,Stock in hand-Inventory system,10-Jun-2014,2755696-XL115260,936.00,PARK ELECTRICAL DISTRIBUTORS LTD.
Neighbourhood Services,Technical Services,Supplies and Services,304221,Equipment and Materials,10-Jun-2014,2755366-19766493,512.54,AGGREGATE INDUSTRIES UK LTD.
Neighbourhood Services,Technical Services,Supplies and Services,304221,Equipment and Materials,10-Jun-2014,2755594-BI1135287,628.42,JT DOVE LTD.
Neighbourhood Services,Technical Services,Supplies and Services,338045,Services,10-Jun-2014,2755644,"7,550.00",MR ADRIAN MAITRA.
Neighbourhood Services,Technical Services,Supplies and Services,304221,Equipment and Materials,10-Jun-2014,2755811-062474,729.24,STONEGRAVE AGGREGATES LTD.
Neighbourhood Services,Technical Services,Supplies and Services,304221,Equipment and Materials,10-Jun-2014,2755811-062561,597.52,STONEGRAVE AGGREGATES LTD.
Neighbourhood Services,Technical Services,Supplies and Services,304221,Equipment and Materials,10-Jun-2014,2755811-062653,"1,352.80",STONEGRAVE AGGREGATES LTD.
Regeneration & Economic Development,Economic Development and Housing,Supplies and Services,384199,Miscellaneous Expenses,10-Jun-2014,2755731-253325,796.60,RADISSON BLUE HOTEL DURHAM.
Regeneration & Economic Development,RED Departmental Support Costs,Supplies and Services,338027,Services,10-Jun-2014,2755403-4173837,"1,500.00",BOND DICKINSON LLP.
Regeneration & Economic Development,Strategy Programmes and Performance,Supplies and Services,384899,Miscellaneous Expenses,10-Jun-2014,2755523-NL05/1,"17,491.23",FORESTRY COMMISSION.
Regeneration & Economic Development,Transport and Contracted Services,Third Party Payments,430100,Rendered by Private Contractors,10-Jun-2014,2755383-CONCESS,"1,030,505.25",ARRIVA DURHAM COUNTY LTD.
Regeneration & Economic Development,Transport and Contracted Services,Third Party Payments,430100,Rendered by Private Contractors,10-Jun-2014,2755545-CONCESS,"807,464.66",GO NORTH EAST LTD.
Regeneration & Economic Development,Transport and Contracted Services,Third Party Payments,430100,Rendered by Private Contractors,10-Jun-2014,2755568-CONCESS,"1,073.22",HODGSONS COACH OPERATORS LTD.
Regeneration & Economic Development,Transport and Contracted Services,Third Party Payments,430100,Rendered by Private Contractors,10-Jun-2014,2755571-CONCESS,"15,253.19",HUNTER BROTHERS (TANTOBIE) LTD.
Regeneration & Economic Development,Transport and Contracted Services,Third Party Payments,430100,Rendered by Private Contractors,10-Jun-2014,2755585-CONCESS,"3,400.25",JOHN JAMES BRUNSKILL.
Regeneration & Economic Development,Transport and Contracted Services,Third Party Payments,430100,Rendered by Private Contractors,10-Jun-2014,2755680-CONCESS,"4,295.59",NORTHERN RAIL LTD.
Regeneration & Economic Development,Transport and Contracted Services,Third Party Payments,430100,Rendered by Private Contractors,10-Jun-2014,2755684-024789,"20,682.58",NSL LTD.
Regeneration & Economic Development,Transport and Contracted Services,Third Party Payments,430100,Rendered by Private Contractors,10-Jun-2014,2755684-024790,"59,751.82",NSL LTD.
Regeneration & Economic Development,Transport and Contracted Services,Third Party Payments,430100,Rendered by Private Contractors,10-Jun-2014,2755684-024791,"8,116.71",NSL LTD.
Regeneration & Economic Development,Transport and Contracted Services,Third Party Payments,430100,Rendered by Private Contractors,10-Jun-2014,2755684-024792,"3,713.00",NSL LTD.
Regeneration & Economic Development,Transport and Contracted Services,Third Party Payments,430100,Rendered by Private Contractors,10-Jun-2014,2755684-024795,"14,546.81",NSL LTD.
Regeneration & Economic Development,Transport and Contracted Services,Third Party Payments,430100,Rendered by Private Contractors,10-Jun-2014,2755684-024796,"10,973.87",NSL LTD.
Regeneration & Economic Development,Transport and Contracted Services,Third Party Payments,430100,Rendered by Private Contractors,10-Jun-2014,2755684-025008,"25,659.75",NSL LTD.
Regeneration & Economic Development,Transport and Contracted Services,Third Party Payments,430100,Rendered by Private Contractors,10-Jun-2014,2755684-025019,"7,195.00",NSL LTD.
Regeneration & Economic Development,Transport and Contracted Services,Third Party Payments,430100,Rendered by Private Contractors,10-Jun-2014,2755684-025020,"2,496.93",NSL LTD.
Regeneration & Economic Development,Transport and Contracted Services,Third Party Payments,430100,Rendered by Private Contractors,10-Jun-2014,2755765-CONCESS,"2,659.75",SB TRAVEL.
Regeneration & Economic Development,Transport and Contracted Services,Third Party Payments,430100,Rendered by Private Contractors,10-Jun-2014,2755766-CONCESS,"23,093.01",SCARLET BAND BUS & COACH LTD.
Regeneration & Economic Development,Transport and Contracted Services,Third Party Payments,430100,Rendered by Private Contractors,10-Jun-2014,2755808-CONCESS,"3,550.91",STANLEY TRAVEL (NORTH EAST) LTD.
Regeneration & Economic Development,Transport and Contracted Services,Third Party Payments,430100,Rendered by Private Contractors,10-Jun-2014,2755882EX-X21,"28,137.18",WEARDALE MOTOR SERVICES LTD.
Regeneration & Economic Development,Transport and Contracted Services,Third Party Payments,430100,Rendered by Private Contractors,10-Jun-2014,2755882-CONCESS,"1,256.07",WEARDALE MOTOR SERVICES LTD.
Assistant Chief Executive,Partnerships & Community Engagement Div.,Cap Exp on Grants & Other Financial Assistance (REFCUS),918004,Contributions to other bodies,11-Jun-2014,2756209-VOUCHER13NB-GAMP012,"2,000.00",NEWTON AYCLIFFE SPARTANS.
Assistant Chief Executive,Partnerships & Community Engagement Div.,Cap Exp on Grants & Other Financial Assistance (REFCUS),918004,Contributions to other bodies,11-Jun-2014,2756340-VOUCHER14NB-STAN003,"3,000.00",TANTOBIE ASSOC FOR SPORT & THE COMMUNITY.
Assistant Chief Executive,Partnerships & Community Engagement Div.,Supplies and Services,384085,Miscellaneous Expenses,11-Jun-2014,232040-WILC04-14,500.00,SELBY CLOSE SOCIAL CLUB.
Assistant Chief Executive,Partnerships & Community Engagement Div.,Supplies and Services,384086,Miscellaneous Expenses,11-Jun-2014,2756286-VOUCHER14NB-DVLY003,"2,000.00",ROYAL BRITISH LEGION.
Assistant Chief Executive,Partnerships & Community Engagement Div.,Transfer Payments,525030,Other,11-Jun-2014,2756331-VOUCHER13AB-SPEN002,"13,056.70",SUCCESS NORTH EAST COMMUNITY INTEREST COMPANY.
Assistant Chief Executive,Policy & Communications Division,Employees,040001,Recruitment Instruction and Training,11-Jun-2014,2756208-5268313,800.00,NEWSQUEST (YORKSHIRE & NORTH EAST) LTD.
Children and Adult Services,Childrens Services,Employees,040149,Recruitment Instruction and Training,11-Jun-2014,2756107-1180,600.00,HSF TRAINING LTD.
Children and Adult Services,Childrens Services,Supplies and Services,338044,Services,11-Jun-2014,231956-JMS/LM/414,599.40,REDACTED - PAYMENT TO INDIVIDUAL
Children and Adult Services,Childrens Services,Supplies and Services,338099,Services,11-Jun-2014,2755897-23393,595.00,ACCORDIAL MANUFACTURING LTD.
Children and Adult Services,Childrens Services,Supplies and Services,336005,Advertising,11-Jun-2014,2756105-74638,960.00,HOWARTH LTD T/A NEWTON PRESS.
Children and Adult Services,Childrens Services,Supplies and Services,332047,Printing Stationery and Gen Off Exps,11-Jun-2014,2756232-SI627020,539.00,OFFICE FURNITURE ONLINE.
Children and Adult Services,Childrens Services,Third Party Payments,486044,Service Level Agreements,11-Jun-2014,2755975-3910004039,"3,215.00",CO DURHAM & DARLINGTON NHS FOUNDATION TRUST.
Children and Adult Services,Childrens Services,Third Party Payments,486029,Service Level Agreements,11-Jun-2014,2756048-16685,"19,041.67",FAMILY ACTION.
Children and Adult Services,Childrens Services,Third Party Payments,425040,Rendered by Voluntary Organisations,11-Jun-2014,2756052-0000050833,"3,232.99",FIVE RIVERS CHILD CARE LTD.
Children and Adult Services,Childrens Services,Third Party Payments,425040,Rendered by Voluntary Organisations,11-Jun-2014,2756058-10109,820.00,FOSTER CARES LTD.
Children and Adult Services,Childrens Services,Third Party Payments,425040,Rendered by Voluntary Organisations,11-Jun-2014,2756058-10119,700.00,FOSTER CARES LTD.
Children and Adult Services,Childrens Services,Third Party Payments,425040,Rendered by Voluntary Organisations,11-Jun-2014,2756058-10126,730.00,FOSTER CARES LTD.
Children and Adult Services,Childrens Services,Third Party Payments,425040,Rendered by Voluntary Organisations,11-Jun-2014,2756058-10167,820.00,FOSTER CARES LTD.
Children and Adult Services,Childrens Services,Third Party Payments,425040,Rendered by Voluntary Organisations,11-Jun-2014,2756334-147609,780.00,SWIIS FOSTER CARE LTD.
Children and Adult Services,Childrens Services,Third Party Payments,425040,Rendered by Voluntary Organisations,11-Jun-2014,2756334-147611,"1,069.00",SWIIS FOSTER CARE LTD.
Children and Adult Services,Childrens Services,Third Party Payments,425040,Rendered by Voluntary Organisations,11-Jun-2014,2756334-147612,921.43,SWIIS FOSTER CARE LTD.
Children and Adult Services,Childrens Services,Third Party Payments,425040,Rendered by Voluntary Organisations,11-Jun-2014,2756334-147616,"1,069.00",SWIIS FOSTER CARE LTD.
Children and Adult Services,Childrens Services,Third Party Payments,425040,Rendered by Voluntary Organisations,11-Jun-2014,2756342-22238,"3,232.86",TEAM FOSTERING.
Children and Adult Services,Childrens Services,Third Party Payments,425040,Rendered by Voluntary Organisations,11-Jun-2014,2756342-22241,"5,914.20",TEAM FOSTERING.
Children and Adult Services,Childrens Services,Third Party Payments,425040,Rendered by Voluntary Organisations,11-Jun-2014,2756342-22297,"3,232.86",TEAM FOSTERING.
Children and Adult Services,Childrens Services,Third Party Payments,425040,Rendered by Voluntary Organisations,11-Jun-2014,2756342-2240,"3,100.00",TEAM FOSTERING.
Children and Adult Services,Childrens Services,Transport,215995,Running Costs of Vehicles,11-Jun-2014,231928-BCASC49041-6/5/14,507.03,AA BUSINESS SERVICES.
Children and Adult Services,Childrens Services,Transport,230008,Contract Hire,11-Jun-2014,2755896-0194,896.00,ABC & OUSTON CABS.
Children and Adult Services,Commissioning inc Supporting People,Supplies and Services,384700,Miscellaneous Expenses,11-Jun-2014,2756350-0000009740,"4,797.20",THE GREENHOUSE CO (GROUNDWORK) LTD.
Children and Adult Services,Commissioning inc Supporting People,Third Party Payments,479111,Purchase of Care,11-Jun-2014,231952-SLA2014-2015,"3,244.95",DERWENTSIDE MIND.
Children and Adult Services,Commissioning inc Supporting People,Third Party Payments,479101,Purchase of Care,11-Jun-2014,2755901-0000000387,"39,667.00",AGE UK COUNTY DURHAM.
Children and Adult Services,Commissioning inc Supporting People,Third Party Payments,479101,Purchase of Care,11-Jun-2014,2755901-0000000402,"28,333.00",AGE UK COUNTY DURHAM.
Children and Adult Services,Commissioning inc Supporting People,Third Party Payments,442002,Supporting People,11-Jun-2014,2755937-1957532,"13,539.44",BID SERVICES WITH DEAF PEOPLE.
Children and Adult Services,Commissioning inc Supporting People,Third Party Payments,442002,Supporting People,11-Jun-2014,2755991-1957531,"19,868.48",CREATIVE SUPPORT LTD.
Children and Adult Services,Commissioning inc Supporting People,Third Party Payments,442002,Supporting People,11-Jun-2014,2756013-1957530,"5,668.48",DISC LTD.
Children and Adult Services,Commissioning inc Supporting People,Third Party Payments,442002,Supporting People,11-Jun-2014,2756013-1957545,"27,885.68",DISC LTD.
Children and Adult Services,Commissioning inc Supporting People,Third Party Payments,441001,Supporting People,11-Jun-2014,2756018-1957546,"20,819.76",DURHAM ACTION ON SINGLE HOUSING.
Children and Adult Services,Commissioning inc Supporting People,Third Party Payments,443001,Supporting People,11-Jun-2014,2756018-1957547,"3,689.80",DURHAM ACTION ON SINGLE HOUSING.
Children and Adult Services,Commissioning inc Supporting People,Third Party Payments,443001,Supporting People,11-Jun-2014,2756018-1957601,"1,844.90",DURHAM ACTION ON SINGLE HOUSING.
Children and Adult Services,Commissioning inc Supporting People,Third Party Payments,441001,Supporting People,11-Jun-2014,2756028-1957554,"5,483.40",EAST DURHAM COMMUNITY INITIATIVES LTD.
Children and Adult Services,Commissioning inc Supporting People,Third Party Payments,441001,Supporting People,11-Jun-2014,2756046-1957251,"26,571.84",FABRICK HOUSING GROUP LTD.
Children and Adult Services,Commissioning inc Supporting People,Third Party Payments,442002,Supporting People,11-Jun-2014,2756046-1957507,"9,851.44",FABRICK HOUSING GROUP LTD.
Children and Adult Services,Commissioning inc Supporting People,Third Party Payments,442002,Supporting People,11-Jun-2014,2756060-1957533,"30,071.20",FOUNDATION HOUSING.
Children and Adult Services,Commissioning inc Supporting People,Third Party Payments,442002,Supporting People,11-Jun-2014,2756090-1957555,"5,995.44",HANOVER HOUSING ASSOCIATION.
Children and Adult Services,Commissioning inc Supporting People,Third Party Payments,441001,Supporting People,11-Jun-2014,2756091-1957534,"8,938.68",HARBOUR SUPPORT SERVICES.
Children and Adult Services,Commissioning inc Supporting People,Third Party Payments,443001,Supporting People,11-Jun-2014,2756103-1957343,"1,099.60",HOME HOUSING ASSOCIATION LTD.
Children and Adult Services,Commissioning inc Supporting People,Third Party Payments,470111,Purchase of Care,11-Jun-2014,2756157-RINVTP/00319673,"4,047.23",LEONARD CHESHIRE DISABILITY.
Children and Adult Services,Commissioning inc Supporting People,Third Party Payments,470111,Purchase of Care,11-Jun-2014,2756157-RINVTP/00319686,"4,047.23",LEONARD CHESHIRE DISABILITY.
Children and Adult Services,Commissioning inc Supporting People,Third Party Payments,442002,Supporting People,11-Jun-2014,2756180-1957536,"5,469.72",MENTAL HEALTH MATTERS.
Children and Adult Services,Commissioning inc Supporting People,Third Party Payments,442002,Supporting People,11-Jun-2014,2756192-1957368,"5,240.36",MOVING ON.
Children and Adult Services,Commissioning inc Supporting People,Third Party Payments,441001,Supporting People,11-Jun-2014,2756217-1957540,"7,791.04",NORCARE LTD.
Children and Adult Services,Commissioning inc Supporting People,Third Party Payments,441001,Supporting People,11-Jun-2014,2756217-1957541,"10,205.64",NORCARE LTD.
Children and Adult Services,Commissioning inc Supporting People,Third Party Payments,442002,Supporting People,11-Jun-2014,2756217-1957542,"1,800.52",NORCARE LTD.
Children and Adult Services,Commissioning inc Supporting People,Third Party Payments,442002,Supporting People,11-Jun-2014,2756275-1957484,"7,356.72",RICHMOND FELLOWSHIP.
Children and Adult Services,Commissioning inc Supporting People,Third Party Payments,444002,Supporting People,11-Jun-2014,2756275-1957486,"4,438.08",RICHMOND FELLOWSHIP.
Children and Adult Services,Commissioning inc Supporting People,Third Party Payments,441001,Supporting People,11-Jun-2014,2756275-1957543,"9,423.88",RICHMOND FELLOWSHIP.
Children and Adult Services,Commissioning inc Supporting People,Third Party Payments,442002,Supporting People,11-Jun-2014,2756301-1957537,"9,044.36",SHAID.
Children and Adult Services,Commissioning inc Supporting People,Third Party Payments,442002,Supporting People,11-Jun-2014,2756328-1957319,"29,343.52",STONHAM HOUSING ASSOCIATION LTD.
Children and Adult Services,Commissioning inc Supporting People,Third Party Payments,441001,Supporting People,11-Jun-2014,2756328-1957320,"71,243.52",STONHAM HOUSING ASSOCIATION LTD.
Children and Adult Services,Commissioning inc Supporting People,Third Party Payments,442002,Supporting People,11-Jun-2014,2756328-1957391,"32,872.00",STONHAM HOUSING ASSOCIATION LTD.
Children and Adult Services,Commissioning inc Supporting People,Third Party Payments,442002,Supporting People,11-Jun-2014,2756328-1957501,"145,778.32",STONHAM HOUSING ASSOCIATION LTD.
Children and Adult Services,Commissioning inc Supporting People,Third Party Payments,443001,Supporting People,11-Jun-2014,2756328-1957508,"26,359.44",STONHAM HOUSING ASSOCIATION LTD.
Children and Adult Services,Commissioning inc Supporting People,Third Party Payments,443001,Supporting People,11-Jun-2014,2756328-1957527,"5,325.40",STONHAM HOUSING ASSOCIATION LTD.
Children and Adult Services,Commissioning inc Supporting People,Third Party Payments,441001,Supporting People,11-Jun-2014,2756349-1957500,"19,231.20",THE CYRENIANS LTD.
Children and Adult Services,Commissioning inc Supporting People,Third Party Payments,442002,Supporting People,11-Jun-2014,2756357-1957307,"3,449.96",THREE RIVERS HOUSING ASSOCIATION LTD.
Children and Adult Services,Commissioning inc Supporting People,Third Party Payments,442002,Supporting People,11-Jun-2014,2756357-1957544,"36,446.00",THREE RIVERS HOUSING ASSOCIATION LTD.
Children and Adult Services,Commissioning inc Supporting People,Third Party Payments,441001,Supporting People,11-Jun-2014,2756357-1957558,"9,402.72",THREE RIVERS HOUSING ASSOCIATION LTD.
Children and Adult Services,Commissioning inc Supporting People,Third Party Payments,441001,Supporting People,11-Jun-2014,2756385-1957559,"1,183.60",WADDINGTON STREET CENTRE LTD.
Children and Adult Services,Commissioning inc Supporting People,Third Party Payments,441001,Supporting People,11-Jun-2014,2756387-1957538,"7,157.00",WEAR VALLEY WOMENS AID.
Children and Adult Services,Education,Construction Work,908105,Construction work,11-Jun-2014,2756401-280120,620.00,WYG ENVIRONMENT PLANNING TRANSPORT LTD.
Children and Adult Services,Education,Income,720090,Fees and Charges,11-Jun-2014,231967-CAS-06-2014-027,"2,724.00",FRAMWELLGATE MOOR PRIMARY SCHOOL.
Children and Adult Services,Education,Income,720090,Fees and Charges,11-Jun-2014,2756218-CAS-06-2014-028,"2,287.00",NORTH DURHAM ACADEMY.
Children and Adult Services,Education,Premises,125009,Rents,11-Jun-2014,2756354-3051,700.00,THE WORK PLACE (AYCLIFFE) LTD.
Children and Adult Services,Education,Premises,125009,Rents,11-Jun-2014,2756354-3052,"4,813.75",THE WORK PLACE (AYCLIFFE) LTD.
Children and Adult Services,Education,Supplies and Services,384199,Miscellaneous Expenses,11-Jun-2014,2755904-28/4/14,675.00,AIM DANCE GROUP.
Children and Adult Services,Education,Supplies and Services,338027,Services,11-Jun-2014,2756269-INV26481,"1,200.00",RAVEN COMPUTERS LTD.
Children and Adult Services,Education,Supplies and Services,324117,Provisions,11-Jun-2014,2756341-9410778739,731.90,TCHIBO COFFEE INTERNATIONAL LTD.
Children and Adult Services,Education,Supplies and Services,332047,Printing Stationery and Gen Off Exps,11-Jun-2014,2756343-INV19737,"1,092.00",TEAM VALLEY PRINTERS LTD T/A TEAM VALLEY GROUP.
Children and Adult Services,Education,Third Party Payments,440999,Other Third Party Payments,11-Jun-2014,2756038-DCC003/2014,864.00,ENERGIZE TRAINING.
Children and Adult Services,Education,Transfer Payments,510028,School Children,11-Jun-2014,231970-CAS-06-2014-037,765.00,GB MANAGEMENT SOLUTIONS LTD.
Children and Adult Services,Education,Transfer Payments,510026,School Children,11-Jun-2014,2755972-DCC002,"1,703.70",CLEVER CLOGS DAY NURSERIES LTD.
Children and Adult Services,Education,Transport,230008,Contract Hire,11-Jun-2014,231944-M047/09,750.00,C STEWART.
Children and Adult Services,Education,Transport,230008,Contract Hire,11-Jun-2014,231948-03/14137,"1,020.00",COLLINS TAXIS.
Children and Adult Services,Education,Transport,230008,Contract Hire,11-Jun-2014,231948-04/14137,680.00,COLLINS TAXIS.
Children and Adult Services,Education,Transport,230006,Contract Hire,11-Jun-2014,231998-009,"1,376.00",MICHAEL CONNOR.
Children and Adult Services,Education,Transport,230008,Contract Hire,11-Jun-2014,2755895-AA927,"1,200.00",AA MINIBUS HIRE.
Children and Adult Services,Education,Transport,230008,Contract Hire,11-Jun-2014,2755896-0191,"1,472.00",ABC & OUSTON CABS.
Children and Adult Services,Education,Transport,230008,Contract Hire,11-Jun-2014,2755896-0192,672.00,ABC & OUSTON CABS.
Children and Adult Services,Education,Transport,230008,Contract Hire,11-Jun-2014,2755932-421,"1,266.56",BEELINE MINI BUSES.
Children and Adult Services,Education,Transport,230008,Contract Hire,11-Jun-2014,2755933-10MAY/14,"1,280.00",BEELINE PRIVATE HIRE.
Children and Adult Services,Education,Transport,230008,Contract Hire,11-Jun-2014,2755933-1MAY/14,"1,594.08",BEELINE PRIVATE HIRE.
Children and Adult Services,Education,Transport,230008,Contract Hire,11-Jun-2014,2755933-9MAY14,880.00,BEELINE PRIVATE HIRE.
Children and Adult Services,Education,Transport,230007,Contract Hire,11-Jun-2014,2755934-DJ42260414,"2,640.00",BELL BROTHERS TRAVEL.
Children and Adult Services,Education,Transport,230007,Contract Hire,11-Jun-2014,2755934-DJ42260514,"3,840.00",BELL BROTHERS TRAVEL.
Children and Adult Services,Education,Transport,230007,Contract Hire,11-Jun-2014,2755938-14,608.00,BILL`S TAXIS.
Children and Adult Services,Education,Transport,230008,Contract Hire,11-Jun-2014,2755945-BZ00105,880.00,BREZ`S TAXIS.
Children and Adult Services,Education,Transport,230008,Contract Hire,11-Jun-2014,2755946-0514,"2,046.72",BRIAN WAKE T/A BRIAN`S TAXIS.
Children and Adult Services,Education,Transport,230008,Contract Hire,11-Jun-2014,2755974-MAY0001,880.00,CM TAXIS.
Children and Adult Services,Education,Transport,230008,Contract Hire,11-Jun-2014,2755981-E0420514,"1,968.00",COLIN FRANKS T/A FRANKS COACHES.
Children and Adult Services,Education,Transport,230007,Contract Hire,11-Jun-2014,2755988-DCC/4029/05/14,"1,584.00",COUNTY COACHES.
Children and Adult Services,Education,Transport,230008,Contract Hire,11-Jun-2014,2755995-OAK027,993.00,D IRVING T/A BJ TAXIS.
Children and Adult Services,Education,Transport,230008,Contract Hire,11-Jun-2014,2755996-DI201405,704.00,D&I TAXIS.
Children and Adult Services,Education,Transport,230008,Contract Hire,11-Jun-2014,2755997-1335,"1,120.00",DA TAXIS.
Children and Adult Services,Education,Transport,230008,Contract Hire,11-Jun-2014,2755997-1337,"1,120.00",DA TAXIS.
Children and Adult Services,Education,Transport,230008,Contract Hire,11-Jun-2014,2755997-1340,"1,328.00",DA TAXIS.
Children and Adult Services,Education,Transport,230008,Contract Hire,11-Jun-2014,2755998-065,"1,492.50",DA TRAVEL.
Children and Adult Services,Education,Transport,230008,Contract Hire,11-Jun-2014,2755998-067,767.00,DA TRAVEL.
Children and Adult Services,Education,Transport,230008,Contract Hire,11-Jun-2014,2755998-068,880.00,DA TRAVEL.
Children and Adult Services,Education,Transport,230008,Contract Hire,11-Jun-2014,2755999-MAY1401,"1,600.00",DALELINK PRIVATE HIRE.
Children and Adult Services,Education,Transport,230008,Contract Hire,11-Jun-2014,2756003-2186,"1,064.00",DAVES MINIBUSES.
Children and Adult Services,Education,Transport,230008,Contract Hire,11-Jun-2014,2756003-2188,"1,190.00",DAVES MINIBUSES.
Children and Adult Services,Education,Transport,230008,Contract Hire,11-Jun-2014,2756003-2190,"1,067.64",DAVES MINIBUSES.
Children and Adult Services,Education,Transport,230008,Contract Hire,11-Jun-2014,2756003-2191,963.76,DAVES MINIBUSES.
Children and Adult Services,Education,Transport,230008,Contract Hire,11-Jun-2014,2756005-0514/001,"1,040.00",DCM TAXIS.
Children and Adult Services,Education,Transport,230007,Contract Hire,11-Jun-2014,2756056-0295,677.76,FMR SILVA PITA.
Children and Adult Services,Education,Transport,230008,Contract Hire,11-Jun-2014,2756109-0103,"1,790.60",I CLYDESDALE T/A BURNOPFIELD TAXIS.
Children and Adult Services,Education,Transport,230008,Contract Hire,11-Jun-2014,2756127-2270,"1,495.36",JEFF ANDERSON COACHES LTD.
Children and Adult Services,Education,Transport,230008,Contract Hire,11-Jun-2014,2756127-2271,"1,527.36",JEFF ANDERSON COACHES LTD.
Children and Adult Services,Education,Transport,230008,Contract Hire,11-Jun-2014,2756129-23/05/14A,"1,120.00",JL EBDON.
Children and Adult Services,Education,Transport,230008,Contract Hire,11-Jun-2014,2756129-23/05/14B,960.00,JL EBDON.
Children and Adult Services,Education,Transport,230008,Contract Hire,11-Jun-2014,2756129-23/05/14C,960.00,JL EBDON.
Children and Adult Services,Education,Transport,230008,Contract Hire,11-Jun-2014,2756129-23/05/14D,"1,800.00",JL EBDON.
Children and Adult Services,Education,Transport,230008,Contract Hire,11-Jun-2014,2756129-23/05/14G,800.00,JL EBDON.
Children and Adult Services,Education,Transport,230008,Contract Hire,11-Jun-2014,2756129-23/05/14H,"1,440.00",JL EBDON.
Children and Adult Services,Education,Transport,230008,Contract Hire,11-Jun-2014,2756142-1418,880.00,KEN CHAMBERS T/A SHILDON TAXIS.
Children and Adult Services,Education,Transport,230008,Contract Hire,11-Jun-2014,2756142-1419,880.00,KEN CHAMBERS T/A SHILDON TAXIS.
Children and Adult Services,Education,Transport,230008,Contract Hire,11-Jun-2014,2756142-1420,"1,540.00",KEN CHAMBERS T/A SHILDON TAXIS.
Children and Adult Services,Education,Transport,230008,Contract Hire,11-Jun-2014,2756142-1422,880.00,KEN CHAMBERS T/A SHILDON TAXIS.
Children and Adult Services,Education,Transport,230008,Contract Hire,11-Jun-2014,2756144-010514,"1,110.00",KEVIN EDMUNDSON.
Children and Adult Services,Education,Transport,230007,Contract Hire,11-Jun-2014,2756156-20040,"11,804.70",LEE`S COACHES LTD.
Children and Adult Services,Education,Transport,230008,Contract Hire,11-Jun-2014,2756160-2997,864.00,LINCAB TAXIS.
Children and Adult Services,Education,Transport,230007,Contract Hire,11-Jun-2014,2756160-2999,"1,328.00",LINCAB TAXIS.
Children and Adult Services,Education,Transport,230008,Contract Hire,11-Jun-2014,2756160-3001,"1,856.00",LINCAB TAXIS.
Children and Adult Services,Education,Transport,230008,Contract Hire,11-Jun-2014,2756160-3004,"1,554.00",LINCAB TAXIS.
Children and Adult Services,Education,Transport,230008,Contract Hire,11-Jun-2014,2756194-280,576.00,MR PETER YOUNG.
Children and Adult Services,Education,Transport,230008,Contract Hire,11-Jun-2014,2756196-2804,"1,440.00",MR S BOWERS.
Children and Adult Services,Education,Transport,230008,Contract Hire,11-Jun-2014,2756196-2805,"1,216.00",MR S BOWERS.
Children and Adult Services,Education,Transport,230007,Contract Hire,11-Jun-2014,2756239-1309,"1,920.00",PAUL WATSON TRAVEL.
Children and Adult Services,Education,Transport,230007,Contract Hire,11-Jun-2014,2756270-20A,"1,024.00",RAYNERS COACHES.
Children and Adult Services,Education,Transport,230007,Contract Hire,11-Jun-2014,2756339-38305A,"2,925.24",T MOORE & SON.
Children and Adult Services,Education,Transport,230007,Contract Hire,11-Jun-2014,2756360-2275,"1,888.00",TM TRAVEL.
Children and Adult Services,Education,Transport,230007,Contract Hire,11-Jun-2014,2756360-2276,"2,080.00",TM TRAVEL.
Children and Adult Services,Education,Transport,230007,Contract Hire,11-Jun-2014,2756360-2278,"6,688.00",TM TRAVEL.
Children and Adult Services,Education,Transport,230007,Contract Hire,11-Jun-2014,2756360-2279,"1,104.00",TM TRAVEL.
Children and Adult Services,Education,Transport,230007,Contract Hire,11-Jun-2014,2756360-2280,"1,520.00",TM TRAVEL.
Children and Adult Services,Head of Adults,Premises,125009,Rents,11-Jun-2014,2756148-349173,782.50,KNIGHT FRANK LLP.
Children and Adult Services,Head of Adults,Supplies and Services,338366,Services,11-Jun-2014,2755959-16969,"1,534.72",CARE ABILITY.
Children and Adult Services,Head of Adults,Supplies and Services,338366,Services,11-Jun-2014,2755959-16970,"1,843.65",CARE ABILITY.
Children and Adult Services,Head of Adults,Supplies and Services,338366,Services,11-Jun-2014,2755959-16971,"2,834.72",CARE ABILITY.
Children and Adult Services,Head of Adults,Supplies and Services,338366,Services,11-Jun-2014,2755959-16972,"1,690.92",CARE ABILITY.
Children and Adult Services,Head of Adults,Supplies and Services,338366,Services,11-Jun-2014,2755959-16973,"5,563.86",CARE ABILITY.
Children and Adult Services,Head of Adults,Supplies and Services,338366,Services,11-Jun-2014,2755959-16978,740.46,CARE ABILITY.
Children and Adult Services,Head of Adults,Supplies and Services,338366,Services,11-Jun-2014,2755959-16979,"1,285.00",CARE ABILITY.
Children and Adult Services,Head of Adults,Transport,230005,Contract Hire,11-Jun-2014,2755895-AA929,555.50,AA MINIBUS HIRE.
Children and Adult Services,Head of Adults,Transport,230005,Contract Hire,11-Jun-2014,2756257-140501,"1,255.40",PRATTS TAXIS.
Children and Adult Services,Planning & Service Strategy,Supplies and Services,338089,Services,11-Jun-2014,2756107-1146,600.00,HSF TRAINING LTD.
Children and Adult Services,Planning & Service Strategy,Supplies and Services,338089,Services,11-Jun-2014,2756150-435,818.40,KRONOS LEARNING LTD.
Children and Adult Services,Planning & Service Strategy,Supplies and Services,340001,Postages,11-Jun-2014,2756287-9047378503,"1,005.20",ROYAL MAIL GROUP PLC.
Children and Adult Services,Public Health,Employees,010001,Other Pay,11-Jun-2014,2755963-8010000467,"3,735.18",CDDFT - LET WATERFRONT 4.
Children and Adult Services,Public Health,Third Party Payments,460803,Contract Payments,11-Jun-2014,232044-A83001/4/2013-14/NRT,"1,434.50",ST ANDREWS MEDICAL PRACTICE.
Children and Adult Services,Public Health,Third Party Payments,460803,Contract Payments,11-Jun-2014,2755975-3980004235,"277,150.00",CO DURHAM & DARLINGTON NHS FOUNDATION TRUST.
Children and Adult Services,Public Health,Third Party Payments,460803,Contract Payments,11-Jun-2014,2755977-FQR60/MAY/14,550.00,CO-OPERATIVE PHARMACY.
Children and Adult Services,Public Health,Third Party Payments,460803,Contract Payments,11-Jun-2014,2755979-MAY2014,830.00,CO-OPERATIVE PHARMACY.
Children and Adult Services,Public Health,Third Party Payments,460803,Contract Payments,11-Jun-2014,2756126-14/2014,"3,450.00",JANICE KIRBY COUNSELLING SERVICES.
Children and Adult Services,Public Health,Third Party Payments,460803,Contract Payments,11-Jun-2014,2756159-59,"10,000.00",LIBERTY FROM ADDICTION.
Children and Adult Services,Public Health,Third Party Payments,460803,Contract Payments,11-Jun-2014,2756164-FXL31/MAY2014,778.00,LLOYDS PHARMACY.
Children and Adult Services,Redundant-LA,Construction Work,908105,Construction work,11-Jun-2014,2756045-EE7,"32,108.14",EXTRASPACE SOLUTIONS (UK) LTD.
Children and Adult Services,Service Strategy,Supplies and Services,352001,Conference Expenses,11-Jun-2014,2756347-3472,780.00,THE ASSOCIATION OF DIRECTORS OF CHILDREN`S SERVICES LTD (ADCS).
Corporate Resources,Financial Services,Transport,235058,Public Transport,11-Jun-2014,2756123-019,"1,157.50",JACKS DIRECT TAXI.
Corporate Resources,Human Resources,Employees,040149,Recruitment Instruction and Training,11-Jun-2014,2755892-2T/14010,"2,935.00",2TRAIN LTD.
Corporate Resources,Human Resources,Supplies and Services,338221,Services,11-Jun-2014,2756051-93684155,885.42,FIRSTASSIST SERVICES LTD.
Corporate Resources,Human Resources,Supplies and Services,338221,Services,11-Jun-2014,2756051-93684158,885.42,FIRSTASSIST SERVICES LTD.
Corporate Resources,I.C.T. Services,Construction Work,908105,Construction work,11-Jun-2014,2756311-INV00953597,"2,110.60",SOFTCAT LTD.
Corporate Resources,I.C.T. Services,Stock,926900,Stock in hand-Inventory system,11-Jun-2014,2756087-INV0154109,970.00,GV MULTI MEDIA LTD.
Corporate Resources,I.C.T. Services,Stock,926900,Stock in hand-Inventory system,11-Jun-2014,2756316-OP/L857126,640.00,SPECIALIST COMPUTER CENTRES PLC.
Corporate Resources,I.C.T. Services,Stock,926900,Stock in hand-Inventory system,11-Jun-2014,2756335-119752,860.00,SWITCHSHOP LTD.
Corporate Resources,I.C.T. Services,Stock,926900,Stock in hand-Inventory system,11-Jun-2014,2756402-V536249,"5,584.00",XMA LTD.
Corporate Resources,I.C.T. Services,Supplies and Services,304245,Equipment and Materials,11-Jun-2014,2755914-968797395,816.00,USE (42746) ANTALIS DOCUMENT SUPPLIES.
Corporate Resources,I.C.T. Services,Supplies and Services,304303,Equipment and Materials,11-Jun-2014,2756113-1865994,"1,537.61",INSIGHT DIRECT (UK) LTD.
Corporate Resources,I.C.T. Services,Supplies and Services,332029,Printing Stationery and Gen Off Exps,11-Jun-2014,2756149-1113133344,"1,612.93",KONICA MINOLTA BUSINESS SOLUTIONS (UK) LTD.
Corporate Resources,I.C.T. Services,Supplies and Services,332029,Printing Stationery and Gen Off Exps,11-Jun-2014,2756256-604327,"18,961.00",POTTS PRINTERS LTD.
Corporate Resources,I.C.T. Services,Supplies and Services,332029,Printing Stationery and Gen Off Exps,11-Jun-2014,2756256-604331,"1,241.00",POTTS PRINTERS LTD.
Corporate Resources,I.C.T. Services,Supplies and Services,332029,Printing Stationery and Gen Off Exps,11-Jun-2014,2756256-604332,"2,856.00",POTTS PRINTERS LTD.
Corporate Resources,I.C.T. Services,Supplies and Services,332029,Printing Stationery and Gen Off Exps,11-Jun-2014,2756268-11184,550.00,RADECAL SIGNS GRAPHICS & ADVERTISING.
Corporate Resources,I.C.T. Services,Supplies and Services,342033,Computers and Communications,11-Jun-2014,2756311-INV00955325,976.47,SOFTCAT LTD.
Corporate Resources,I.C.T. Services,Supplies and Services,332029,Printing Stationery and Gen Off Exps,11-Jun-2014,2756318-7499,"1,230.50",SPOT ON DISPLAYS LTD.
Corporate Resources,I.C.T. Services,Supplies and Services,304259,Equipment and Materials,11-Jun-2014,2756335-119762,772.00,SWITCHSHOP LTD.
Corporate Resources,I.C.T. Services,Vehicles Equipment Furniture and Fittings,912701,Computer equipment,11-Jun-2014,2756382-2344251,"1,298.00",VIGLEN LTD.
Corporate Resources,Legal & Democratic Services,Supplies and Services,338057,Services,11-Jun-2014,232005-MAY2014,600.00,MR CJ TULLOCH.
Corporate Resources,Legal & Democratic Services,Supplies and Services,338057,Services,11-Jun-2014,2756016-KS,"2,226.40",DR SIDHU.
Corporate Resources,Legal & Democratic Services,Supplies and Services,338057,Services,11-Jun-2014,2756225-NGS-14208,748.00,NORTHGENE LTD.
Corporate Resources,Legal & Democratic Services,Supplies and Services,340001,Postages,11-Jun-2014,2756287-9047437856,"12,939.19",ROYAL MAIL GROUP PLC.
Dedicated Schools Grant,Dedicated Schools Grant,Supplies and Services,338035,Services,11-Jun-2014,2755916-20987576,866.45,AQA EDUCATION.
Dedicated Schools Grant,Dedicated Schools Grant,Supplies and Services,338035,Services,11-Jun-2014,2755916-43510/92772108,"1,462.85",AQA EDUCATION.
Dedicated Schools Grant,Dedicated Schools Grant,Supplies and Services,338091,Services,11-Jun-2014,2756077-GSACIC/01/00114,825.00,GLOBAL SPORT ACADEMY CIC.
Dedicated Schools Grant,Dedicated Schools Grant,Third Party Payments,440080,Other Third Party Payments,11-Jun-2014,2756095-SIN049852,"3,993.90",HENSHAWS SOCIETY FOR THE BLIND.
Dedicated Schools Grant,Dedicated Schools Grant,Third Party Payments,440080,Other Third Party Payments,11-Jun-2014,2756219-0000017804,"2,818.40",NORTH EAST AUTISM SOCIETY.
Dedicated Schools Grant,Dedicated Schools Grant,Third Party Payments,440080,Other Third Party Payments,11-Jun-2014,2756219-0000017808,"2,094.08",NORTH EAST AUTISM SOCIETY.
Dedicated Schools Grant,Dedicated Schools Grant,Third Party Payments,440080,Other Third Party Payments,11-Jun-2014,2756219-0000017822,"2,818.40",NORTH EAST AUTISM SOCIETY.
Dedicated Schools Grant,Dedicated Schools Grant,Third Party Payments,440080,Other Third Party Payments,11-Jun-2014,2756219-0000017826,"2,094.08",NORTH EAST AUTISM SOCIETY.
Dedicated Schools Grant,Dedicated Schools Grant,Third Party Payments,440080,Other Third Party Payments,11-Jun-2014,2756219-0000017834,"2,745.48",NORTH EAST AUTISM SOCIETY.
Dedicated Schools Grant,Dedicated Schools Grant,Transport,230010,Contract Hire,11-Jun-2014,2755921-MAY2014,703.00,ARMSTRONG`S TAXIS.
Dedicated Schools Grant,Dedicated Schools Grant,Transport,230010,Contract Hire,11-Jun-2014,2756066-JG007-MAY2014,548.00,GARY JACKSON PRIVATE HIRE.
Dedicated Schools Grant,Dedicated Schools Grant,Transport,230010,Contract Hire,11-Jun-2014,2756220-13,912.00,NORTH EAST EXECUTIVE TRAVEL.
Neighbourhood Services,Culture & Sport,Premises,145052,Cleaning and Domestic Supplies,11-Jun-2014,2755984-257794,950.50,CONVEY BROS.
Neighbourhood Services,Culture & Sport,Premises,145023,Cleaning and Domestic Supplies,11-Jun-2014,2756306-266726,"1,036.00",SIS CHEMICALS.
Neighbourhood Services,Culture & Sport,Premises,145023,Cleaning and Domestic Supplies,11-Jun-2014,2756306-266742,955.80,SIS CHEMICALS.
Neighbourhood Services,Culture & Sport,Supplies and Services,338047,Services,11-Jun-2014,231940-531,"3,336.56",BILLY FURY STORY LTD.
Neighbourhood Services,Culture & Sport,Supplies and Services,304245,Equipment and Materials,11-Jun-2014,231946-000839,780.00,CLEARVIEW TECHNICAL LTD.
